Workbook

Sheet Instructions
B1: Membrane Optimization Assessment Software
B2: Instructions
A3: Entering data from another spreadsheet (copy/pasting):
A4: 1. | B4: When entering data sets from another spreadsheet, use the DataEntryPaste worksheet. This will
B5: reduce problems that could occur due to formatting differences.
A6: 2. | B6: Before entering new data, you should clear the data entry area of any pre-existing data. This can be
B7: performed by clicking on the CLEAR button.
A8: 3. | B8: After the data is entered, click the TRANSFER button to transfer the data to the database
B9: i.e., Data Entry Values worksheet.
B10: Warning! The transfer button replaces all values in the Data Entry Values worksheet.
A11: 4. | B11: Go to the DataEntryValues worksheet and enter the plant name and performance goals.
A12: 5. | B12: Click the UPDATE button to develop the Summary and Optimization Trend Reports.
A14: Entering individual data from plant records:
A15: 1. | B15: When entering daily data from plant records, use the DataEntryValues worksheet.
A16: 2. | B16: Before entering new data, you should clear the database of any pre-existing data. This can be
B17: performed by clicking on the CLEAR button.
A18: 3. | B18: After data is entered, click on the UPDATE button to develop the Summary and Optimization Trend
B19: Reports.
A25: Hiding columns in DataEntryValues worksheet:
A26: 1. | B26: If sedimentation columns are not needed, these columns can be hidden.
A27: 2. | B27: To hide columns, the worksheet must first be unprotected by going to the Review and Unprotect Sheet.
B28: After this is done, select the columns to be hidden, right-click the mouse and select Hide.
B29: The width of the system name column may need to be adjusted to see the system information.
B30: =B1 -> Membrane Optimization Assessment Software
B31: FILE: | C31: Turb-opt10Membrane.xlsm
B32: AUTHOR: | C32: L. DeMers, K. Rakness, B. Hegg
B33: COMPANY: | C33: Process Applications, Inc.
B34: PURPOSE: | C34: To assess particulate removal in surface water treatment plants
B36: DATE MODIFIED: | D36: MODIFICATIONS & BY WHOM:
B37: 1999-04-15 | C37: LDD initiated program development.
B38: 1999-05-26 | C38: LDD modified program to include individual sedimentation and filter graphs.
B39: 1999-05-27 | C39: LDD modified program to indicate "out of range" warning for filter turbidity data entry.
B40: 1999-07-23 | C40: LDD initiated program modifications to use percentile calculation.
B41: 1999-09-23 | C41: LDD added column for combined filter effluent turbidity.
C42: Modifications also made to use percentile calculations.
B43: 1999-09-25 | C43: LDD modified program to include optimization goal tracking features. | F43: s
B44: 1999-11-24 | C44: LDD added worst filter cell conditions and screen hide during macro.
B45: 1999-11-28 | C45: LDD added worst sed basin cell conditions.
B46: 1999-12-16 | C46: LDD corrected 95% calc. error in max. sed. and filter columns.
C47: LDD modified to data input to allow up to 12 filters.
B48: 1999-12-17 | C48: LDD modified annual statistics to exclude STDEV and include % time meeting reg.
C49: requirement.
B50: 2000-03-03 | C50: LDD fixed y-axis on individual sed and filter graphs
B51: 2000-05-13 | C51: LDD corrected Leap Year problem (temporary fix until modifications to account for both
C52: Leap Year and non-Leap year data input is completed).
B53: 2000-06-08 | C53: LDD/KLR corrected Leap Year problem to allow data input for both Leap Year and non
C54: Leap Year data.
B55: 2000-11-28 | C55: LDD corrected error in max filter turbidity calc on DataEntryValues worksheet. Saved
C56: as turb-opt23p.xls.
B57: 2001-03-27 | C57: LDD corrected error in max settled water graph to plot the max value from four sed
C58: basins (versus the value from sed basin 1). Also corrected date range in same graph.
C59: Saved as turb-opt24a.xls.
B60: 2001-04-18 | C60: LDD added "Yes/No" step to clear macros. Changed color of macro buttons.
B61: 2002-08-23 | C61: LDD added LT-Trend worksheet to support LT Trend companion spreadsheet.
C62: Corrected y-axis lable on MaxFilter chart. Saved as turb-opt26a.xls.
B63: 2003-04-20 | C63: LDD added data entry cell for public water system number.
B64: 2003-04-20 | C64: LDD added annual calculations for individual basin/filter 95th % and % values meeting
C65: goal calculations. Saved as turb-opt27.xls.
B66: 2007-01-04 | C66: LDD completed program modifications to include turbidity data for up to 36 filters.
B67: 2007-01-31 | C67: LDD corrected chart error on optimization trend worksheet. Modified sed basin input
C68: to include up to 8 basins. Added input for system name.
C69: Changed combined filter turbidity RSQ datasets to include max. filter turbidity and
C70: combined turbidity.
B71: 2007-02-05 | C71: LDD modified settled water optimization trend chart to include all available settled
C72: water data instead of maximum settled water data. Updated long-term trend table and
C73: corrected error in copying filter data.
B74: 2007-04-11 | C74: LDD corrected error in monthly summary table range name that caused incorrect
C75: combined turbidity data.
B76: 2011-06-22 | C76: LDD updated spreadsheet to Excel 2010 version (.xlsm file format).
C77: Changed name to Turb-opt36filtersV5.xlsm.
B78: 2014-06-29 | C78: LDD & WHD modified spreadsheet for membrane plants and included LRV and pressure
C79: decay parameters for 12 membrane units.
B80: 4/45/15 | C80: Membrane OAS v4 is current version.
B81: Model developed by: Process Applications, Inc. Fort Collins, CO 970-223-5787
A85: Development Notes:
A87: Change formulas in optimzation trend for % goal using frequency function.
A88: Consider adding column for RSD, particles

Sheet DataEntryPaste
B3: Instruction to users: Paste plant turbidity data sets into the data entry area below. The
B4: data entry area will hold 366 days of data. Following data input, transfer data to the
B5: database by clicking on the data TRANSFER button. Go to the DataEntryValues
B6: worksheet to enter the plant name and performance goals.
A13: Data Entry Area for Posting Data Sets
A14: Date | B14: Raw | C14: Sed 1 | D14: Sed 2 | E14: Sed 3 | F14: Sed 4 | G14: T1 Turb | H14: T2 Turb | I14: T3 Turb | J14: T4 Turb | K14: T5 Turb | L14: T6 Turb | M14: T7 Turb | N14: T8 Turb | O14: T9 Turb | P14: T10 Turb | Q14: T11 Turb | R14: T12 Turb | S14: CFE | T14: T1 LRV | U14: T2 LRV | V14: T3 LRV | W14: T4 LRV | X14: T5 LRV | Y14: T6 LRV | Z14: T7 LRV | AA14: T8 LRV | AB14: T9 LRV | AC14: T10 LRV | AD14: T11 LRV | AE14: T12 LRV | AF14: T1 PD | AG14: T2 PD | AH14: T3 PD | AI14: T4 PD | AJ14: T5 PD | AK14: T6 PD | AL14: T7 PD | AM14: T8 PD | AN14: T9 PD | AO14: T10 PD | AP14: T11 PD | AQ14: T12 PD
A15: 2010-06-01
A16: =A15+1 -> 2010-06-02
A17: =A16+1 -> 2010-06-03
A18: 2010-06-04
A19: 2010-06-05
A20: 2010-06-06
A21: 2010-06-07
A22: 2010-06-08
A23: 2010-06-09
A24: 2010-06-10
A25: 2010-06-11
A26: 2010-06-12
A27: 2010-06-13
A28: 2010-06-14
A29: 2010-06-15
A30: 2010-06-16
A31: 2010-06-17
A32: 2010-06-18
A33: 2010-06-19
A34: 2010-06-20
A35: 2010-06-21
A36: 2010-06-22
A37: 2010-06-23
A38: 2010-06-24
A39: 2010-06-25
A40: 2010-06-26
A41: 2010-06-27
A42: 2010-06-28
A43: 2010-06-29
A44: 2010-06-30
A45: 2010-07-01
A46: 2010-07-02
A47: 2010-07-03
A48: 2010-07-04
A49: 2010-07-05
A50: 2010-07-06
A51: 2010-07-07
A52: 2010-07-08
A53: 2010-07-09
A54: 2010-07-10
A55: 2010-07-11
A56: 2010-07-12
A57: 2010-07-13
A58: 2010-07-14
A59: 2010-07-15
A60: 2010-07-16
A61: 2010-07-17
A62: 2010-07-18
A63: 2010-07-19
A64: 2010-07-20
A65: 2010-07-21
A66: 2010-07-22
A67: 2010-07-23
A68: 2010-07-24
A69: 2010-07-25
A70: 2010-07-26
A71: 2010-07-27
A72: 2010-07-28
A73: 2010-07-29
A74: 2010-07-30
A75: 2010-07-31
A76: 2010-08-01
A77: 2010-08-02
A78: 2010-08-03
A79: 2010-08-04
A80: 2010-08-05
A81: =A80+1 -> 2010-08-06
A82: 2010-08-07
A83: 2010-08-08
A84: 2010-08-09
A85: 2010-08-10
A86: 2010-08-11
A87: 2010-08-12
A88: 2010-08-13
A89: 2010-08-14
A90: 2010-08-15
A91: 2010-08-16
A92: 2010-08-17
A93: 2010-08-18
A94: 2010-08-19
A95: 2010-08-20
A96: 2010-08-21
A97: 2010-08-22
A98: 2010-08-23
A99: 2010-08-24
A100: 2010-08-25
A101: 2010-08-26
A102: 2010-08-27
A103: 2010-08-28
A104: 2010-08-29
A105: 2010-08-30
A106: 2010-08-31
A107: 2010-09-01
A108: 2010-09-02
A109: 2010-09-03
A110: 2010-09-04
A111: 2010-09-05
A112: 2010-09-06
A113: 2010-09-07
A114: 2010-09-08
A115: 2010-09-09
A116: 2010-09-10
A117: 2010-09-11
A118: 2010-09-12
A119: 2010-09-13
A120: 2010-09-14
A121: 2010-09-15
A122: 2010-09-16
A123: 2010-09-17
A124: 2010-09-18
A125: 2010-09-19
A126: 2010-09-20
A127: 2010-09-21
A128: 2010-09-22
A129: 2010-09-23
A130: 2010-09-24
A131: 2010-09-25
A132: 2010-09-26
A133: 2010-09-27
A134: 2010-09-28
A135: 2010-09-29
A136: 2010-09-30
A137: 2010-10-01
A138: 2010-10-02
A139: 2010-10-03
A140: 2010-10-04
A141: 2010-10-05
A142: 2010-10-06
A143: 2010-10-07
A144: 2010-10-08
A145: =A144+1 -> 2010-10-09
A146: 2010-10-10
A147: 2010-10-11
A148: 2010-10-12
A149: 2010-10-13
A150: 2010-10-14
A151: 2010-10-15
A152: 2010-10-16
A153: 2010-10-17
A154: 2010-10-18
A155: 2010-10-19
A156: 2010-10-20
A157: 2010-10-21
A158: 2010-10-22
A159: 2010-10-23
A160: 2010-10-24
A161: 2010-10-25
A162: 2010-10-26
A163: 2010-10-27
A164: 2010-10-28
A165: 2010-10-29
A166: 2010-10-30
A167: 2010-10-31
A168: 2010-11-01
A169: 2010-11-02
A170: 2010-11-03
A171: 2010-11-04
A172: 2010-11-05
A173: 2010-11-06
A174: 2010-11-07
A175: 2010-11-08
A176: 2010-11-09
A177: 2010-11-10
A178: 2010-11-11
A179: 2010-11-12
A180: 2010-11-13
A181: 2010-11-14
A182: 2010-11-15
A183: 2010-11-16
A184: 2010-11-17
A185: 2010-11-18
A186: 2010-11-19
A187: 2010-11-20
A188: 2010-11-21
A189: 2010-11-22
A190: 2010-11-23
A191: 2010-11-24
A192: 2010-11-25
A193: 2010-11-26
A194: 2010-11-27
A195: 2010-11-28
A196: 2010-11-29
A197: 2010-11-30
A198: 2010-12-01
A199: 2010-12-02
A200: 2010-12-03
A201: 2010-12-04
A202: 2010-12-05
A203: 2010-12-06
A204: 2010-12-07
A205: 2010-12-08
A206: 2010-12-09
A207: 2010-12-10
A208: 2010-12-11
... 172 more rows

Sheet DataEntryValues
B2: System Name | G2: Ontario Membrane WTP
B3: Plant Name
B4: PWS #
B5: Max. settled water turbidity goal
B6: Membrane turbidity optimization goal | G6: 0.05
B7: Plant turbidity regulaltion | G7: 0.15
B8: Membrane LRV goal | G8: 4
B9: Membrane pressure decay goal | G9: 2.5
B10: Instruction to users: Input plant name and turbidity goals above. Input start date
B11: and turbidity data below. The database will hold 366 days of data. The turbidity data
B12: entry cells will turn yellow if the value exceeds the process goal. Following data
B13: input, develop the reports by clicking the UPDATE button.
A16: Data Entry Area
B17: Raw | C17: Sed 1 | D17: Sed 2 | E17: Sed 3 | F17: Sed 4 | G17: T1 Turb | H17: T2 Turb | I17: T3 Turb | J17: T4 Turb | K17: T5 Turb | L17: T6 Turb | M17: T7 Turb | N17: T8 Turb | O17: T9 Turb | P17: T10 Turb | Q17: T11 Turb | R17: T12 Turb | S17: CFE | T17: T1 LRV | U17: T2 LRV | V17: T3 LRV | W17: T4 LRV | X17: T5 LRV | Y17: T6 LRV | Z17: T7 LRV | AA17: T8 LRV | AB17: T9 LRV | AC17: T10 LRV | AD17: T11 LRV | AE17: T12 LRV | AF17: T1 PD | AG17: T2 PD | AH17: T3 PD | AI17: T4 PD | AJ17: T5 PD | AK17: T6 PD | AL17: T7 PD | AM17: T8 PD | AN17: T9 PD | AO17: T10 PD | AP17: T11 PD | AQ17: T12 PD | AY17: Max Sed | AZ17: MaxSedPlot | BA17: Sed Goal | BB17: Max Filter | BC17: MaxFilterPlot | BD17: Filter Goal | BE17: Min LRV | BF17: MinLRVplot | BG17: LRV Goal | BH17: Max PD | BI17: MaxPDplot | BJ17: PD Goal
A18: 2018-01-01 | B18: 3.213639259 | G18: 0.01701870933 | H18: 0.01486622449 | I18: 0.01452424005 | J18: 0.01241198927 | T18: 4.220895767 | U18: 4.263266563 | V18: 4.220815182 | W18: 4.943678379 | AF18: 1.623494466 | AG18: 1.810525561 | AH18: 1.618232509 | AI18: 0.6234573364 | AX18: 1 | AY18: =MAX(C18:F18) -> 0 | BA18: =$G$5 -> 0 | BB18: =MAX(G18:R18) -> 0.01701870933 | BC18: 0.01701870933 | BD18: =$G$6 -> 0.05 | BE18: =MIN(T18:AE18) -> 4.220815182 | BF18: 4.220815182 | BG18: =$G$8 -> 4 | BH18: =MAX(AF18:AQ18) -> 1.810525561 | BI18: 1.810525561 | BJ18: =$G$9 -> 2.5
A19: =A18+1 -> 2018-01-02 | B19: 0.3540534973 | G19: 0.01645544171 | H19: 0.01504727453 | I19: 0.02749949694 | J19: 0.01876886003 | T19: 4.232894897 | U19: 4.259745598 | V19: 4.229319572 | W19: 4.943678379 | AF19: 1.556546095 | AG19: 1.810525561 | AH19: 1.583583119 | AI19: 0.6209457397 | AX19: =AX18+1 -> 2 | AY19: =MAX(C19:F19) -> 0 | BA19: 0 | BB19: =MAX(G19:R19) -> 0.02749949694 | BC19: 0.02749949694 | BD19: 0.05 | BE19: =MIN(T19:AE19) -> 4.229319572 | BF19: 4.229319572 | BG19: =$G$8 -> 4 | BH19: =MAX(AF19:AQ19) -> 1.810525561 | BI19: 1.810525561 | BJ19: =$G$9 -> 2.5
A20: 2018-01-03 | B20: 2.700663805 | G20: 0.01848722622 | H20: 0.01985516027 | I20: 0.0168778915 | J20: 0.01249245647 | T20: 4.229111671 | U20: 4.259745598 | V20: 4.232217312 | W20: 4.944013119 | AF20: 1.535103321 | AG20: 1.779465728 | AH20: 1.552740883 | AI20: 0.610067749 | AX20: 3 | AY20: 0 | BA20: 0 | BB20: 0.01985516027 | BC20: 0.01985516027 | BD20: 0.05 | BE20: 4.229111671 | BF20: 4.229111671 | BG20: 4 | BH20: 1.779465728 | BI20: 1.779465728 | BJ20: 2.5
A21: 2018-01-04 | B21: 1.981492758 | G21: 0.01836652495 | H21: 0.01488634106 | I21: 0.04204385355 | J21: 0.01243210584 | T21: 4.229111671 | U21: 4.275004864 | V21: 4.20003891 | W21: 4.944013119 | AF21: 1.399690409 | AG21: 1.752988581 | AH21: 1.552740883 | AI21: 0.5749191284 | AX21: 4 | AY21: 0 | BA21: 0 | BB21: 0.04204385355 | BC21: 0.04204385355 | BD21: 0.05 | BE21: 4.20003891 | BF21: 4.20003891 | BG21: 4 | BH21: 1.752988581 | BI21: 1.752988581 | BJ21: 2.5
A22: 2018-01-05 | B22: 1.441359878 | G22: 0.01790384203 | H22: 0.01619392447 | I22: 0.01563065872 | J22: 0.01229128987 | T22: 4.258064747 | U22: 4.270585537 | V22: 4.20003891 | W22: 4.978250027 | AF22: 1.399690409 | AG22: 1.741943359 | AH22: 1.564272367 | AI22: 0.5749191284 | AX22: 5 | AY22: 0 | BA22: 0 | BB22: 0.01790384203 | BC22: 0.01790384203 | BD22: 0.05 | BE22: 4.20003891 | BF22: 4.20003891 | BG22: 4 | BH22: 1.741943359 | BI22: 1.741943359 | BJ22: 2.5
A23: 2018-01-06 | B23: 1.241198897 | G23: 0.01557030808 | H23: 0.01390062366 | I23: 0.02359686047 | J23: 0.01243210584 | T23: 4.233080864 | U23: 4.266732693 | V23: 4.205323219 | W23: 4.957644463 | AF23: 1.518343386 | AG23: 1.741943359 | AH23: 1.564272367 | AI23: 0.5782653809 | AX23: 6 | AY23: 0 | BA23: 0 | BB23: 0.02359686047 | BC23: 0.02359686047 | BD23: 0.05 | BE23: 4.205323219 | BF23: 4.205323219 | BG23: 4 | BH23: 1.741943359 | BI23: 1.741943359 | BJ23: 2.5
A24: 2018-01-07 | B24: 2.174612761 | G24: 0.02070005983 | H24: 0.02106215991 | I24: 0.01856769249 | J24: 0.01458458975 | T24: 4.227593422 | U24: 4.263739586 | V24: 4.185374737 | W24: 4.957644463 | AF24: 1.513979704 | AG24: 1.75231818 | AH24: 1.621990418 | AI24: 0.5824493408 | AX24: 7 | AY24: 0 | BA24: 0 | BB24: 0.02106215991 | BC24: 0.02106215991 | BD24: 0.05 | BE24: 4.185374737 | BF24: 4.185374737 | BG24: 4 | BH24: 1.75231818 | BI24: 1.75231818 | BJ24: 2.5
A25: 2018-01-08 | B25: 4.666063309 | G25: 0.01613357477 | H25: 0.01436330751 | I25: 0.01959364302 | J25: 0.01281432435 | T25: 4.227593422 | U25: 4.263739586 | V25: 4.185374737 | W25: 4.959019661 | AF25: 1.513979704 | AG25: 1.697089251 | AH25: 1.61106393 | AI25: 0.5866348267 | AX25: 8 | AY25: 0 | BA25: 0 | BB25: 0.01959364302 | BC25: 0.01959364302 | BD25: 0.05 | BE25: 4.185374737 | BF25: 4.185374737 | BG25: 4 | BH25: 1.697089251 | BI25: 1.697089251 | BJ25: 2.5
A26: 2018-01-09 | B26: 0.5139811039 | G26: 0.01484610699 | H26: 0.01343793981 | I26: 0.01524844207 | J26: 0.01237175614 | T26: 4.174921989 | U26: 4.247758865 | V26: 4.170285702 | W26: 4.890296459 | AF26: 1.51443543 | AG26: 1.697089251 | AH26: 1.61106393 | AI26: 0.5866348267 | AX26: 9 | AY26: 0 | BA26: 0 | BB26: 0.01524844207 | BC26: 0.01524844207 | BD26: 0.05 | BE26: 4.170285702 | BF26: 4.170285702 | BG26: 4 | BH26: 1.697089251 | BI26: 1.697089251 | BJ26: 2.5
A27: 2018-01-10 | B27: 2.022731781 | G27: 0.01603299193 | H27: 0.01176825631 | I27: 0.01818547584 | J27: 0.01241198927 | T27: 4.147130489 | U27: 4.237306118 | V27: 4.148952007 | W27: 4.890296459 | AF27: 1.587631226 | AG27: 1.704138554 | AH27: 1.628109138 | AI27: 0.6217834473 | AX27: 10 | AY27: 0 | BA27: 0 | BB27: 0.01818547584 | BC27: 0.01818547584 | BD27: 0.05 | BE27: 4.147130489 | BF27: 4.147130489 | BG27: 4 | BH27: 1.704138554 | BI27: 1.704138554 | BJ27: 2.5
A28: 2018-01-11 | B28: 0.1559042484 | G28: 0.01567089185 | H28: 0.01150673907 | I28: 0.01557030808 | J28: 0.0122309383 | T28: 4.147130489 | U28: 4.237306118 | V28: 4.145237446 | W28: 4.879029274 | AF28: 1.587135052 | AG28: 1.710563225 | AH28: 1.620451575 | AI28: 0.6201080322 | AX28: 11 | AY28: 0 | BA28: 0 | BB28: 0.01567089185 | BC28: 0.01567089185 | BD28: 0.05 | BE28: 4.145237446 | BF28: 4.145237446 | BG28: 4 | BH28: 1.710563225 | BI28: 1.710563225 | BJ28: 2.5
A29: 2018-01-12 | B29: 1.839670181 | G29: 0.01683765836 | H29: 0.01152685564 | I29: 0.01717964187 | J29: 0.01251257304 | T29: 4.131509304 | U29: 4.223748684 | V29: 4.145237446 | W29: 4.877820015 | AF29: 1.587135052 | AG29: 1.709316335 | AH29: 1.55977759 | AI29: 0.6058822632 | AX29: 12 | AY29: 0 | BA29: 0 | BB29: 0.01717964187 | BC29: 0.01717964187 | BD29: 0.05 | BE29: 4.131509304 | BF29: 4.131509304 | BG29: 4 | BH29: 1.709316335 | BI29: 1.709316335 | BJ29: 2.5
A30: 2018-01-13 | B30: 0.2735868096 | G30: 0.01657614112 | H30: 0.0132971229 | I30: 0.01462482288 | J30: 0.01221082173 | T30: 4.126056671 | U30: 4.221381664 | V30: 4.141126633 | W30: 4.842348099 | AF30: 1.626345037 | AG30: 1.678381208 | AH30: 1.55977759 | AI30: 0.6058822632 | AX30: 13 | AY30: 0 | BA30: 0 | BB30: 0.01657614112 | BC30: 0.01657614112 | BD30: 0.05 | BE30: 4.126056671 | BF30: 4.126056671 | BG30: 4 | BH30: 1.678381208 | BI30: 1.678381208 | BJ30: 2.5
A31: 2018-01-14 | B31: 0.1850734204 | G31: 0.01561054122 | H31: 0.01209012233 | I31: 0.01492657419 | J31: 0.012331523 | T31: 4.126056671 | U31: 4.182300091 | V31: 4.088095188 | W31: 4.841537476 | AF31: 1.593861711 | AG31: 1.678381208 | AH31: 1.5970672 | AI31: 0.6544189453 | AX31: 14 | AY31: 0 | BA31: 0 | BB31: 0.01561054122 | BC31: 0.01561054122 | BD31: 0.05 | BE31: 4.088095188 | BF31: 4.088095188 | BG31: 4 | BH31: 1.678381208 | BI31: 1.678381208 | BJ31: 2.5
A32: 2018-01-15 | B32: 0.4566485584 | G32: 0.02259102836 | H32: 0.01225105487 | I32: 0.01476564072 | J32: 0.01235163957 | T32: 4.075304985 | U32: 4.176708221 | V32: 4.077402115 | W32: 4.831858158 | AF32: 1.401646417 | AG32: 1.776103144 | AH32: 1.689204463 | AI32: 0.6586044312 | AX32: 15 | AY32: 0 | BA32: 0 | BB32: 0.02259102836 | BC32: 0.02259102836 | BD32: 0.05 | BE32: 4.075304985 | BF32: 4.075304985 | BG32: 4 | BH32: 1.776103144 | BI32: 1.776103144 | BJ32: 2.5
A33: 2018-01-16 | B33: 0.9625829458 | G33: 0.0151277408 | H33: 0.01184872258 | I33: 0.04188292101 | J33: 0.01301549003 | T33: 4.176717281 | U33: 4.176708221 | V33: 4.077402115 | W33: 4.83161068 | AF33: 1.401646417 | AG33: 1.72687678 | AH33: 1.468060412 | AI33: 0.6334960938 | AX33: 16 | AY33: 0 | BA33: 0 | BB33: 0.04188292101 | BC33: 0.04188292101 | BD33: 0.05 | BE33: 4.077402115 | BF33: 4.077402115 | BG33: 4 | BH33: 1.72687678 | BI33: 1.72687678 | BJ33: 2.5
A34: 2018-01-17 | B34: 0.8076845407 | G34: 0.02271172777 | H34: 0.01762220822 | I34: 0.01466505602 | J34: 0.01319654007 | U34: 4.180571079 | V34: 4.131238937 | W34: 4.812019348 | AF34: -0.2510452271 | AG34: 1.725534352 | AH34: 1.468060412 | AI34: 0.6334960938 | AX34: 17 | AY34: 0 | BA34: 0 | BB34: 0.02271172777 | BC34: 0.02271172777 | BD34: 0.05 | BE34: 4.131238937 | BF34: 4.131238937 | BG34: 4 | BH34: 1.725534352 | BI34: 1.725534352 | BJ34: 2.5
A35: 2018-01-18 | B35: 1.619392395 | G35: 0.02476362884 | I35: 0.04196338728 | J35: 0.01257292274 | T35: 4.135110378 | U35: 4.180571079 | V35: 4.157987595 | W35: 4.787871361 | AF35: 1.392592761 | AG35: 1.725534352 | AH35: 1.681628707 | AI35: 0.6636245728 | AX35: 18 | AY35: 0 | BA35: 0 | BB35: 0.04196338728 | BC35: 0.04196338728 | BD35: 0.05 | BE35: 4.135110378 | BF35: 4.135110378 | BG35: 4 | BH35: 1.725534352 | BI35: 1.725534352 | BJ35: 2.5
A36: 2018-01-19 | B36: 0.6306577921 | G36: 0.01516797394 | H36: 0.06326694787 | I36: 0.04135988653 | J36: 0.01277408935 | T36: 4.109349251 | U36: 4.148461342 | V36: 4.220360279 | W36: 4.787871361 | AF36: 1.392592761 | AG36: 1.725534352 | AH36: 1.68305147 | AI36: 0.6577682495 | AX36: 19 | AY36: 0 | BA36: 0 | BB36: 0.06326694787 | BC36: 0.06326694787 | BD36: 0.05 | BE36: 4.109349251 | BF36: 4.109349251 | BG36: 4 | BH36: 1.725534352 | BI36: 1.725534352 | BJ36: 2.5
A37: 2018-01-20 | B37: 0.8579762578 | H37: 0.0159525238 | I37: 0.03091933206 | J37: 0.0132971229 | T37: 4.100495815 | U37: 4.148461342 | V37: 4.220360279 | W37: 4.791145325 | AF37: 1.544693841 | AG37: 1.712789003 | AH37: 1.510665499 | AI37: 0.6334960938 | AX37: 20 | AY37: 0 | BA37: 0 | BB37: 0.03091933206 | BC37: 0.03091933206 | BD37: 0.05 | BE37: 4.100495815 | BF37: 4.100495815 | BG37: 4 | BH37: 1.712789003 | BI37: 1.712789003 | BJ37: 2.5
A38: 2018-01-21 | B38: 0.2313417792 | G38: 0.03822168708 | H38: 0.01613357477 | I38: 0.02796217985 | T38: 4.115366936 | U38: 4.259312153 | V38: 4.228242397 | W38: 4.791145325 | AF38: 1.512203038 | AG38: 1.853031431 | AH38: 1.510665499 | AI38: 0.6334960938 | AX38: 21 | AY38: 0 | BA38: 0 | BB38: 0.03822168708 | BC38: 0.03822168708 | BD38: 0.05 | BE38: 4.115366936 | BF38: 4.115366936 | BG38: 4 | BH38: 1.853031431 | BI38: 1.853031431 | BJ38: 2.5
A39: 2018-01-22 | B39: 0.1247233972 | G39: 0.02470327914 | H39: 0.01567089185 | I39: 0.03520418331 | J39: 0.01398108993 | T39: 4.261633873 | U39: 4.245145798 | V39: 4.170509338 | W39: 4.726293564 | AF39: 1.512203038 | AG39: 1.879203842 | AH39: 1.512399204 | AI39: 0.6334960938 | AX39: 22 | AY39: 0 | BA39: 0 | BB39: 0.03520418331 | BC39: 0.03520418331 | BD39: 0.05 | BE39: 4.170509338 | BF39: 4.170509338 | BG39: 4 | BH39: 1.879203842 | BI39: 1.879203842 | BJ39: 2.5
A40: 2018-01-23 | B40: 18.26594162 | G40: 0.02737879753 | H40: 0.01569100842 | I40: 0.03071816452 | J40: 0.01299537346 | T40: 4.261633873 | U40: 4.245145798 | V40: 4.170509338 | W40: 4.893808842 | AF40: 1.604246521 | AG40: 1.8628652 | AH40: 1.67531527 | AI40: 0.7138366699 | AX40: 23 | AY40: 0 | BA40: 0 | BB40: 0.03071816452 | BC40: 0.03071816452 | BD40: 0.05 | BE40: 4.170509338 | BF40: 4.170509338 | BG40: 4 | BH40: 1.8628652 | BI40: 1.8628652 | BJ40: 2.5
A41: 2018-01-24 | B41: 0.8338363171 | G41: 0.03285053372 | H41: 0.02080064453 | I41: 0.02456246316 | J41: 0.01382015739 | T41: 4.228914738 | U41: 4.221303463 | V41: 4.130369663 | W41: 4.881415844 | AF41: 1.597854539 | AG41: 1.857475075 | AH41: 1.67531527 | AI41: 0.6887313843 | AX41: 24 | AY41: 0 | BA41: 0 | BB41: 0.03285053372 | BC41: 0.03285053372 | BD41: 0.05 | BE41: 4.130369663 | BF41: 4.130369663 | BG41: 4 | BH41: 1.857475075 | BI41: 1.857475075 | BJ41: 2.5
A42: 2018-01-25 | B42: 23.60390282 | G42: 0.02428082936 | H42: 0.01480587386 | I42: 0.01691812463 | J42: 0.01281432435 | T42: 4.211508274 | U42: 4.221303463 | V42: 4.130369663 | W42: 4.85362339 | AF42: 1.588020507 | AG42: 1.852160321 | AH42: 1.687655979 | AI42: 0.6887313843 | AX42: 25 | AY42: 0 | BA42: 0 | BB42: 0.02428082936 | BC42: 0.02428082936 | BD42: 0.05 | BE42: 4.130369663 | BF42: 4.130369663 | BG42: 4 | BH42: 1.852160321 | BI42: 1.852160321 | BJ42: 2.5
A43: 2018-01-26 | B43: 1.734057426 | G43: 0.03017501533 | H43: 0.01424260717 | I43: 0.02969221398 | J43: 0.01327700634 | T43: 4.191564083 | U43: 4.234616756 | V43: 4.133621693 | W43: 4.852926731 | AF43: 1.588020507 | AG43: 1.832292673 | AH43: 1.687655979 | AI43: 0.7063034058 | AX43: 26 | AY43: 0 | BA43: 0 | BB43: 0.03017501533 | BC43: 0.03017501533 | BD43: 0.05 | BE43: 4.133621693 | BF43: 4.133621693 | BG43: 4 | BH43: 1.832292673 | BI43: 1.832292673 | BJ43: 2.5
A44: 2018-01-27 | B44: 0.3409776688 | G44: 0.02802253328 | H44: 0.02192717791 | I44: 0.03623013571 | J44: 0.01241198927 | T44: 4.191564083 | U44: 4.213904858 | V44: 4.133621693 | W44: 4.837139606 | AF44: 1.562493977 | AG44: 1.832292673 | AH44: 1.694625219 | AI44: 0.7146743774 | AX44: 27 | AY44: 0 | BA44: 0 | BB44: 0.03623013571 | BC44: 0.03623013571 | BD44: 0.05 | BE44: 4.133621693 | BF44: 4.133621693 | BG44: 4 | BH44: 1.832292673 | BI44: 1.832292673 | BJ44: 2.5
A45: 2018-01-28 | B45: 0.3067792952 | G45: 0.03914705291 | H45: 0.01557030808 | I45: 0.0272379797 | J45: 0.01307583973 | T45: 4.210425854 | U45: 4.213098526 | V45: 4.141569138 | W45: 4.822828293 | AF45: 1.562493977 | AG45: 1.861762143 | AH45: 1.694627489 | AI45: 0.7146743774 | AX45: 28 | AY45: 0 | BA45: 0 | BB45: 0.03914705291 | BC45: 0.03914705291 | BD45: 0.05 | BE45: 4.141569138 | BF45: 4.141569138 | BG45: 4 | BH45: 1.861762143 | BI45: 1.861762143 | BJ45: 2.5
A46: 2018-01-29 | B46: 0.3993160427 | G46: 0.03140213341 | H46: 0.01923154294 | I46: 0.02393884584 | J46: 0.01259303931 | T46: 4.210425854 | U46: 4.213098526 | V46: 4.141569138 | W46: 4.822828293 | AF46: 1.623745819 | AG46: 1.844358257 | AH46: 1.651683607 | AI46: 0.6803619385 | AX46: 29 | AY46: 0 | BA46: 0 | BB46: 0.03140213341 | BC46: 0.03140213341 | BD46: 0.05 | BE46: 4.141569138 | BF46: 4.141569138 | BG46: 4 | BH46: 1.844358257 | BI46: 1.844358257 | BJ46: 2.5
A47: 2018-01-30 | B47: 0.9947696924 | G47: 0.02902836539 | H47: 0.0142828403 | I47: 0.02605109662 | J47: 0.01299537346 | T47: 4.204202652 | U47: 4.22047472 | V47: 4.156153202 | W47: 4.851426125 | AF47: 1.623745819 | AG47: 1.83629412 | AH47: 1.651683607 | AI47: 0.6803619385 | AX47: 30 | AY47: 0 | BA47: 0 | BB47: 0.02902836539 | BC47: 0.02902836539 | BD47: 0.05 | BE47: 4.156153202 | BF47: 4.156153202 | BG47: 4 | BH47: 1.83629412 | BI47: 1.83629412 | BJ47: 2.5
A48: 2018-01-31 | B48: 11.07724857 | G48: 0.03488231823 | H48: 0.01719975844 | I48: 0.04003218561 | J48: 0.01261315588 | T48: 4.203474998 | U48: 4.237874985 | V48: 4.145841122 | W48: 4.848370075 | AF48: 1.594802856 | AG48: 1.827960453 | AH48: 1.692187322 | AI48: 0.6920791626 | AX48: 31 | AY48: 0 | BA48: 0 | BB48: 0.04003218561 | BC48: 0.04003218561 | BD48: 0.05 | BE48: 4.145841122 | BF48: 4.145841122 | BG48: 4 | BH48: 1.827960453 | BI48: 1.827960453 | BJ48: 2.5
A49: 2018-02-01 | B49: 1.024944663 | G49: 0.03138201684 | H49: 0.02426071092 | I49: 0.03011466563 | J49: 0.01333735697 | T49: 4.175868988 | U49: 4.237874985 | V49: 4.141324997 | W49: 4.826839924 | AF49: 1.594802856 | AG49: 1.801778045 | AH49: 1.678356595 | AI49: 0.7054672241 | AX49: 32 | AY49: 0 | BA49: 0 | BB49: 0.03138201684 | BC49: 0.03138201684 | BD49: 0.05 | BE49: 4.141324997 | BF49: 4.141324997 | BG49: 4 | BH49: 1.801778045 | BI49: 1.801778045 | BJ49: 2.5
A50: 2018-02-02 | B50: 3.608932018 | G50: 0.05980687961 | H50: 0.01321665663 | I50: 0.03466103226 | J50: 0.01261315588 | T50: 4.175868988 | U50: 4.241111279 | V50: 4.141324997 | W50: 4.821438313 | AF50: 1.550640262 | AG50: 1.738740758 | AH50: 1.678356595 | AI50: 0.7054672241 | AX50: 33 | AY50: 0 | BA50: 0 | BB50: 0.05980687961 | BC50: 0.05980687961 | BD50: 0.05 | BE50: 4.141324997 | BF50: 4.141324997 | BG50: 4 | BH50: 1.738740758 | BI50: 1.738740758 | BJ50: 2.5
A51: 2018-02-03 | B51: 6.012874603 | G51: 0.03065781668 | H51: 0.019734459 | I51: 0.03093944862 | J51: 0.01283444092 | T51: 4.202121735 | U51: 4.216166019 | V51: 4.128398895 | W51: 4.817886829 | AF51: 1.550640262 | AG51: 1.738740758 | AH51: 1.68566334 | AI51: 0.7088150024 | AX51: 34 | AY51: 0 | BA51: 0 | BB51: 0.03093944862 | BC51: 0.03093944862 | BD51: 0.05 | BE51: 4.128398895 | BF51: 4.128398895 | BG51: 4 | BH51: 1.738740758 | BI51: 1.738740758 | BJ51: 2.5
A52: 2018-02-04 | B52: 3.040635824 | G52: 0.03558640182 | H52: 0.01649567485 | I52: 0.02623214573 | J52: 0.01247233991 | T52: 4.182637215 | U52: 4.216166019 | V52: 4.128398895 | W52: 4.817886829 | AF52: 1.601213411 | AG52: 1.797668539 | AH52: 1.669300816 | AI52: 0.6962600708 | AX52: 35 | AY52: 0 | BA52: 0 | BB52: 0.03558640182 | BC52: 0.03558640182 | BD52: 0.05 | BE52: 4.128398895 | BF52: 4.128398895 | BG52: 4 | BH52: 1.797668539 | BI52: 1.797668539 | BJ52: 2.5
A53: 2018-02-05 | B53: 15.14584541 | G53: 0.03176423162 | H53: 0.03942868486 | I53: 0.03359485045 | J53: 0.02080064453 | T53: 4.173316479 | U53: 4.214503765 | V53: 4.13077879 | W53: 4.862013817 | AF53: 1.601213411 | AG53: 1.797668539 | AH53: 1.669300816 | AI53: 0.6920776367 | AX53: 36 | AY53: 0 | BA53: 0 | BB53: 0.03942868486 | BC53: 0.03942868486 | BD53: 0.05 | BE53: 4.13077879 | BF53: 4.13077879 | BG53: 4 | BH53: 1.797668539 | BI53: 1.797668539 | BJ53: 2.5
A54: 2018-02-06 | B54: 0.5180044174 | G54: 0.03480185196 | H54: 0.01567089185 | I54: 0.02438141033 | J54: 0.01243210584 | T54: 4.173316479 | U54: 4.206785679 | V54: 4.13077879 | W54: 4.848521709 | AF54: 1.604336186 | AG54: 1.82094912 | AH54: 1.674785983 | AI54: 0.6920776367 | AX54: 37 | AY54: 0 | BA54: 0 | BB54: 0.03480185196 | BC54: 0.03480185196 | BD54: 0.05 | BE54: 4.13077879 | BF54: 4.13077879 | BG54: 4 | BH54: 1.82094912 | BI54: 1.82094912 | BJ54: 2.5
A55: 2018-02-07 | B55: 0.3087909818 | G55: 0.01800442487 | H55: 0.01315630693 | I55: 0.01516797394 | J55: 0.01247233991 | T55: 4.188477993 | U55: 4.195625305 | V55: 4.104055405 | W55: 4.848521709 | AF55: 1.600920921 | AG55: 1.855847228 | AH55: 1.674785983 | AI55: 0.6979370117 | AX55: 38 | AY55: 0 | BA55: 0 | BB55: 0.01800442487 | BC55: 0.01800442487 | BD55: 0.05 | BE55: 4.104055405 | BF55: 4.104055405 | BG55: 4 | BH55: 1.855847228 | BI55: 1.855847228 | BJ55: 2.5
A56: 2018-02-08 | B56: 0.59545362 | G56: 0.05127741024 | H56: 0.01448400691 | I56: 0.02589016221 | J56: 0.01231140643 | T56: 4.175098419 | U56: 4.195625305 | V56: 4.104055405 | W56: 4.810881138 | AF56: 1.547232926 | AG56: 1.784533526 | AH56: 1.716846916 | AI56: 0.6979370117 | AX56: 39 | AY56: 0 | BA56: 0 | BB56: 0.05127741024 | BC56: 0.05127741024 | BD56: 0.05 | BE56: 4.104055405 | BF56: 4.104055405 | BG56: 4 | BH56: 1.784533526 | BI56: 1.784533526 | BJ56: 2.5
A57: 2018-02-09 | B57: 0.2886742949 | G57: 0.03964997083 | H57: 0.01388050709 | I57: 0.03106014803 | J57: 0.01269362308 | T57: 4.170211792 | U57: 4.216639042 | V57: 4.114022255 | W57: 4.810881138 | AF57: 1.547232926 | AG57: 1.784533526 | AH57: 1.691900218 | AI57: 0.6920791626 | AX57: 40 | AY57: 0 | BA57: 0 | BB57: 0.03964997083 | BC57: 0.03964997083 | BD57: 0.05 | BE57: 4.114022255 | BF57: 4.114022255 | BG57: 4 | BH57: 1.784533526 | BI57: 1.784533526 | BJ57: 2.5
A58: 2018-02-10 | B58: 0.9122912884 | G58: 0.04138000309 | H58: 0.02108227648 | I58: 0.04302956909 | J58: 0.01263327338 | T58: 4.156596661 | U58: 4.235271931 | V58: 4.124002934 | W58: 4.824384212 | AF58: 1.626576474 | AG58: 1.733227898 | AH58: 1.590440369 | AI58: 0.6920791626 | AX58: 41 | AY58: 0 | BA58: 0 | BB58: 0.04302956909 | BC58: 0.04302956909 | BD58: 0.05 | BE58: 4.124002934 | BF58: 4.124002934 | BG58: 4 | BH58: 1.733227898 | BI58: 1.733227898 | BJ58: 2.5
A59: 2018-02-11 | B59: 0.3319251537 | G59: 0.03960973769 | H59: 0.01349829044 | I59: 0.03846308589 | J59: 0.01241198927 | T59: 4.156596661 | U59: 4.203513145 | V59: 4.116291046 | W59: 4.824384212 | AF59: 1.545135498 | AG59: 1.733227898 | AH59: 1.590440369 | AI59: 0.6795257568 | AX59: 42 | AY59: 0 | BA59: 0 | BB59: 0.03960973769 | BC59: 0.03960973769 | BD59: 0.05 | BE59: 4.116291046 | BF59: 4.116291046 | BG59: 4 | BH59: 1.733227898 | BI59: 1.733227898 | BJ59: 2.5
A60: 2018-02-12 | B60: 0.283645153 | G60: 0.05246429145 | H60: 0.01392074022 | I60: 0.02639308013 | J60: 0.01267350651 | T60: 4.162581921 | U60: 4.17328167 | V60: 4.105234146 | W60: 4.816524506 | AF60: 1.545135498 | AG60: 1.839469029 | AH60: 1.722395463 | AI60: 0.6795257568 | AX60: 43 | AY60: 0 | BA60: 0 | BB60: 0.05246429145 | BC60: 0.05246429145 | BD60: 0.05 | BE60: 4.105234146 | BF60: 4.105234146 | BG60: 4 | BH60: 1.839469029 | BI60: 1.839469029 | BJ60: 2.5
A61: 2018-02-13 | B61: 0.362100184 | G61: 0.03930798545 | H61: 0.01555019151 | I61: 0.02317441069 | J61: 0.01241198927 | T61: 4.162581921 | U61: 4.16493082 | V61: 4.105234146 | W61: 4.813409805 | AF61: 1.612554278 | AG61: 1.895731712 | AH61: 1.636110389 | AI61: 0.7355941772 | AX61: 44 | AY61: 0 | BA61: 0 | BB61: 0.03930798545 | BC61: 0.03930798545 | BD61: 0.05 | BE61: 4.105234146 | BF61: 4.105234146 | BG61: 4 | BH61: 1.895731712 | BI61: 1.895731712 | BJ61: 2.5
A62: 2018-02-14 | B62: 6.155703068 | G62: 0.04242607206 | H62: 0.01730034128 | I62: 0.0408770889 | J62: 0.02023737691 | T62: 4.141784191 | U62: 4.16493082 | V62: 4.093190193 | W62: 4.808172226 | AF62: 1.612554278 | AG62: 1.85781606 | AH62: 1.636110389 | AI62: 0.7163467407 | AX62: 45 | AY62: 0 | BA62: 0 | BB62: 0.04242607206 | BC62: 0.04242607206 | BD62: 0.05 | BE62: 4.093190193 | BF62: 4.093190193 | BG62: 4 | BH62: 1.85781606 | BI62: 1.85781606 | BJ62: 2.5
A63: 2018-02-15 | B63: 2.144437551 | G63: 0.06135586277 | H63: 0.02468316257 | I63: 0.04413599148 | J63: 0.05328907818 | T63: 4.117690086 | U63: 4.184902668 | V63: 4.087491989 | W63: 4.808172226 | AF63: 1.647278635 | AG63: 1.856448115 | AH63: 1.712902407 | AI63: 0.713835144 | AX63: 46 | AY63: 0 | BA63: 0 | BB63: 0.06135586277 | BC63: 0.06135586277 | BD63: 0.05 | BE63: 4.087491989 | BF63: 4.087491989 | BG63: 4 | BH63: 1.856448115 | BI63: 1.856448115 | BJ63: 2.5
A64: 2018-02-16 | B64: 0.7352645397 | G64: 0.02870649844 | H64: 0.02090122737 | I64: 0.01345805638 | J64: 0.02623214573 | T64: 4.117690086 | U64: 4.18098402 | V64: 4.087491989 | W64: 4.798455238 | AF64: 1.613595452 | AG64: 1.851121521 | AH64: 1.712902407 | AI64: 0.713835144 | AX64: 47 | AY64: 0 | BA64: 0 | BB64: 0.02870649844 | BC64: 0.02870649844 | BD64: 0.05 | BE64: 4.087491989 | BF64: 4.087491989 | BG64: 4 | BH64: 1.851121521 | BI64: 1.851121521 | BJ64: 2.5
A65: 2018-02-17 | B65: 0.3701468408 | G65: 0.02329511195 | H65: 0.01919130981 | I65: 0.04473948851 | J65: 0.02440152876 | T65: 4.142326355 | U65: 4.18098402 | V65: 4.09130764 | W65: 4.777754784 | AF65: 1.473688032 | AG65: 1.617917148 | AH65: 1.630582226 | AI65: 0.723878479 | AX65: 48 | AY65: 0 | BA65: 0 | BB65: 0.04473948851 | BC65: 0.04473948851 | BD65: 0.05 | BE65: 4.09130764 | BF65: 4.09130764 | BG65: 4 | BH65: 1.630582226 | BI65: 1.630582226 | BJ65: 2.5
A66: 2018-02-18 | B66: 3.757795334 | H66: 0.02389861271 | I66: 0.02651377954 | J66: 0.02595051378 | T66: 4.142443657 | U66: 4.227643013 | V66: 4.126528263 | W66: 4.777754784 | AF66: 1.473688032 | AG66: 1.617917148 | AH66: 1.630582226 | AI66: 0.7305740356 | AX66: 49 | AY66: 0 | BA66: 0 | BB66: 0.02651377954 | BC66: 0.02651377954 | BD66: 0.05 | BE66: 4.126528263 | BF66: 4.126528263 | BG66: 4 | BH66: 1.630582226 | BI66: 1.630582226 | BJ66: 2.5
A67: 2018-02-19 | B67: 1.100382209 | G67: 0.02102192678 | I67: 0.02442164347 | J67: 0.02403942868 | T67: 4.142443657 | U67: 4.212432384 | V67: 4.222298622 | W67: 4.780779362 | AF67: 1.559880695 | AG67: 1.668267059 | AH67: 1.630583393 | AI67: 0.728062439 | AX67: 50 | AY67: 0 | BA67: 0 | BB67: 0.02442164347 | BC67: 0.02442164347 | BD67: 0.05 | BE67: 4.142443657 | BF67: 4.142443657 | BG67: 4 | BH67: 1.668267059 | BI67: 1.668267059 | BJ67: 2.5
A68: 2018-02-20 | B68: 2.743914604 | G68: 0.01436330751 | H68: 0.03932810202 | I68: 0.06867833436 | J68: 0.02212834358 | T68: 4.246275425 | U68: 4.141445637 | V68: 4.20046711 | W68: 4.778559208 | AF68: 1.72908783 | AG68: 1.668267059 | AH68: 1.756065005 | AI68: 0.728062439 | AX68: 51 | AY68: 0 | BA68: 0 | BB68: 0.06867833436 | BC68: 0.06867833436 | BD68: 0.05 | BE68: 4.141445637 | BF68: 4.141445637 | BG68: 4 | BH68: 1.756065005 | BI68: 1.756065005 | BJ68: 2.5
A69: 2018-02-21 | B69: 0.6718969941 | G69: 0.01665660925 | H69: 0.01655602455 | I69: 0.02482397854 | J69: 0.02313417755 | T69: 4.235069752 | U69: 4.141445637 | V69: 4.183822155 | W69: 4.756540775 | AF69: 1.72908783 | AG69: 1.935659104 | AH69: 1.784350504 | AI69: 0.7330841064 | AX69: 52 | AY69: 0 | BA69: 0 | BB69: 0.02482397854 | BC69: 0.02482397854 | BD69: 0.05 | BE69: 4.141445637 | BF69: 4.141445637 | BG69: 4 | BH69: 1.935659104 | BI69: 1.935659104 | BJ69: 2.5
A70: 2018-02-22 | B70: 1.53087914 | G70: 0.04828002304 | H70: 0.01726010814 | I70: 0.02414001152 | J70: 0.02432106249 | T70: 4.235069752 | U70: 4.264304161 | V70: 4.183822155 | W70: 4.756540775 | AF70: 1.518177536 | AG70: 2.008448315 | AH70: 1.750176528 | AI70: 0.7531692505 | AX70: 53 | AY70: 0 | BA70: 0 | BB70: 0.04828002304 | BC70: 0.04828002304 | BD70: 0.05 | BE70: 4.183822155 | BF70: 4.183822155 | BG70: 4 | BH70: 2.008448315 | BI70: 2.008448315 | BJ70: 2.5
A71: 2018-02-23 | B71: 6.603299141 | G71: 0.06958358735 | H71: 0.02198752947 | I71: 0.02333534509 | J71: 0.02375779301 | T71: 4.254627228 | U71: 4.237333298 | V71: 4.182214737 | W71: 4.887674332 | AF71: 1.518177536 | AG71: 2.008448315 | AH71: 1.750176528 | AI71: 0.7431259155 | AX71: 54 | AY71: 0 | BA71: 0 | BB71: 0.06958358735 | BC71: 0.06958358735 | BD71: 0.05 | BE71: 4.182214737 | BF71: 4.182214737 | BG71: 4 | BH71: 2.008448315 | BI71: 2.008448315 | BJ71: 2.5
A72: 2018-02-24 | B72: 26.45946503 | G72: 0.05238382518 | H72: 0.01812512614 | I72: 0.01832629181 | J72: 0.02949104831 | T72: 4.218069077 | U72: 4.237333298 | V72: 4.182214737 | W72: 4.863246918 | AF72: 1.695594201 | AG72: 1.987792389 | AH72: 1.760228044 | AI72: 0.7422897339 | AX72: 55 | AY72: 0 | BA72: 0 | BB72: 0.05238382518 | BC72: 0.05238382518 | BD72: 0.05 | BE72: 4.182214737 | BF72: 4.182214737 | BG72: 4 | BH72: 1.987792389 | BI72: 1.987792389 | BJ72: 2.5
A73: 2018-02-25 | B73: 3.748742819 | G73: 0.02526654676 | H73: 0.01679742523 | I73: 0.01719975844 | J73: 0.02420036122 | T73: 4.188864231 | U73: 4.227154732 | V73: 4.130994797 | W73: 4.843405724 | AF73: 1.660333614 | AG73: 1.893902779 | AH73: 1.760228044 | AI73: 0.7280609131 | AX73: 56 | AY73: 0 | BA73: 0 | BB73: 0.02526654676 | BC73: 0.02526654676 | BD73: 0.05 | BE73: 4.130994797 | BF73: 4.130994797 | BG73: 4 | BH73: 1.893902779 | BI73: 1.893902779 | BJ73: 2.5
A74: 2018-02-26 | B74: 24.9919529 | G74: 0.02092134394 | H74: 0.01802454144 | I74: 0.03824180365 | J74: 0.02301347815 | T74: 4.186152935 | U74: 4.193254471 | V74: 4.130994797 | W74: 4.843405724 | AF74: 1.660333614 | AG74: 1.893902779 | AH74: 1.801327229 | AI74: 0.7280609131 | AX74: 57 | AY74: 0 | BA74: 0 | BB74: 0.03824180365 | BC74: 0.03824180365 | BD74: 0.05 | BE74: 4.130994797 | BF74: 4.130994797 | BG74: 4 | BH74: 1.893902779 | BI74: 1.893902779 | BJ74: 2.5
A75: 2018-02-27 | B75: 4.231543064 | G75: 0.04200362042 | H75: 0.02281231247 | I75: 0.02096157707 | J75: 0.02305371128 | T75: 4.171202183 | U75: 4.193254471 | V75: 4.141392708 | W75: 4.841041088 | AF75: 1.677568876 | AG75: 1.960991185 | AH75: 1.787518311 | AI75: 0.7314102173 | AX75: 58 | AY75: 0 | BA75: 0 | BB75: 0.04200362042 | BC75: 0.04200362042 | BD75: 0.05 | BE75: 4.141392708 | BF75: 4.141392708 | BG75: 4 | BH75: 1.960991185 | BI75: 1.960991185 | BJ75: 2.5
A76: 2018-02-28 | B76: 1.446389079 | G76: 0.02794206329 | H76: 0.02957151458 | I76: 0.01925165951 | J76: 0.04550392181 | T76: 4.168628216 | U76: 4.219668865 | V76: 4.141392708 | W76: 4.832591057 | AF76: 1.706941595 | AG76: 1.686940874 | AH76: 1.721946716 | AI76: 0.7364318848 | AX76: 59 | AY76: 0 | BA76: 0 | BB76: 0.04550392181 | BC76: 0.04550392181 | BD76: 0.05 | BE76: 4.141392708 | BF76: 4.141392708 | BG76: 4 | BH76: 1.721946716 | BI76: 1.721946716 | BJ76: 2.5
A77: 2018-03-01 | B77: 1.05713141 | G77: 0.02786159702 | H77: 0.01721987501 | J77: 0.02228927799 | T77: 4.168628216 | U77: 4.202861786 | V77: 4.162801266 | W77: 4.832591057 | AF77: 1.701464511 | AG77: 1.686940874 | AH77: 1.721946716 | AI77: 0.7289001465 | AX77: 60 | AY77: 0 | BA77: 0 | BB77: 0.02786159702 | BC77: 0.02786159702 | BD77: 0.05 | BE77: 4.162801266 | BF77: 4.162801266 | BG77: 4 | BH77: 1.721946716 | BI77: 1.721946716 | BJ77: 2.5
A78: 2018-03-02 | B78: 5.735264778 | G78: 0.03820157051 | H78: 0.01583182439 | I78: 0.05204184353 | J78: 0.0219070632 | T78: 4.176243305 | U78: 4.199394226 | V78: 4.162801266 | W78: 4.837174416 | AF78: 1.68950295 | AG78: 1.997394202 | AH78: 1.534501983 | AI78: 0.7272262573 | AX78: 61 | AY78: 0 | BA78: 0 | BB78: 0.05204184353 | BC78: 0.05204184353 | BD78: 0.05 | BE78: 4.162801266 | BF78: 4.162801266 | BG78: 4 | BH78: 1.997394202 | BI78: 1.997394202 | BJ78: 2.5
A79: 2018-03-03 | B79: 3.228726625 | G79: 0.01999597624 | H79: 0.01750150882 | I79: 0.03385636583 | J79: 0.02158519439 | T79: 4.168929577 | U79: 4.197826862 | V79: 4.171826363 | W79: 4.820398331 | AF79: 1.68950295 | AG79: 1.997394202 | AH79: 1.534501983 | AI79: 0.7272262573 | AX79: 62 | AY79: 0 | BA79: 0 | BB79: 0.03385636583 | BC79: 0.03385636583 | BD79: 0.05 | BE79: 4.168929577 | BF79: 4.168929577 | BG79: 4 | BH79: 1.997394202 | BI79: 1.997394202 | BJ79: 2.5
A80: 2018-03-04 | B80: 3.229732513 | G80: 0.03184469789 | H80: 0.0189700257 | I80: 0.02409977838 | J80: 0.02506537922 | T80: 4.153485298 | U80: 4.192115784 | V80: 4.152815342 | W80: 4.820398331 | AF80: 1.711624861 | AG80: 2.000243243 | AH80: 1.766925763 | AI80: 0.7389419556 | AX80: 63 | AY80: 0 | BA80: 0 | BB80: 0.03184469789 | BC80: 0.03184469789 | BD80: 0.05 | BE80: 4.152815342 | BF80: 4.152815342 | BG80: 4 | BH80: 2.000243243 | BI80: 2.000243243 | BJ80: 2.5
A81: 2018-03-05 | B81: 5.698048592 | G81: 0.04870247468 | H81: 0.0188493263 | I81: 0.02192717791 | J81: 0.0219070632 | T81: 4.139919758 | U81: 4.153226376 | V81: 4.133487225 | W81: 4.812330246 | AF81: 1.737779379 | AG81: 2.011547795 | AH81: 1.754291676 | AI81: 0.7355926514 | AX81: 64 | AY81: 0 | BA81: 0 | BB81: 0.04870247468 | BC81: 0.04870247468 | BD81: 0.05 | BE81: 4.133487225 | BF81: 4.133487225 | BG81: 4 | BH81: 2.011547795 | BI81: 2.011547795 | BJ81: 2.5
A82: 2018-03-06 | B82: 3.927781105 | G82: 0.06214041263 | H82: 0.02035807632 | I82: 0.01997585967 | J82: 0.02906859852 | T82: 4.139919758 | U82: 4.153226376 | V82: 4.133487225 | W82: 4.812330246 | AF82: 1.712561627 | AG82: 1.990189986 | AH82: 1.714430212 | AI82: 0.7046310425 | AX82: 65 | AY82: 0 | BA82: =$G$5 -> 0 | BB82: 0.06214041263 | BC82: 0.06214041263 | BD82: =$G$6 -> 0.05 | BE82: 4.133487225 | BF82: 4.133487225 | BG82: 4 | BH82: 1.990189986 | BI82: 1.990189986 | BJ82: 2.5
A83: =A82+1 -> 2018-03-07 | B83: 49.98893356 | G83: 0.02584992908 | H83: 0.02979279682 | I83: 0.03001408093 | J83: 0.03049688414 | T83: 4.141759872 | U83: 4.163272381 | V83: 4.107046127 | W83: 4.797123909 | AF83: 1.52873187 | AG83: 1.975415882 | AH83: 1.714430212 | AI83: 0.7046310425 | AX83: =AX82+1 -> 66 | AY83: =MAX(C83:F83) -> 0 | BA83: 0 | BB83: =MAX(G83:R83) -> 0.03049688414 | BC83: 0.03049688414 | BD83: 0.05 | BE83: =MIN(T83:AE83) -> 4.107046127 | BF83: 4.107046127 | BG83: =$G$8 -> 4 | BH83: =MAX(AF83:AQ83) -> 1.975415882 | BI83: 1.975415882 | BJ83: =$G$9 -> 2.5
A84: 2018-03-08 | B84: 42.73788071 | G84: 0.03057735041 | H84: 0.02001609281 | I84: 0.02973244898 | J84: 0.02669482864 | T84: 4.148090839 | U84: 4.130256176 | V84: 4.107046127 | W84: 4.797123909 | AF84: 1.52873187 | AG84: 1.975415882 | AH84: 1.751934549 | AI84: 0.7422897339 | AX84: 67 | AY84: 0 | BA84: 0 | BB84: 0.03057735041 | BC84: 0.03057735041 | BD84: 0.05 | BE84: 4.107046127 | BF84: 4.107046127 | BG84: 4 | BH84: 1.975415882 | BI84: 1.975415882 | BJ84: 2.5
A85: 2018-03-09 | B85: 49.98893356 | G85: 0.01927177608 | H85: 0.02063971013 | I85: 0.04604707286 | J85: 0.02339569479 | T85: 4.148090839 | U85: 4.130256176 | V85: 4.123795509 | AF85: 1.682335765 | AG85: 1.994673101 | AH85: 1.549169893 | AI85: 0.7222045898 | AX85: 68 | AY85: 0 | BA85: 0 | BB85: 0.04604707286 | BC85: 0.04604707286 | BD85: 0.05 | BE85: 4.123795509 | BF85: 4.123795509 | BG85: 4 | BH85: 1.994673101 | BI85: 1.994673101 | BJ85: 2.5
A86: 2018-03-10 | B86: 49.98994064 | G86: 0.02595051378 | H86: 0.02279219404 | I86: 0.0368135199 | J86: 0.02341581136 | T86: 4.156814575 | U86: 4.154611111 | V86: 4.125874519 | W86: 4.819833279 | AF86: 1.638537421 | AG86: 1.994673101 | AH86: 1.549169893 | AI86: 0.7222045898 | AX86: 69 | AY86: 0 | BA86: 0 | BB86: 0.0368135199 | BC86: 0.0368135199 | BD86: 0.05 | BE86: 4.125874519 | BF86: 4.125874519 | BG86: 4 | BH86: 1.994673101 | BI86: 1.994673101 | BJ86: 2.5
A87: 2018-03-11 | B87: 10.61959362 | G87: 0.02701669745 | H87: 0.01810500957 | I87: 0.04508147389 | J87: 0.02228927799 | T87: 4.138574123 | U87: 4.154611111 | V87: 4.109109879 | W87: 4.816011906 | AF87: 1.638537421 | AG87: 2.037357677 | AH87: 1.760453015 | AI87: 0.7188568115 | AX87: 70 | AY87: 0 | BA87: 0 | BB87: 0.04508147389 | BC87: 0.04508147389 | BD87: 0.05 | BE87: 4.109109879 | BF87: 4.109109879 | BG87: 4 | BH87: 2.037357677 | BI87: 2.037357677 | BJ87: 2.5
A88: 2018-03-12 | B88: 0.2363709509 | G88: 0.02669482864 | H88: 0.01732045785 | I88: 0.03411788493 | J88: 0.02355662733 | T88: 4.138574123 | U88: 4.166797638 | V88: 4.109109879 | W88: 4.794428825 | AF88: 1.671316964 | AG88: 2.008446433 | AH88: 1.769346899 | AI88: 0.7188568115 | AX88: 71 | AY88: 0 | BA88: 0 | BB88: 0.03411788493 | BC88: 0.03411788493 | BD88: 0.05 | BE88: 4.109109879 | BF88: 4.109109879 | BG88: 4 | BH88: 2.008446433 | BI88: 2.008446433 | BJ88: 2.5
A89: 2018-03-13 | B89: 0.2283242792 | G89: 0.02317441069 | H89: 0.0198350437 | I89: 0.03055723198 | J89: 0.02114262804 | T89: 4.13982296 | U89: 4.156242847 | V89: 4.0996418 | W89: 4.794428825 | AF89: 1.671316964 | AG89: 2.008446433 | AH89: 1.788555277 | AI89: 0.7447998047 | AX89: 72 | AY89: 0 | BA89: 0 | BB89: 0.03055723198 | BC89: 0.03055723198 | BD89: 0.05 | BE89: 4.0996418 | BF89: 4.0996418 | BG89: 4 | BH89: 2.008446433 | BI89: 2.008446433 | BJ89: 2.5
A90: 2018-03-14 | B90: 0.4395493865 | G90: 0.03136190027 | H90: 0.01965399273 | I90: 0.03886542097 | J90: 0.02456246316 | T90: 4.136995792 | U90: 4.156242847 | V90: 4.0996418 | W90: 4.798981667 | AF90: 1.708800777 | AG90: 2.015517329 | AH90: 1.759224216 | AI90: 0.7473098755 | AX90: 73 | AY90: 0 | BA90: 0 | BB90: 0.03886542097 | BC90: 0.03886542097 | BD90: 0.05 | BE90: 4.0996418 | BF90: 4.0996418 | BG90: 4 | BH90: 2.015517329 | BI90: 2.015517329 | BJ90: 2.5
A91: 2018-03-15 | B91: 1.776302576 | G91: 0.04296922311 | H91: 0.01643532515 | I91: 0.0461476557 | J91: 0.02218869515 | T91: 4.136995792 | U91: 4.146546841 | V91: 4.10512352 | W91: 4.79907608 | AF91: 1.662520659 | AG91: 2.015517329 | AH91: 1.759224216 | AI91: 0.7397781372 | AX91: 74 | AY91: 0 | BA91: 0 | BB91: 0.0461476557 | BC91: 0.0461476557 | BD91: 0.05 | BE91: 4.10512352 | BF91: 4.10512352 | BG91: 4 | BH91: 2.015517329 | BI91: 2.015517329 | BJ91: 2.5
A92: 2018-03-16 | B92: 0.1116475537 | G92: 0.04001206905 | H92: 0.02186682634 | I92: 0.03560651839 | J92: 0.02383825928 | T92: 4.122560501 | U92: 4.146546841 | V92: 4.100237846 | W92: 4.805435181 | AF92: 1.662520659 | AG92: 1.985780398 | AH92: 1.765877492 | AI92: 0.7397781372 | AX92: 75 | AY92: 0 | BA92: 0 | BB92: 0.04001206905 | BC92: 0.04001206905 | BD92: 0.05 | BE92: 4.100237846 | BF92: 4.100237846 | BG92: 4 | BH92: 1.985780398 | BI92: 1.985780398 | BJ92: 2.5
A93: 2018-03-17 | B93: 0.1136592254 | G93: 0.02480386198 | H93: 0.02339569479 | I93: 0.0330516994 | J93: 0.02255079523 | T93: 4.110806942 | U93: 4.128148079 | V93: 4.088667393 | W93: 4.803799629 | AF93: 1.740345425 | AG93: 1.985780398 | AH93: 1.765877492 | AI93: 0.7506561279 | AX93: 76 | AY93: 0 | BA93: 0 | BB93: 0.0330516994 | BC93: 0.0330516994 | BD93: 0.05 | BE93: 4.088667393 | BF93: 4.088667393 | BG93: 4 | BH93: 1.985780398 | BI93: 1.985780398 | BJ93: 2.5
A94: 2018-03-18 | B94: 0.1448400617 | G94: 0.05596459284 | H94: 0.01730034128 | I94: 0.03568698466 | J94: 0.02041842788 | T94: 4.098154068 | U94: 4.128148079 | V94: 4.088667393 | W94: 4.796323776 | AF94: 1.74831804 | AG94: 1.971571324 | AH94: 1.779705471 | AI94: 0.7556793213 | AX94: 77 | AY94: 0 | BA94: 0 | BB94: 0.05596459284 | BC94: 0.05596459284 | BD94: 0.05 | BE94: 4.088667393 | BF94: 4.088667393 | BG94: 4 | BH94: 1.971571324 | BI94: 1.971571324 | BJ94: 2.5
A95: 2018-03-19 | B95: 0.1770267487 | G95: 0.02737879753 | H95: 0.05151880905 | I95: 0.03325286508 | J95: 0.02504526451 | T95: 4.098154068 | U95: 4.146364212 | V95: 4.091549397 | W95: 4.796323776 | AF95: 1.716611446 | AG95: 1.971571324 | AH95: 1.7668301 | AI95: 0.7540054321 | AX95: 78 | AY95: 0 | BA95: 0 | BB95: 0.05151880905 | BC95: 0.05151880905 | BD95: 0.05 | BE95: 4.091549397 | BF95: 4.091549397 | BG95: 4 | BH95: 1.971571324 | BI95: 1.971571324 | BJ95: 2.5
A96: 2018-03-20 | B96: 0.1740092486 | G96: 0.03375578299 | H96: 0.02226916142 | I96: 0.0151880905 | J96: 0.02414001152 | T96: 4.118319511 | U96: 4.146364212 | V96: 4.090973377 | W96: 4.77864933 | AF96: 1.716611446 | AG96: 2.001473745 | AH96: 1.7668301 | AI96: 0.7540054321 | AX96: 79 | AY96: 0 | BA96: 0 | BB96: 0.03375578299 | BC96: 0.03375578299 | BD96: 0.05 | BE96: 4.090973377 | BF96: 4.090973377 | BG96: 4 | BH96: 2.001473745 | BI96: 2.001473745 | BJ96: 2.5
A97: 2018-03-21 | B97: 2.389861345 | G97: 0.02204787731 | H97: 0.02023737691 | I97: 0.04819955677 | J97: 0.05469724536 | T97: 4.118319511 | U97: 4.166764736 | V97: 4.090973377 | W97: 4.77864933 | AF97: 1.575554108 | AG97: 1.766500522 | AH97: 1.703782082 | AI97: 0.7364303589 | AX97: 80 | AY97: 0 | BA97: 0 | BB97: 0.05469724536 | BC97: 0.05469724536 | BD97: 0.05 | BE97: 4.090973377 | BF97: 4.090973377 | BG97: 4 | BH97: 1.766500522 | BI97: 1.766500522 | BJ97: 2.5
A98: 2018-03-22 | B98: 0.920337975 | H98: 0.03285053372 | I98: 0.0208811108 | J98: 0.03608931974 | T98: 4.119989395 | U98: 4.177841187 | V98: 4.116221905 | W98: 4.779650688 | AF98: 1.575554108 | AG98: 1.766500522 | AH98: 1.703782082 | AI98: 0.7305725098 | AX98: 81 | AY98: 0 | BA98: 0 | BB98: 0.03608931974 | BC98: 0.03608931974 | BD98: 0.05 | BE98: 4.116221905 | BF98: 4.116221905 | BG98: 4 | BH98: 1.766500522 | BI98: 1.766500522 | BJ98: 2.5
A99: 2018-03-23 | B99: 1.226111412 | G99: 0.03168376535 | I99: 0.03341380134 | J99: 0.02611144632 | T99: 4.105386257 | U99: 4.177841187 | V99: 4.181026459 | W99: 4.760715961 | AF99: 1.630081249 | AG99: 1.777826354 | AH99: 1.834384155 | AI99: 0.7255508423 | AX99: 82 | AY99: 0 | BA99: 0 | BB99: 0.03341380134 | BC99: 0.03341380134 | BD99: 0.05 | BE99: 4.105386257 | BF99: 4.105386257 | BG99: 4 | BH99: 1.834384155 | BI99: 1.834384155 | BJ99: 2.5
A100: 2018-03-24 | B100: 0.9927580357 | G100: 0.02570911497 | H100: 0.02570911497 | I100: 0.05085495859 | J100: 0.02677529491 | T100: 4.105386257 | U100: 4.100978851 | V100: 4.143600464 | W100: 4.758703709 | AF100: 1.686338749 | AG100: 1.777826354 | AH100: 1.834384155 | AI100: 0.7255508423 | AX100: 83 | AY100: 0 | BA100: 0 | BB100: 0.05085495859 | BC100: 0.05085495859 | BD100: 0.05 | BE100: 4.100978851 | BF100: 4.100978851 | BG100: 4 | BH100: 1.834384155 | BI100: 1.834384155 | BJ100: 2.5
A101: 2018-03-25 | B101: 4.258700371 | G101: 0.02228927799 | H101: 0.01681754179 | I101: 0.03319251537 | J101: 0.05133776367 | T101: 4.207865238 | U101: 4.100978851 | V101: 4.143600464 | W101: 4.736449718 | AF101: 1.646087722 | AG101: 2.156585788 | AH101: 1.838742048 | AI101: 0.7263885498 | AX101: 84 | AY101: 0 | BA101: 0 | BB101: 0.05133776367 | BC101: 0.05133776367 | BD101: 0.05 | BE101: 4.100978851 | BF101: 4.100978851 | BG101: 4 | BH101: 2.156585788 | BI101: 2.156585788 | BJ101: 2.5
A102: 2018-03-26 | B102: 5.563266754 | G102: 0.03377589956 | H102: 0.03264936805 | I102: 0.0368738696 | J102: 0.02414001152 | T102: 4.178585529 | U102: 4.176175117 | V102: 4.157512188 | W102: 4.736449718 | AF102: 1.646087722 | AG102: 2.014252767 | AH102: 1.678043029 | AI102: 0.7548416138 | AX102: 85 | AY102: 0 | BA102: 0 | BB102: 0.0368738696 | BC102: 0.0368738696 | BD102: 0.05 | BE102: 4.157512188 | BF102: 4.157512188 | BG102: 4 | BH102: 2.014252767 | BI102: 2.014252767 | BJ102: 2.5
A103: 2018-03-27 | B103: 0.5270569324 | G103: 0.02502514608 | H103: 0.02472339571 | I103: 0.0338764824 | J103: 0.02560853027 | T103: 4.178585529 | U103: 4.159926891 | V103: 4.12040472 | W103: 4.796508789 | AF103: 1.801293795 | AG103: 2.014252767 | AH103: 1.678043029 | AI103: 0.8017044067 | AX103: 86 | AY103: 0 | BA103: 0 | BB103: 0.0338764824 | BC103: 0.0338764824 | BD103: 0.05 | BE103: 4.12040472 | BF103: 4.12040472 | BG103: 4 | BH103: 2.014252767 | BI103: 2.014252767 | BJ103: 2.5
A104: 2018-03-28 | B104: 9.168175697 | G104: 0.0292898789 | H104: 0.02804264799 | I104: 0.0369342193 | J104: 0.02212834358 | T104: 4.182068348 | U104: 4.159729481 | V104: 4.12040472 | W104: 4.796508789 | AF104: 1.792894999 | AG104: 2.221931925 | AH104: 1.896494788 | AI104: 0.7858062744 | AX104: 87 | AY104: 0 | BA104: 0 | BB104: 0.0369342193 | BC104: 0.0369342193 | BD104: 0.05 | BE104: 4.12040472 | BF104: 4.12040472 | BG104: 4 | BH104: 2.221931925 | BI104: 2.221931925 | BJ104: 2.5
A105: 2018-03-29 | B105: 0.3540534973 | G105: 0.03323274851 | H105: 0.030456651 | I105: 0.05274592713 | J105: 0.02122309431 | T105: 4.182068348 | U105: 4.158326626 | V105: 4.143532276 | W105: 4.803458214 | AF105: 1.78276549 | AG105: 2.201037472 | AH105: 1.812220606 | AI105: 0.7715789795 | AX105: 88 | AY105: 0 | BA105: 0 | BB105: 0.05274592713 | BC105: 0.05274592713 | BD105: 0.05 | BE105: 4.143532276 | BF105: 4.143532276 | BG105: 4 | BH105: 2.201037472 | BI105: 2.201037472 | BJ105: 2.5
A106: 2018-03-30 | B106: 0.3993160427 | G106: 0.02804264799 | H106: 0.0206598267 | I106: 0.0416415222 | J106: 0.02456246316 | T106: 4.177362442 | U106: 4.158326626 | V106: 4.162865639 | W106: 4.803458214 | AF106: 1.78276549 | AG106: 2.083940306 | AH106: 1.766632174 | AI106: 0.7715789795 | AX106: 89 | AY106: 0 | BA106: 0 | BB106: 0.0416415222 | BC106: 0.0416415222 | BD106: 0.05 | BE106: 4.158326626 | BF106: 4.158326626 | BG106: 4 | BH106: 2.083940306 | BI106: 2.083940306 | BJ106: 2.5
A107: 2018-03-31 | B107: 0.7795212269 | G107: 0.02182659693 | H107: 0.02063971013 | I107: 0.04399517179 | J107: 0.0264735464 | T107: 4.177362442 | U107: 4.17036438 | V107: 4.121547699 | W107: 4.795065403 | AF107: 1.78360195 | AG107: 2.083940306 | AH107: 1.766632174 | AI107: 0.7816238403 | AX107: 90 | AY107: 0 | BA107: 0 | BB107: 0.04399517179 | BC107: 0.04399517179 | BD107: 0.05 | BE107: 4.121547699 | BF107: 4.121547699 | BG107: 4 | BH107: 2.083940306 | BI107: 2.083940306 | BJ107: 2.5
A108: 2018-04-01 | B108: 0.2102192789 | G108: 0.02639308013 | H108: 0.02623214573 | I108: 0.03828203678 | J108: 0.02240997739 | T108: 4.180649281 | U108: 4.160358429 | V108: 4.121547699 | W108: 4.79385519 | AF108: 1.757395786 | AG108: 2.138246809 | AH108: 1.836250012 | AI108: 0.7816238403 | AX108: 91 | AY108: 0 | BA108: 0 | BB108: 0.03828203678 | BC108: 0.03828203678 | BD108: 0.05 | BE108: 4.121547699 | BF108: 4.121547699 | BG108: 4 | BH108: 2.138246809 | BI108: 2.138246809 | BJ108: 2.5
A109: 2018-04-02 | B109: 8.000402451 | G109: 0.02337557822 | H109: 0.02540736273 | I109: 0.03441963345 | J109: 0.02490444668 | T109: 4.180649281 | U109: 4.157186031 | V109: 4.121014118 | W109: 4.79385519 | AF109: 1.745686506 | AG109: 2.138246809 | AH109: 1.836250012 | AI109: 0.7565155029 | AX109: 92 | AY109: 0 | BA109: 0 | BB109: 0.03441963345 | BC109: 0.03441963345 | BD109: 0.05 | BE109: 4.121014118 | BF109: 4.121014118 | BG109: 4 | BH109: 2.138246809 | BI109: 2.138246809 | BJ109: 2.5
A110: 2018-04-03 | B110: 1.98048687 | G110: 0.05338965729 | H110: 0.02017702907 | I110: 0.04443774372 | J110: 0.02538724616 | T110: 4.165534019 | U110: 4.157186031 | V110: 4.121014118 | W110: 4.807550907 | AF110: 1.745686506 | AG110: 2.136608737 | AH110: 1.846098328 | AI110: 0.7565155029 | AX110: 93 | AY110: 0 | BA110: 0 | BB110: 0.05338965729 | BC110: 0.05338965729 | BD110: 0.05 | BE110: 4.121014118 | BF110: 4.121014118 | BG110: 4 | BH110: 2.136608737 | BI110: 2.136608737 | BJ110: 2.5
A111: 2018-04-04 | B111: 0.5039227605 | G111: 0.06425266713 | H111: 0.02234962769 | I111: 0.03560651839 | J111: 0.02840474807 | T111: 4.165534019 | U111: 4.152342796 | V111: 4.109205723 | W111: 4.807550907 | AF111: 1.575009812 | AG111: 2.08977659 | AH111: 1.866007054 | AI111: 0.7607025146 | AX111: 94 | AY111: 0 | BA111: 0 | BB111: 0.06425266713 | BC111: 0.06425266713 | BD111: 0.05 | BE111: 4.109205723 | BF111: 4.109205723 | BG111: 4 | BH111: 2.08977659 | BI111: 2.08977659 | BJ111: 2.5
A112: 2018-04-05 | B112: 7.39991951 | G112: 0.02037819475 | H112: 0.02053912729 | I112: 0.02591028064 | J112: 0.02021726221 | T112: 4.137121201 | U112: 4.141894341 | V112: 4.104467392 | W112: 4.806553841 | AF112: 1.575009812 | AG112: 2.071629202 | AH112: 1.87604251 | AI112: 0.7506561279 | AX112: 95 | AY112: 0 | BA112: 0 | BB112: 0.02591028064 | BC112: 0.02591028064 | BD112: 0.05 | BE112: 4.104467392 | BF112: 4.104467392 | BG112: 4 | BH112: 2.071629202 | BI112: 2.071629202 | BJ112: 2.5
A113: 2018-04-06 | B113: 0.5582377911 | G113: 0.04972842336 | H113: 0.02154496126 | I113: 0.03417823464 | J113: 0.02731844969 | T113: 4.137121201 | U113: 4.129329205 | V113: 4.104467392 | W113: 4.790320396 | AF113: 1.62813621 | AG113: 2.071629202 | AH113: 1.850499033 | AI113: 0.7506561279 | AX113: 96 | AY113: 0 | BA113: 0 | BB113: 0.04972842336 | BC113: 0.04972842336 | BD113: 0.05 | BE113: 4.104467392 | BF113: 4.104467392 | BG113: 4 | BH113: 2.071629202 | BI113: 2.071629202 | BJ113: 2.5
A114: 2018-04-07 | B114: 0.2725809813 | G114: 0.02025749534 | H114: 0.02717762999 | I114: 0.0217058938 | J114: 0.02230939455 | T114: 4.117212772 | U114: 4.114604473 | V114: 4.10800457 | W114: 4.781391144 | AF114: 1.62813621 | AG114: 2.174467887 | AH114: 1.850499033 | AI114: 0.7548416138 | AX114: 97 | AY114: 0 | BA114: 0 | BB114: 0.02717762999 | BC114: 0.02717762999 | BD114: 0.05 | BE114: 4.10800457 | BF114: 4.10800457 | BG114: 4 | BH114: 2.174467887 | BI114: 2.174467887 | BJ114: 2.5
A115: 2018-04-08 | B115: 0.3007443249 | G115: 0.01991550997 | H115: 0.02293301187 | I115: 0.0405552201 | J115: 0.02202775888 | T115: 4.117212772 | U115: 4.114604473 | V115: 4.090545654 | W115: 4.781391144 | AF115: 1.797241938 | AG115: 2.174467887 | AH115: 1.874674219 | AI115: 0.7749267578 | AX115: 98 | AY115: 0 | BA115: 0 | BB115: 0.0405552201 | BC115: 0.0405552201 | BD115: 0.05 | BE115: 4.090545654 | BF115: 4.090545654 | BG115: 4 | BH115: 2.174467887 | BI115: 2.174467887 | BJ115: 2.5
A116: 2018-04-09 | B116: 0.6849728823 | G116: 0.01997585967 | H116: 0.02039830945 | I116: 0.03206598386 | J116: 0.0216455441 | T116: 4.136338234 | U116: 4.098945618 | V116: 4.090545654 | W116: 4.774543285 | AF116: 1.740740951 | AG116: 2.193533347 | AH116: 1.847591743 | AI116: 0.7799484253 | AX116: 99 | AY116: 0 | BA116: 0 | BB116: 0.03206598386 | BC116: 0.03206598386 | BD116: 0.05 | BE116: 4.090545654 | BF116: 4.090545654 | BG116: 4 | BH116: 2.193533347 | BI116: 2.193533347 | BJ116: 2.5
A117: 2018-04-10 | B117: 1.28143239 | G117: 0.02220881172 | H117: 0.01856769249 | I117: 0.0368738696 | J117: 0.02126332745 | T117: 4.131735325 | U117: 4.098945618 | V117: 4.091882706 | W117: 4.774543285 | AF117: 1.740740951 | AG117: 2.198701501 | AH117: 1.847591743 | AI117: 0.7824569702 | AX117: 100 | AY117: 0 | BA117: 0 | BB117: 0.0368738696 | BC117: 0.0368738696 | BD117: 0.05 | BE117: 4.091882706 | BF117: 4.091882706 | BG117: 4 | BH117: 2.198701501 | BI117: 2.198701501 | BJ117: 2.5
A118: 2018-04-11 | B118: 0.8921746016 | G118: 0.02957151458 | H118: 0.02430094406 | I118: 0.05369140953 | J118: 0.02458257973 | T118: 4.131735325 | U118: 4.118500233 | V118: 4.090150356 | W118: 4.789842606 | AF118: 1.768248275 | AG118: 2.125070387 | AH118: 1.868971282 | AI118: 0.7615356445 | AX118: 101 | AY118: 0 | BA118: 0 | BB118: 0.05369140953 | BC118: 0.05369140953 | BD118: 0.05 | BE118: 4.090150356 | BF118: 4.090150356 | BG118: 4 | BH118: 2.125070387 | BI118: 2.125070387 | BJ118: 2.5
A119: 2018-04-12 | B119: 0.2222892791 | G119: 0.01957352646 | H119: 0.02222892828 | I119: 0.02538724616 | J119: 0.02347616106 | T119: 4.141414642 | U119: 4.134615421 | V119: 4.090150356 | W119: 4.792593956 | AF119: 1.601098005 | AG119: 2.125070387 | AH119: 1.656708717 | AI119: 0.7565155029 | AX119: 102 | AY119: 0 | BA119: 0 | BB119: 0.02538724616 | BC119: 0.02538724616 | BD119: 0.05 | BE119: 4.090150356 | BF119: 4.090150356 | BG119: 4 | BH119: 2.125070387 | BI119: 2.125070387 | BJ119: 2.5
A120: 2018-04-13 | B120: 1.309595585 | G120: 0.02051901072 | H120: 0.02832427993 | I120: 0.03152283281 | J120: 0.02462281287 | T120: 4.1381464 | U120: 4.124976635 | V120: 4.099785328 | W120: 4.792424679 | AF120: 1.601098005 | AG120: 2.108866882 | AH120: 1.656708717 | AI120: 0.7565155029 | AX120: 103 | AY120: 0 | BA120: 0 | BB120: 0.03152283281 | BC120: 0.03152283281 | BD120: 0.05 | BE120: 4.099785328 | BF120: 4.099785328 | BG120: 4 | BH120: 2.108866882 | BI120: 2.108866882 | BJ120: 2.5
A121: 2018-04-14 | B121: 0.5542144775 | G121: 0.02798229642 | H121: 0.01776302606 | I121: 0.02971233055 | J121: 0.02405954525 | T121: 4.1381464 | U121: 4.121398449 | V121: 4.097052097 | W121: 4.792424679 | AF121: 1.754721378 | AG121: 2.081020474 | AH121: 1.879531242 | AI121: 0.7230407715 | AX121: 104 | AY121: 0 | BA121: 0 | BB121: 0.02971233055 | BC121: 0.02971233055 | BD121: 0.05 | BE121: 4.097052097 | BF121: 4.097052097 | BG121: 4 | BH121: 2.081020474 | BI121: 2.081020474 | BJ121: 2.5
A122: 2018-04-15 | B122: 1.320659876 | G122: 0.02440152876 | H122: 0.02080064453 | I122: 0.04349225387 | J122: 0.0208811108 | T122: 4.106883049 | U122: 4.105361462 | V122: 4.077009201 | W122: 4.781054497 | AF122: 1.754721378 | AG122: 2.081020474 | AH122: 1.894829186 | AI122: 0.7230407715 | AX122: 105 | AY122: 0 | BA122: 0 | BB122: 0.04349225387 | BC122: 0.04349225387 | BD122: 0.05 | BE122: 4.077009201 | BF122: 4.077009201 | BG122: 4 | BH122: 2.081020474 | BI122: 2.081020474 | BJ122: 2.5
A123: 2018-04-16 | B123: 21.65459633 | G123: 0.02500503138 | H123: 0.03421846777 | I123: 0.04705290869 | J123: 0.04441762343 | T123: 4.104905605 | U123: 4.105361462 | V123: 4.056233883 | W123: 4.781054497 | AF123: 1.78558676 | AG123: 2.08977659 | AH123: 1.894829186 | AI123: 0.7632110596 | AX123: 106 | AY123: 0 | BA123: 0 | BB123: 0.04705290869 | BC123: 0.04705290869 | BD123: 0.05 | BE123: 4.056233883 | BF123: 4.056233883 | BG123: 4 | BH123: 2.08977659 | BI123: 2.08977659 | BJ123: 2.5
A124: 2018-04-17 | B124: 26.60631561 | G124: 0.02957151458 | H124: 0.03572721779 | I124: 0.03321263194 | J124: 0.02482397854 | T124: 4.086622238 | U124: 4.118524075 | V124: 4.056233883 | W124: 4.775446415 | AF124: 1.750680444 | AG124: 2.011775844 | AH124: 1.830555071 | AI124: 0.7632110596 | AX124: 107 | AY124: 0 | BA124: 0 | BB124: 0.03572721779 | BC124: 0.03572721779 | BD124: 0.05 | BE124: 4.056233883 | BF124: 4.056233883 | BG124: 4 | BH124: 2.011775844 | BI124: 2.011775844 | BJ124: 2.5
A125: 2018-04-18 | B125: 49.98491287 | G125: 0.02633273043 | H125: 0.02852544747 | I125: 0.04129953682 | J125: 0.02659424581 | T125: 4.065310478 | U125: 4.071608543 | V125: 4.010192394 | W125: 4.731215954 | AF125: 1.750680444 | AG125: 2.011775844 | AH125: 1.830555071 | AI125: 0.7774368286 | AX125: 108 | AY125: 0 | BA125: 0 | BB125: 0.04129953682 | BC125: 0.04129953682 | BD125: 0.05 | BE125: 4.010192394 | BF125: 4.010192394 | BG125: 4 | BH125: 2.011775844 | BI125: 2.011775844 | BJ125: 2.5
A126: 2018-04-19 | B126: 7.697646141 | G126: 0.03011466563 | H126: 0.01764232479 | I126: 0.02367732674 | J126: 0.02422047779 | T126: 4.065310478 | U126: 4.071608543 | V126: 4.010192394 | W126: 4.731215954 | AF126: 1.790318724 | AG126: 2.101371567 | AH126: 1.943132354 | AI126: 0.7757629395 | AX126: 109 | AY126: 0 | BA126: 0 | BB126: 0.03011466563 | BC126: 0.03011466563 | BD126: 0.05 | BE126: 4.010192394 | BF126: 4.010192394 | BG126: 4 | BH126: 2.101371567 | BI126: 2.101371567 | BJ126: 2.5
A127: 2018-04-20 | B127: 9.892375946 | G127: 0.02790183015 | H127: 0.01762220822 | I127: 0.03643130139 | J127: 0.02568899654 | T127: 4.0637393 | U127: 4.082007885 | V127: 4.029314041 | W127: 4.748279095 | AF127: 1.790318724 | AG127: 1.95630411 | AH127: 1.758604188 | AI127: 0.7339202881 | AX127: 110 | AY127: 0 | BA127: 0 | BB127: 0.03643130139 | BC127: 0.03643130139 | BD127: 0.05 | BE127: 4.029314041 | BF127: 4.029314041 | BG127: 4 | BH127: 1.95630411 | BI127: 1.95630411 | BJ127: 2.5
A128: 2018-04-21 | B128: 10.60852909 | H128: 0.02172601037 | I128: 0.0256286487 | J128: 0.05107624084 | T128: 4.0637393 | U128: 4.055884361 | V128: 4.143032074 | W128: 4.763620853 | AF128: 1.80015564 | AG128: 1.95630411 | AH128: 1.995895386 | AI128: 0.7339202881 | AX128: 111 | AY128: 0 | BA128: 0 | BB128: 0.05107624084 | BC128: 0.05107624084 | BD128: 0.05 | BE128: 4.055884361 | BF128: 4.055884361 | BG128: 4 | BH128: 1.995895386 | BI128: 1.995895386 | BJ128: 2.5
A129: 2018-04-22 | B129: 24.30396271 | G129: 0.03564675152 | I129: 0.01997585967 | J129: 0.04980889335 | T129: 4.063028812 | U129: 4.055884361 | V129: 4.183622837 | W129: 4.763620853 | AF129: 1.780715692 | AG129: 2.208060593 | AH129: 1.798296296 | AI129: 0.728062439 | AX129: 112 | AY129: 0 | BA129: 0 | BB129: 0.04980889335 | BC129: 0.04980889335 | BD129: 0.05 | BE129: 4.055884361 | BF129: 4.055884361 | BG129: 4 | BH129: 2.208060593 | BI129: 2.208060593 | BJ129: 2.5
A130: 2018-04-23 | B130: 11.00985718 | G130: 0.03952927142 | H130: 0.02580969594 | I130: 0.0198350437 | J130: 0.04331120476 | T130: 4.063028812 | U130: 4.052447796 | V130: 4.12611866 | W130: 4.754304886 | AF130: 1.716581072 | AG130: 2.208060593 | AH130: 1.798296296 | AI130: 0.728062439 | AX130: 113 | AY130: 0 | BA130: 0 | BB130: 0.04331120476 | BC130: 0.04331120476 | BD130: 0.05 | BE130: 4.052447796 | BF130: 4.052447796 | BG130: 4 | BH130: 2.208060593 | BI130: 2.208060593 | BJ130: 2.5
A131: 2018-04-24 | B131: 20.12472343 | G131: 0.03606920317 | H131: 0.02158519439 | I131: 0.03675317019 | J131: 0.04383423924 | T131: 4.260687351 | U131: 4.052447796 | V131: 4.122896194 | W131: 4.713766098 | AF131: 1.683628829 | AG131: 2.249969289 | AH131: 2.022179961 | AI131: 0.743963623 | AX131: 114 | AY131: 0 | BA131: 0 | BB131: 0.04383423924 | BC131: 0.04383423924 | BD131: 0.05 | BE131: 4.052447796 | BF131: 4.052447796 | BG131: 4 | BH131: 2.249969289 | BI131: 2.249969289 | BJ131: 2.5
A132: 2018-04-25 | B132: 49.98390579 | G132: 0.0237376783 | H132: 0.02178636007 | I132: 0.03639106825 | J132: 0.03051699884 | T132: 4.16642046 | U132: 4.156654358 | V132: 4.122896194 | W132: 4.713766098 | AF132: 1.683628829 | AG132: 2.37361908 | AH132: 1.970314798 | AI132: 0.7832946777 | AX132: 115 | AY132: 0 | BA132: 0 | BB132: 0.03639106825 | BC132: 0.03639106825 | BD132: 0.05 | BE132: 4.122896194 | BF132: 4.122896194 | BG132: 4 | BH132: 2.37361908 | BI132: 2.37361908 | BJ132: 2.5
A133: 2018-04-26 | B133: 9.986924171 | G133: 0.04194326699 | H133: 0.02496479824 | I133: 0.02778113075 | J133: 0.02309394442 | T133: 4.16642046 | U133: 4.156654358 | V133: 4.113044262 | W133: 4.828410149 | AF133: 1.843508787 | AG133: 2.281336577 | AH133: 1.950389385 | AI133: 0.7707427979 | AX133: 116 | AY133: 0 | BA133: 0 | BB133: 0.04194326699 | BC133: 0.04194326699 | BD133: 0.05 | BE133: 4.113044262 | BF133: 4.113044262 | BG133: 4 | BH133: 2.281336577 | BI133: 2.281336577 | BJ133: 2.5
A134: 2018-04-27 | B134: 8.94186306 | G134: 0.04091732204 | H134: 0.01971434243 | I134: 0.03749748692 | J134: 0.02798229642 | T134: 4.184915066 | U134: 4.161496639 | V134: 4.113044262 | W134: 4.83130312 | AF134: 1.834745252 | AG134: 2.281336577 | AH134: 1.941710363 | AI134: 0.7707427979 | AX134: 117 | AY134: 0 | BA134: 0 | BB134: 0.04091732204 | BC134: 0.04091732204 | BD134: 0.05 | BE134: 4.113044262 | BF134: 4.113044262 | BG134: 4 | BH134: 2.281336577 | BI134: 2.281336577 | BJ134: 2.5
A135: 2018-04-28 | B135: 9.177227974 | G135: 0.03230738267 | H135: 0.02357674576 | I135: 0.04180245474 | J135: 0.02595051378 | T135: 4.194634914 | U135: 4.161496639 | V135: 4.123745918 | W135: 4.842740059 | AF135: 1.834745252 | AG135: 2.272383861 | AH135: 1.941710363 | AI135: 0.7740905762 | AX135: 118 | AY135: 0 | BA135: 0 | BB135: 0.04180245474 | BC135: 0.04180245474 | BD135: 0.05 | BE135: 4.123745918 | BF135: 4.123745918 | BG135: 4 | BH135: 2.272383861 | BI135: 2.272383861 | BJ135: 2.5
A136: 2018-04-29 | B136: 3.947897673 | G136: 0.04073626921 | H136: 0.02078052796 | I136: 0.02331522852 | J136: 0.02597063035 | T136: 4.192989826 | U136: 4.171113968 | V136: 4.123745918 | W136: 4.842740059 | AF136: 1.842406742 | AG136: 2.227368164 | AH136: 1.973417415 | AI136: 0.7740905762 | AX136: 119 | AY136: 0 | BA136: 0 | BB136: 0.04073626921 | BC136: 0.04073626921 | BD136: 0.05 | BE136: 4.123745918 | BF136: 4.123745918 | BG136: 4 | BH136: 2.227368164 | BI136: 2.227368164 | BJ136: 2.5
A137: 2018-04-30 | B137: 48.4580574 | G137: 0.03429893404 | H137: 0.01854757592 | I137: 0.02631261386 | J137: 0.03055723198 | T137: 4.192989826 | U137: 4.171113968 | V137: 4.118602276 | W137: 4.845939636 | AF137: 1.835926936 | AG137: 2.227368164 | AH137: 1.987114701 | AI137: 0.7648849487 | AX137: 120 | AY137: 0 | BA137: 0 | BB137: 0.03429893404 | BC137: 0.03429893404 | BD137: 0.05 | BE137: 4.118602276 | BF137: 4.118602276 | BG137: 4 | BH137: 2.227368164 | BI137: 2.227368164 | BJ137: 2.5
A138: 2018-05-01 | B138: 1.969422579 | G138: 0.0266344808 | H138: 0.02104204334 | I138: 0.02691611275 | J138: 0.02381814457 | T138: 4.177686214 | U138: 4.163876057 | V138: 4.118602276 | W138: 4.845939636 | AF138: 1.830777682 | AG138: 2.237353605 | AH138: 1.939338941 | AI138: 0.7180206299 | AX138: 121 | AY138: 0 | BA138: 0 | BB138: 0.02691611275 | BC138: 0.02691611275 | BD138: 0.05 | BE138: 4.118602276 | BF138: 4.118602276 | BG138: 4 | BH138: 2.237353605 | BI138: 2.237353605 | BJ138: 2.5
A139: 2018-05-02 | B139: 4.880305767 | G139: 0.02305371128 | H139: 0.019774694 | I139: 0.02969221398 | J139: 0.02534701303 | T139: 4.155094147 | U139: 4.158117294 | V139: 4.111190319 | W139: 4.839913368 | AF139: 1.830777682 | AG139: 2.237353605 | AH139: 1.939338941 | AI139: 0.7180206299 | AX139: 122 | AY139: 0 | BA139: 0 | BB139: 0.02969221398 | BC139: 0.02969221398 | BD139: 0.05 | BE139: 4.111190319 | BF139: 4.111190319 | BG139: 4 | BH139: 2.237353605 | BI139: 2.237353605 | BJ139: 2.5
A140: 2018-05-03 | B140: 1.777308464 | G140: 0.0264131967 | H140: 0.0169985909 | I140: 0.03488231823 | J140: 0.02106215991 | T140: 4.136945724 | U140: 4.136793137 | V140: 4.089593887 | W140: 4.838265896 | AF140: 1.858081104 | AG140: 2.243249468 | AH140: 1.944946289 | AI140: 0.7473114014 | AX140: 123 | AY140: 0 | BA140: 0 | BB140: 0.03488231823 | BC140: 0.03488231823 | BD140: 0.05 | BE140: 4.089593887 | BF140: 4.089593887 | BG140: 4 | BH140: 2.243249468 | BI140: 2.243249468 | BJ140: 2.5
A141: 2018-05-04 | B141: 3.071816444 | G141: 0.02882719785 | H141: 0.01782337576 | I141: 0.02152484469 | J141: 0.02518607862 | T141: 4.136945724 | U141: 4.136793137 | V141: 4.079628468 | W141: 4.838265896 | AF141: 1.727208622 | AG141: 2.252898969 | AH141: 1.984343262 | AI141: 0.7155105591 | AX141: 124 | AY141: 0 | BA141: 0 | BB141: 0.02882719785 | BC141: 0.02882719785 | BD141: 0.05 | BE141: 4.079628468 | BF141: 4.079628468 | BG141: 4 | BH141: 2.252898969 | BI141: 2.252898969 | BJ141: 2.5
A142: 2018-05-05 | B142: 1.002816319 | G142: 0.02269161306 | H142: 0.01689800806 | I142: 0.02166566066 | J142: 0.02331522852 | T142: 4.143127918 | U142: 4.140302658 | V142: 4.079628468 | W142: 4.829725742 | AF142: 1.727208622 | AG142: 2.208589674 | AH142: 1.935921563 | AI142: 0.7155105591 | AX142: 125 | AY142: 0 | BA142: 0 | BB142: 0.02331522852 | BC142: 0.02331522852 | BD142: 0.05 | BE142: 4.079628468 | BF142: 4.079628468 | BG142: 4 | BH142: 2.208589674 | BI142: 2.208589674 | BJ142: 2.5
A143: 2018-05-06 | B143: 1.951317668 | G143: 0.01860792562 | H143: 0.01633474231 | I143: 0.0340776518 | J143: 0.02494467981 | T143: 4.142013073 | U143: 4.141974926 | V143: 4.064099312 | W143: 4.825222969 | AF143: 1.81876119 | AG143: 2.159086374 | AH143: 1.935921563 | AI143: 0.7489852905 | AX143: 126 | AY143: 0 | BA143: 0 | BB143: 0.0340776518 | BC143: 0.0340776518 | BD143: 0.05 | BE143: 4.064099312 | BF143: 4.064099312 | BG143: 4 | BH143: 2.159086374 | BI143: 2.159086374 | BJ143: 2.5
A144: 2018-05-07 | B144: 44.75759125 | G144: 0.02138402686 | H144: 0.01625427417 | I144: 0.03614966944 | J144: 0.02224904485 | T144: 4.142013073 | U144: 4.135743618 | V144: 4.064099312 | W144: 4.81060648 | AF144: 1.717606842 | AG144: 2.159086374 | AH144: 1.852671612 | AI144: 0.7155105591 | AX144: 127 | AY144: 0 | BA144: 0 | BB144: 0.03614966944 | BC144: 0.03614966944 | BD144: 0.05 | BE144: 4.064099312 | BF144: 4.064099312 | BG144: 4 | BH144: 2.159086374 | BI144: 2.159086374 | BJ144: 2.5
A145: 2018-05-08 | B145: 4.011265278 | G145: 0.02003620937 | H145: 0.02255079523 | I145: 0.02341581136 | J145: 0.02228927799 | T145: 4.076899529 | U145: 4.105688572 | V145: 4.014727116 | W145: 4.793867111 | AF145: 1.841077303 | AG145: 2.181838331 | AH145: 1.639983903 | AI145: 0.746472168 | AX145: 128 | AY145: 0 | BA145: 0 | BB145: 0.02341581136 | BC145: 0.02341581136 | BD145: 0.05 | BE145: 4.014727116 | BF145: 4.014727116 | BG145: 4 | BH145: 2.181838331 | BI145: 2.181838331 | BJ145: 2.5
A146: 2018-05-09 | B146: 1.363910675 | G146: 0.02063971013 | H146: 0.01744115911 | I146: 0.0219070632 | J146: 0.02220881172 | T146: 4.057962894 | U146: 4.068719864 | V146: 4.042844772 | W146: 4.785226822 | AF146: 1.845480936 | AG146: 2.181838331 | AH146: 1.627262375 | AI146: 0.7121627808 | AX146: 129 | AY146: 0 | BA146: =$G$5 -> 0 | BB146: 0.02220881172 | BC146: 0.02220881172 | BD146: =$G$6 -> 0.05 | BE146: 4.042844772 | BF146: 4.042844772 | BG146: 4 | BH146: 2.181838331 | BI146: 2.181838331 | BJ146: 2.5
A147: =A146+1 -> 2018-05-10 | B147: 18.30617714 | G147: 0.02041842788 | H147: 0.02005632594 | I147: 0.02508549765 | J147: 0.02041842788 | T147: 4.057962894 | U147: 4.068719864 | V147: 4.034694195 | W147: 4.785226822 | AF147: 1.65828745 | AG147: 1.94490786 | AH147: 1.627262375 | AI147: 0.7096511841 | AX147: =AX146+1 -> 130 | AY147: =MAX(C147:F147) -> 0 | BA147: 0 | BB147: =MAX(G147:R147) -> 0.02508549765 | BC147: 0.02508549765 | BD147: 0.05 | BE147: =MIN(T147:AE147) -> 4.034694195 | BF147: 4.034694195 | BG147: =$G$8 -> 4 | BH147: =MAX(AF147:AQ147) -> 1.94490786 | BI147: 1.94490786 | BJ147: =$G$9 -> 2.5
A148: 2018-05-11 | B148: 1.665660977 | G148: 0.04091732204 | H148: 0.02063971013 | I148: 0.02906859852 | J148: 0.02208811045 | T148: 4.066576481 | U148: 4.140197277 | V148: 4.034694195 | W148: 4.777637482 | AF148: 1.65828745 | AG148: 1.94490786 | AH148: 1.604341721 | AI148: 0.7096511841 | AX148: 131 | AY148: 0 | BA148: 0 | BB148: 0.04091732204 | BC148: 0.04091732204 | BD148: 0.05 | BE148: 4.034694195 | BF148: 4.034694195 | BG148: 4 | BH148: 1.94490786 | BI148: 1.94490786 | BJ148: 2.5
A149: 2018-05-12 | B149: 1.024944663 | G149: 0.04244618863 | H149: 0.01730034128 | I149: 0.02617179602 | J149: 0.02240997739 | T149: 4.066576481 | U149: 4.120877266 | V149: 4.050929546 | W149: 4.768186092 | AF149: 1.825737 | AG149: 1.949964003 | AH149: 1.604341721 | AI149: 0.7414535522 | AX149: 132 | AY149: 0 | BA149: 0 | BB149: 0.04244618863 | BC149: 0.04244618863 | BD149: 0.05 | BE149: 4.050929546 | BF149: 4.050929546 | BG149: 4 | BH149: 1.949964003 | BI149: 1.949964003 | BJ149: 2.5
A150: 2018-05-13 | B150: 3.808086634 | G150: 0.03297123313 | H150: 0.02502514608 | I150: 0.01804465987 | J150: 0.01872862689 | T150: 4.068572521 | U150: 4.103539944 | V150: 4.048376083 | W150: 4.768186092 | AF150: 1.839727586 | AG150: 2.170992631 | AH150: 1.873955318 | AI150: 0.738104248 | AX150: 133 | AY150: 0 | BA150: 0 | BB150: 0.03297123313 | BC150: 0.03297123313 | BD150: 0.05 | BE150: 4.048376083 | BF150: 4.048376083 | BG150: 4 | BH150: 2.170992631 | BI150: 2.170992631 | BJ150: 2.5
A151: 2018-05-14 | B151: 8.970026016 | G151: 0.03612955287 | H151: 0.0227519609 | I151: 0.02683564648 | J151: 0.03051699884 | T151: 4.068572521 | U151: 4.103539944 | V151: 4.048376083 | W151: 4.786298752 | AF151: 1.308654425 | AG151: 2.170992631 | AH151: 1.316235389 | AI151: 0.7314102173 | AX151: 134 | AY151: 0 | BA151: 0 | BB151: 0.03612955287 | BC151: 0.03612955287 | BD151: 0.05 | BE151: 4.048376083 | BF151: 4.048376083 | BG151: 4 | BH151: 2.170992631 | BI151: 2.170992631 | BJ151: 2.5
A152: 2018-05-15 | B152: 7.64735508 | G152: 0.05731241405 | H152: 0.01637497544 | I152: 0.0357875675 | J152: 0.02224904485 | T152: 4.187620163 | U152: 4.097213268 | V152: 4.146477699 | W152: 4.786298752 | AF152: 1.308654425 | AG152: 2.194947379 | AH152: 1.316235389 | AI152: 0.7171844482 | AX152: 135 | AY152: 0 | BA152: 0 | BB152: 0.05731241405 | BC152: 0.05731241405 | BD152: 0.05 | BE152: 4.097213268 | BF152: 4.097213268 | BG152: 4 | BH152: 2.194947379 | BI152: 2.194947379 | BJ152: 2.5
A153: 2018-05-16 | B153: 3.871454239 | G153: 0.01931200922 | H153: 0.02031784318 | I153: 0.01553007402 | J153: 0.01836652495 | T153: 4.15464735 | U153: 4.097213268 | V153: 4.101022243 | W153: 4.798113823 | AF153: 1.184496775 | AG153: 2.153290382 | AH153: 1.534938088 | AI153: 0.7171844482 | AX153: 136 | AY153: 0 | BA153: 0 | BB153: 0.02031784318 | BC153: 0.02031784318 | BD153: 0.05 | BE153: 4.097213268 | BF153: 4.097213268 | BG153: 4 | BH153: 2.153290382 | BI153: 2.153290382 | BJ153: 2.5
A154: 2018-05-17 | B154: 3.608932018 | G154: 0.04632870853 | H154: 0.03073828295 | I154: 0.03721585125 | J154: 0.02430094406 | T154: 4.154646873 | U154: 4.101267815 | V154: 4.101021767 | W154: 4.798113823 | AF154: 1.430674514 | AG154: 2.153290382 | AH154: 1.541574043 | AI154: 0.7046295166 | AX154: 137 | AY154: 0 | BA154: 0 | BB154: 0.04632870853 | BC154: 0.04632870853 | BD154: 0.05 | BE154: 4.101021767 | BF154: 4.101021767 | BG154: 4 | BH154: 2.153290382 | BI154: 2.153290382 | BJ154: 2.5
A155: 2018-05-18 | B155: 4.961778164 | G155: 0.02200764418 | H155: 0.01913096011 | I155: 0.01619392447 | J155: 0.02136390842 | T155: 4.141335011 | U155: 4.08620739 | V155: 4.076582432 | W155: 4.787786484 | AF155: 1.430674514 | AG155: 2.184371391 | AH155: 1.541574043 | AI155: 0.7046295166 | AX155: 138 | AY155: 0 | BA155: 0 | BB155: 0.02200764418 | BC155: 0.02200764418 | BD155: 0.05 | BE155: 4.076582432 | BF155: 4.076582432 | BG155: 4 | BH155: 2.184371391 | BI155: 2.184371391 | BJ155: 2.5
A156: 2018-05-19 | B156: 0.4707302451 | G156: 0.04970831051 | I156: 0.02900824696 | J156: 0.03011466563 | T156: 4.141335011 | U156: 4.082203388 | V156: 4.076582432 | W156: 4.787786484 | AF156: 1.308083307 | AG156: 2.123367417 | AH156: 1.371063859 | AI156: 0.6602783203 | AX156: 139 | AY156: 0 | BA156: 0 | BB156: 0.04970831051 | BC156: 0.04970831051 | BD156: 0.05 | BE156: 4.076582432 | BF156: 4.076582432 | BG156: 4 | BH156: 2.123367417 | BI156: 2.123367417 | BJ156: 2.5
A157: 2018-05-20 | B157: 0.8438946009 | G157: 0.03707503527 | H157: 0.02677529491 | I157: 0.02192717791 | J157: 0.02526654676 | T157: 4.145661354 | U157: 4.03635788 | V157: 4.123931885 | W157: 4.799049377 | AF157: 1.308083307 | AG157: 2.123367417 | AH157: 1.367999641 | AI157: 0.6602783203 | AX157: 140 | AY157: 0 | BA157: 0 | BB157: 0.03707503527 | BC157: 0.03707503527 | BD157: 0.05 | BE157: 4.03635788 | BF157: 4.03635788 | BG157: 4 | BH157: 2.123367417 | BI157: 2.123367417 | BJ157: 2.5
A158: 2018-05-21 | B158: 2.847515583 | G158: 0.03711526841 | H158: 0.02086099423 | I158: 0.03856366873 | J158: 0.02122309431 | T158: 4.139893055 | U158: 4.03635788 | V158: 4.10554266 | W158: 4.773476601 | AF158: 1.328135771 | AG158: 2.178806305 | AH158: 1.367999641 | AI158: 0.6786895752 | AX158: 141 | AY158: 0 | BA158: 0 | BB158: 0.03856366873 | BC158: 0.03856366873 | BD158: 0.05 | BE158: 4.03635788 | BF158: 4.03635788 | BG158: 4 | BH158: 2.178806305 | BI158: 2.178806305 | BJ158: 2.5
A159: 2018-05-22 | B159: 0.7956145406 | G159: 0.05540132895 | H159: 0.0256487634 | I159: 0.01766244136 | J159: 0.0321665667 | T159: 4.139893055 | U159: 4.152966976 | V159: 4.10554266 | W159: 4.773476601 | AF159: 1.345998299 | AG159: 2.178806305 | AH159: 1.340023958 | AI159: 0.6929153442 | AX159: 142 | AY159: 0 | BA159: 0 | BB159: 0.05540132895 | BC159: 0.05540132895 | BD159: 0.05 | BE159: 4.10554266 | BF159: 4.10554266 | BG159: 4 | BH159: 2.178806305 | BI159: 2.178806305 | BJ159: 2.5
A160: 2018-05-23 | B160: 2.352645397 | G160: 0.05153892562 | H160: 0.02245021053 | I160: 0.01619392447 | T160: 4.143029213 | U160: 4.152966976 | V160: 4.353226185 | W160: 4.789657116 | AF160: 1.364305352 | AG160: 2.135589306 | AH160: 1.297780735 | AI160: 0.6745040894 | AX160: 143 | AY160: 0 | BA160: 0 | BB160: 0.05153892562 | BC160: 0.05153892562 | BD160: 0.05 | BE160: 4.143029213 | BF160: 4.143029213 | BG160: 4 | BH160: 2.135589306 | BI160: 2.135589306 | BJ160: 2.5
A161: 2018-05-24 | B161: 7.48038578 | G161: 0.02951116487 | H161: 0.02448199503 | I161: 0.03055723198 | J161: 0.02852544747 | T161: 4.243527412 | U161: 4.118644714 | V161: 4.227790833 | W161: 4.79605484 | AF161: 1.384749477 | AG161: 2.135589306 | AH161: 1.297780735 | AI161: 0.6745040894 | AX161: 144 | AY161: 0 | BA161: 0 | BB161: 0.03055723198 | BC161: 0.03055723198 | BD161: 0.05 | BE161: 4.118644714 | BF161: 4.118644714 | BG161: 4 | BH161: 2.135589306 | BI161: 2.135589306 | BJ161: 2.5
A162: 2018-05-25 | B162: 2.383826017 | G162: 0.02059947699 | H162: 0.01941259392 | I162: 0.02118286118 | J162: 0.02802253328 | T162: 4.210792065 | U162: 4.112532616 | V162: 4.205284595 | W162: 4.886723042 | AF162: 1.534108862 | AG162: 2.359216568 | AH162: 1.490562399 | AI162: 0.7155090332 | AX162: 145 | AY162: 0 | BA162: 0 | BB162: 0.02802253328 | BC162: 0.02802253328 | BD162: 0.05 | BE162: 4.112532616 | BF162: 4.112532616 | BG162: 4 | BH162: 2.359216568 | BI162: 2.359216568 | BJ162: 2.5
A163: 2018-05-26 | B163: 0.3419834971 | G163: 0.05835847929 | H163: 0.01822570898 | I163: 0.02792194672 | J163: 0.02617179602 | T163: 4.210792065 | U163: 4.112532616 | V163: 4.180202007 | W163: 4.875022888 | AF163: 1.50524637 | AG163: 2.297830363 | AH163: 1.506335546 | AI163: 0.7155090332 | AX163: 146 | AY163: 0 | BA163: 0 | BB163: 0.05835847929 | BC163: 0.05835847929 | BD163: 0.05 | BE163: 4.112532616 | BF163: 4.112532616 | BG163: 4 | BH163: 2.297830363 | BI163: 2.297830363 | BJ163: 2.5
A164: 2018-05-27 | B164: 2.446187735 | G164: 0.05143834278 | H164: 0.01828605868 | I164: 0.03361496702 | J164: 0.02508549765 | T164: 4.213512897 | U164: 4.131763935 | V164: 4.180202007 | W164: 4.875022888 | AF164: 1.50524637 | AG164: 2.297830363 | AH164: 1.548683442 | AI164: 0.70965271 | AX164: 147 | AY164: 0 | BA164: 0 | BB164: 0.05143834278 | BC164: 0.05143834278 | BD164: 0.05 | BE164: 4.131763935 | BF164: 4.131763935 | BG164: 4 | BH164: 2.297830363 | BI164: 2.297830363 | BJ164: 2.5
A165: 2018-05-28 | B165: 5.477771282 | G165: 0.01734057441 | H165: 0.02021726221 | I165: 0.03061758354 | J165: 0.02961174771 | T165: 4.213512897 | U165: 4.131763935 | V165: 4.187680244 | W165: 4.884484768 | AF165: 1.511163712 | AG165: 2.304265222 | AH165: 1.548683442 | AI165: 0.70965271 | AX165: 148 | AY165: 0 | BA165: 0 | BB165: 0.03061758354 | BC165: 0.03061758354 | BD165: 0.05 | BE165: 4.131763935 | BF165: 4.131763935 | BG165: 4 | BH165: 2.304265222 | BI165: 2.304265222 | BJ165: 2.5
A166: 2018-05-29 | B166: 2.106215954 | G166: 0.01629450731 | H166: 0.03427881747 | I166: 0.0492657423 | J166: 0.03170388192 | T166: 4.225838184 | U166: 4.138775349 | V166: 4.187680244 | W166: 4.884484768 | AF166: 1.370172016 | AG166: 2.01175238 | AH166: 1.470113726 | AI166: 0.6929153442 | AX166: 149 | AY166: 0 | BA166: 0 | BB166: 0.0492657423 | BC166: 0.0492657423 | BD166: 0.05 | BE166: 4.138775349 | BF166: 4.138775349 | BG166: 4 | BH166: 2.01175238 | BI166: 2.01175238 | BJ166: 2.5
A167: 2018-05-30 | B167: 4.815932274 | G167: 0.01915107667 | H167: 0.0226312615 | I167: 0.02941058204 | J167: 0.0322269164 | T167: 4.184515476 | U167: 4.114236355 | V167: 4.175115585 | W167: 4.88631773 | AF167: 1.370172016 | AG167: 2.01175238 | AH167: 1.470113726 | AI167: 0.6895675659 | AX167: 150 | AY167: 0 | BA167: 0 | BB167: 0.0322269164 | BC167: 0.0322269164 | BD167: 0.05 | BE167: 4.114236355 | BF167: 4.114236355 | BG167: 4 | BH167: 2.01175238 | BI167: 2.01175238 | BJ167: 2.5
A168: 2018-05-31 | B168: 0.6558036208 | G168: 0.04463890567 | H168: 0.02393884584 | I168: 0.03337356821 | J168: 0.03767853603 | T168: 4.184515476 | U168: 4.114236355 | V168: 4.154913902 | W168: 4.87011528 | AF168: 1.508569336 | AG168: 2.303921039 | AH168: 1.47170795 | AI168: 0.6895675659 | AX168: 151 | AY168: 0 | BA168: 0 | BB168: 0.04463890567 | BC168: 0.04463890567 | BD168: 0.05 | BE168: 4.114236355 | BF168: 4.114236355 | BG168: 4 | BH168: 2.303921039 | BI168: 2.303921039 | BJ168: 2.5
A169: 2018-06-01 | B169: 1.03299129 | G169: 0.01776302606 | H169: 0.03958962113 | I169: 0.03172399849 | J169: 0.03731643409 | T169: 4.171161175 | U169: 4.088954926 | V169: 4.149515629 | W169: 4.87011528 | AF169: 1.506334388 | AG169: 2.341195969 | AH169: 1.527258158 | AI169: 0.6845458984 | AX169: 152 | AY169: 0 | BA169: 0 | BB169: 0.03958962113 | BC169: 0.03958962113 | BD169: 0.05 | BE169: 4.088954926 | BF169: 4.088954926 | BG169: 4 | BH169: 2.341195969 | BI169: 2.341195969 | BJ169: 2.5
A170: 2018-06-02 | B170: 0.5793602467 | G170: 0.01689800806 | H170: 0.02784148045 | I170: 0.02037819475 | J170: 0.02757996321 | T170: 4.1383605 | U170: 4.068991184 | V170: 4.120662689 | W170: 4.851833344 | AF170: 1.506334388 | AG170: 2.33846726 | AH170: 1.51907945 | AI170: 0.6845458984 | AX170: 153 | AY170: 0 | BA170: 0 | BB170: 0.02784148045 | BC170: 0.02784148045 | BD170: 0.05 | BE170: 4.068991184 | BF170: 4.068991184 | BG170: 4 | BH170: 2.33846726 | BI170: 2.33846726 | BJ170: 2.5
A171: 2018-06-03 | B171: 0.6165761352 | G171: 0.0170388259 | H171: 0.03242808208 | I171: 0.02387849614 | J171: 0.03379601613 | T171: 4.086304188 | U171: 4.015987396 | V171: 4.062373161 | W171: 4.840516567 | AF171: 1.517747706 | AG171: 2.33846726 | AH171: 1.51907945 | AI171: 0.6761779785 | AX171: 154 | AY171: 0 | BA171: 0 | BB171: 0.03379601613 | BC171: 0.03379601613 | BD171: 0.05 | BE171: 4.015987396 | BF171: 4.015987396 | BG171: 4 | BH171: 2.33846726 | BI171: 2.33846726 | BJ171: 2.5
A172: 2018-06-04 | B172: 0.5552203059 | G172: 0.0206598267 | H172: 0.03838261962 | I172: 0.0208207611 | J172: 0.02625226229 | T172: 4.066903114 | U172: 3.997416735 | V172: 4.062373161 | W172: 4.840516567 | AF172: 1.53819515 | AG172: 2.207817751 | AH172: 1.550711429 | AI172: 0.6694824219 | AX172: 155 | AY172: 0 | BA172: 0 | BB172: 0.03838261962 | BC172: 0.03838261962 | BD172: 0.05 | BE172: 3.997416735 | BF172: 3.997416735 | BG172: 4 | BH172: 2.207817751 | BI172: 2.207817751 | BJ172: 2.5
A173: 2018-06-05 | B173: 0.423456043 | G173: 0.01299537346 | H173: 0.02609132975 | I173: 0.02120297588 | J173: 0.02589016221 | T173: 4.066903114 | U173: 4.020733356 | V173: 4.051692963 | W173: 4.846796989 | AF173: 1.50633729 | AG173: 2.207817751 | AH173: 1.550711429 | AI173: 0.6694824219 | AX173: 156 | AY173: 0 | BA173: 0 | BB173: 0.02609132975 | BC173: 0.02609132975 | BD173: 0.05 | BE173: 4.020733356 | BF173: 4.020733356 | BG173: 4 | BH173: 2.207817751 | BI173: 2.207817751 | BJ173: 2.5
A174: 2018-06-06 | B174: 8.468114853 | G174: 0.01221082173 | H174: 0.0169382412 | I174: 0.02126332745 | J174: 0.02200764418 | T174: 4.08684063 | U174: 4.020733356 | V174: 4.051692963 | W174: 4.834989071 | AF174: 1.50633729 | AG174: 2.265041576 | AH174: 1.556873569 | AI174: 0.6753387451 | AX174: 157 | AY174: 0 | BA174: 0 | BB174: 0.02200764418 | BC174: 0.02200764418 | BD174: 0.05 | BE174: 4.020733356 | BF174: 4.020733356 | BG174: 4 | BH174: 2.265041576 | BI174: 2.265041576 | BJ174: 2.5
A175: 2018-06-07 | B175: 1.600281715 | G175: 0.01466505602 | H175: 0.01629450731 | I175: 0.01603299193 | J175: 0.02118286118 | T175: 4.091965675 | U175: 4.040112972 | V175: 4.07404232 | W175: 4.834989071 | AF175: 1.379284569 | AG175: 2.265041576 | AH175: 1.556873569 | AI175: 0.6912414551 | AX175: 158 | AY175: 0 | BA175: 0 | BB175: 0.02118286118 | BC175: 0.02118286118 | BD175: 0.05 | BE175: 4.040112972 | BF175: 4.040112972 | BG175: 4 | BH175: 2.265041576 | BI175: 2.265041576 | BJ175: 2.5
A176: 2018-06-08 | B176: 1.191913009 | G176: 0.01778314263 | H176: 0.01571112499 | I176: 0.01150673907 | J176: 0.01814524271 | T176: 4.079918861 | U176: 4.040112972 | V176: 4.055268288 | W176: 4.847455978 | AF176: 1.379284569 | AG176: 2.205842579 | AH176: 1.567884876 | AI176: 0.6912414551 | AX176: 159 | AY176: 0 | BA176: 0 | BB176: 0.01814524271 | BC176: 0.01814524271 | BD176: 0.05 | BE176: 4.040112972 | BF176: 4.040112972 | BG176: 4 | BH176: 2.205842579 | BI176: 2.205842579 | BJ176: 2.5
A177: 2018-06-09 | B177: 2.206799507 | G177: 0.01178837288 | H177: 0.01514785737 | I177: 0.02240997739 | J177: 0.01685777493 | T177: 4.079918861 | U177: 4.04885006 | V177: 4.046392918 | W177: 4.825351715 | AF177: 1.507531302 | AG177: 2.205842579 | AH177: 1.57855883 | AI177: 0.7021209717 | AX177: 160 | AY177: 0 | BA177: 0 | BB177: 0.02240997739 | BC177: 0.02240997739 | BD177: 0.05 | BE177: 4.046392918 | BF177: 4.046392918 | BG177: 4 | BH177: 2.205842579 | BI177: 2.205842579 | BJ177: 2.5
A178: 2018-06-10 | B178: 1.328706503 | G178: 0.01345805638 | H178: 0.0151277408 | I178: 0.01561054122 | J178: 0.01567089185 | T178: 4.075782776 | U178: 4.03711462 | V178: 4.046392918 | W178: 4.825351715 | AF178: 1.505231815 | AG178: 2.270339856 | AH178: 1.529967364 | AI178: 0.7146728516 | AX178: 161 | AY178: 0 | BA178: 0 | BB178: 0.01567089185 | BC178: 0.01567089185 | BD178: 0.05 | BE178: 4.03711462 | BF178: 4.03711462 | BG178: 4 | BH178: 2.270339856 | BI178: 2.270339856 | BJ178: 2.5
A179: 2018-06-11 | B179: 23.65117645 | G179: 0.01307583973 | H179: 0.01377992425 | I179: 0.01736069284 | J179: 0.02504526451 | T179: 4.051635742 | U179: 4.000718117 | V179: 4.027757645 | W179: 4.839447975 | AF179: 1.505231815 | AG179: 2.273170315 | AH179: 1.529967364 | AI179: 0.68956604 | AX179: 162 | AY179: 0 | BA179: 0 | BB179: 0.02504526451 | BC179: 0.02504526451 | BD179: 0.05 | BE179: 4.000718117 | BF179: 4.000718117 | BG179: 4 | BH179: 2.273170315 | BI179: 2.273170315 | BJ179: 2.5
A180: 2018-06-12 | B180: 1.024944663 | G180: 0.01325688977 | H180: 0.01341782324 | I180: 0.01194930635 | J180: 0.01563065872 | T180: 4.051635742 | U180: 3.978609085 | V180: 4.027757645 | W180: 4.839634418 | AF180: 1.578066972 | AG180: 2.225187562 | AH180: 1.592683731 | AI180: 0.6870559692 | AX180: 163 | AY180: 0 | BA180: 0 | BB180: 0.01563065872 | BC180: 0.01563065872 | BD180: 0.05 | BE180: 3.978609085 | BF180: 3.978609085 | BG180: 4 | BH180: 2.225187562 | BI180: 2.225187562 | BJ180: 2.5
A181: 2018-06-13 | B181: 2.640313864 | G181: 0.0149869239 | I181: 0.01850734279 | J181: 0.03904647008 | T181: 4.014326572 | U181: 4.039326668 | V181: 4.012763977 | W181: 4.856266022 | AF181: 1.578229731 | AG181: 2.225187562 | AH181: 1.592683731 | AI181: 0.6745040894 | AX181: 164 | AY181: 0 | BA181: 0 | BB181: 0.03904647008 | BC181: 0.03904647008 | BD181: 0.05 | BE181: 4.012763977 | BF181: 4.012763977 | BG181: 4 | BH181: 2.225187562 | BI181: 2.225187562 | BJ181: 2.5
A182: 2018-06-14 | B182: 13.26795387 | G182: 0.01289479062 | H182: 0.03763830289 | I182: 0.02790183015 | J182: 0.02063971013 | T182: 4.014326572 | U182: 4.030388355 | V182: 4.010435581 | W182: 4.811305046 | AF182: 1.544960678 | AG182: 2.225187562 | AH182: 1.598494807 | AI182: 0.6745040894 | AX182: 165 | AY182: 0 | BA182: 0 | BB182: 0.03763830289 | BC182: 0.03763830289 | BD182: 0.05 | BE182: 4.010435581 | BF182: 4.010435581 | BG182: 4 | BH182: 2.225187562 | BI182: 2.225187562 | BJ182: 2.5
A183: 2018-06-15 | B183: 49.97787094 | G183: 0.01894990914 | H183: 0.02607121319 | I183: 0.0149869239 | J183: 0.02796217985 | T183: 4.023889065 | U183: 4.030388355 | V183: 4.010435581 | W183: 4.808358669 | AF183: 1.544960678 | AG183: 2.287609043 | AH183: 1.402890947 | AI183: 0.691242981 | AX183: 166 | AY183: 0 | BA183: 0 | BB183: 0.02796217985 | BC183: 0.02796217985 | BD183: 0.05 | BE183: 4.010435581 | BF183: 4.010435581 | BG183: 4 | BH183: 2.287609043 | BI183: 2.287609043 | BJ183: 2.5
A184: 2018-06-16 | B184: 35.98873138 | G184: 0.0264735464 | H184: 0.03892577067 | I184: 0.01530879177 | J184: 0.01764232479 | T184: 4.023889065 | U184: 4.216074467 | V184: 4.031401634 | W184: 4.788473606 | AF184: 1.454716264 | AG184: 2.257601998 | AH184: 1.402890947 | AI184: 0.695425415 | AX184: 167 | AY184: 0 | BA184: 0 | BB184: 0.03892577067 | BC184: 0.03892577067 | BD184: 0.05 | BE184: 4.023889065 | BF184: 4.023889065 | BG184: 4 | BH184: 2.257601998 | BI184: 2.257601998 | BJ184: 2.5
A185: 2018-06-17 | B185: 13.60993862 | G185: 0.02212834358 | H185: 0.01657614112 | I185: 0.01822570898 | J185: 0.01993562654 | T185: 4.325525761 | U185: 4.215715408 | V185: 4.072285652 | W185: 4.788473606 | AF185: 1.444388055 | AG185: 2.257601998 | AH185: 1.628471065 | AI185: 0.6837097168 | AX185: 168 | AY185: 0 | BA185: 0 | BB185: 0.02212834358 | BC185: 0.02212834358 | BD185: 0.05 | BE185: 4.072285652 | BF185: 4.072285652 | BG185: 4 | BH185: 2.257601998 | BI185: 2.257601998 | BJ185: 2.5
A186: 2018-06-18 | B186: 35.30275345 | G186: 0.02655401267 | H186: 0.02023737691 | I186: 0.01734057441 | J186: 0.02045866102 | T186: 4.328840733 | U186: 4.166966438 | V186: 4.072285652 | W186: 4.81513834 | AF186: 1.444388055 | AG186: 2.268802219 | AH186: 1.424517632 | AI186: 0.6837097168 | AX186: 169 | AY186: 0 | BA186: 0 | BB186: 0.02655401267 | BC186: 0.02655401267 | BD186: 0.05 | BE186: 4.072285652 | BF186: 4.072285652 | BG186: 4 | BH186: 2.268802219 | BI186: 2.268802219 | BJ186: 2.5
A187: 2018-06-19 | B187: 1.988533497 | G187: 0.02335546166 | H187: 0.02116274275 | I187: 0.03140213341 | J187: 0.01679742523 | T187: 4.257612228 | U187: 4.166966438 | V187: 4.127352238 | W187: 4.794797421 | AF187: 1.457291714 | AG187: 2.216413128 | AH187: 1.424517632 | AI187: 0.7330825806 | AX187: 170 | AY187: 0 | BA187: 0 | BB187: 0.03140213341 | BC187: 0.03140213341 | BD187: 0.05 | BE187: 4.127352238 | BF187: 4.127352238 | BG187: 4 | BH187: 2.216413128 | BI187: 2.216413128 | BJ187: 2.5
A188: 2018-06-20 | B188: 1.55501914 | G188: 0.01416213997 | H188: 0.02367732674 | I188: 0.01452424005 | J188: 0.02826393209 | T188: 4.257612228 | U188: 4.210375786 | V188: 4.127352238 | W188: 4.770112991 | AF188: 1.447124841 | AG188: 2.159447048 | AH188: 1.550640167 | AI188: 0.7431259155 | AX188: 171 | AY188: 0 | BA188: 0 | BB188: 0.02826393209 | BC188: 0.02826393209 | BD188: 0.05 | BE188: 4.127352238 | BF188: 4.127352238 | BG188: 4 | BH188: 2.159447048 | BI188: 2.159447048 | BJ188: 2.5
A189: 2018-06-21 | B189: 6.951317787 | G189: 0.0188493263 | H189: 0.0236169789 | I189: 0.05986722931 | J189: 0.03618990257 | T189: 4.260137558 | U189: 4.144098759 | V189: 4.127352238 | W189: 4.770112991 | AF189: 1.447124841 | AG189: 2.159447048 | AH189: 1.512613678 | AI189: 0.7807830811 | AX189: 172 | AY189: 0 | BA189: 0 | BB189: 0.05986722931 | BC189: 0.05986722931 | BD189: 0.05 | BE189: 4.127352238 | BF189: 4.127352238 | BG189: 4 | BH189: 2.159447048 | BI189: 2.159447048 | BJ189: 2.5
A190: 2018-06-22 | B190: 0.5632669926 | G190: 0.02967209741 | H190: 0.01377992425 | I190: 0.05312814191 | J190: 0.02558841556 | T190: 4.253493786 | U190: 4.144098759 | V190: 4.246975899 | W190: 4.891098499 | AF190: 1.601607103 | AG190: 2.067422035 | AH190: 1.512613678 | AI190: 0.7682312012 | AX190: 173 | AY190: 0 | BA190: 0 | BB190: 0.05312814191 | BC190: 0.05312814191 | BD190: 0.05 | BE190: 4.144098759 | BF190: 4.144098759 | BG190: 4 | BH190: 2.067422035 | BI190: 2.067422035 | BJ190: 2.5
A191: 2018-06-23 | B191: 0.5471736193 | G191: 0.01480587386 | H191: 0.01377992425 | I191: 0.02440152876 | J191: 0.01635485888 | T191: 4.239419937 | U191: 4.193504333 | V191: 4.213691235 | W191: 4.891098499 | AF191: 1.603906279 | AG191: 2.067422035 | AH191: 1.693293389 | AI191: 0.7322471619 | AX191: 174 | AY191: 0 | BA191: 0 | BB191: 0.02440152876 | BC191: 0.02440152876 | BD191: 0.05 | BE191: 4.193504333 | BF191: 4.193504333 | BG191: 4 | BH191: 2.067422035 | BI191: 2.067422035 | BJ191: 2.5
A192: 2018-06-24 | B192: 0.4053510129 | G192: 0.01665660925 | H192: 0.01790384203 | I192: 0.02126332745 | J192: 0.01371957269 | T192: 4.210985184 | U192: 4.179637909 | V192: 4.213691235 | W192: 4.892023087 | AF192: 1.623934696 | AG192: 2.090962016 | AH192: 1.672290867 | AI192: 0.7263885498 | AX192: 175 | AY192: 0 | BA192: 0 | BB192: 0.02126332745 | BC192: 0.02126332745 | BD192: 0.05 | BE192: 4.179637909 | BF192: 4.179637909 | BG192: 4 | BH192: 2.090962016 | BI192: 2.090962016 | BJ192: 2.5
A193: 2018-06-25 | B193: 0.5471736193 | G193: 0.01862804219 | H193: 0.01424260717 | I193: 0.01345805638 | J193: 0.01593240723 | T193: 4.202268124 | U193: 4.179637909 | V193: 4.215806484 | W193: 4.918176174 | AF193: 1.667539095 | AG193: 2.134881328 | AH193: 1.672290867 | AI193: 0.6945892334 | AX193: 176 | AY193: 0 | BA193: 0 | BB193: 0.01862804219 | BC193: 0.01862804219 | BD193: 0.05 | BE193: 4.179637909 | BF193: 4.179637909 | BG193: 4 | BH193: 2.134881328 | BI193: 2.134881328 | BJ193: 2.5
A194: 2018-06-26 | B194: 0.3671293557 | G194: 0.01524844207 | H194: 0.01478575729 | J194: 0.01490645763 | T194: 4.202268124 | U194: 4.188075542 | V194: 4.215806484 | W194: 4.921707153 | AF194: 1.481583286 | AG194: 1.843466622 | AH194: 1.692553893 | AI194: 0.6945892334 | AX194: 177 | AY194: 0 | BA194: 0 | BB194: 0.01524844207 | BC194: 0.01524844207 | BD194: 0.05 | BE194: 4.188075542 | BF194: 4.188075542 | BG194: 4 | BH194: 1.843466622 | BI194: 1.843466622 | BJ194: 2.5
A195: 2018-06-27 | B195: 0.5753369331 | G195: 0.01504727453 | H195: 0.01404144056 | J195: 0.01448400691 | T195: 4.247759342 | U195: 4.245569706 | V195: 4.215806484 | W195: 4.952241421 | AF195: 1.467807883 | AG195: 1.804850509 | AH195: 1.692553893 | AI195: 0.6535842896 | AX195: 178 | AY195: 0 | BA195: 0 | BB195: 0.01504727453 | BC195: 0.01504727453 | BD195: 0.05 | BE195: 4.215806484 | BF195: 4.215806484 | BG195: 4 | BH195: 1.804850509 | BI195: 1.804850509 | BJ195: 2.5
A196: 2018-06-28 | B196: 0.4516194165 | G196: 0.01559042465 | H196: 0.0133172404 | J196: 0.0132971229 | T196: 4.200049877 | U196: 4.176908016 | V196: 4.215806484 | W196: 4.922774315 | AF196: 1.467807883 | AG196: 1.804850509 | AH196: 1.692553893 | AI196: 0.6535842896 | AX196: 179 | AY196: 0 | BA196: 0 | BB196: 0.01559042465 | BC196: 0.01559042465 | BD196: 0.05 | BE196: 4.176908016 | BF196: 4.176908016 | BG196: 4 | BH196: 1.804850509 | BI196: 1.804850509 | BJ196: 2.5
A197: 2018-06-29 | B197: 0.3741701841 | G197: 0.01530879177 | H197: 0.0151880905 | I197: 0.0766646564 | J197: 0.01299537346 | T197: 4.175727844 | U197: 4.157823086 | W197: 4.922774315 | AF197: 1.679618255 | AG197: 2.130671551 | AH197: 1.474150438 | AI197: 0.6987731934 | AX197: 180 | AY197: 0 | BA197: 0 | BB197: 0.0766646564 | BC197: 0.0766646564 | BD197: 0.05 | BE197: 4.157823086 | BF197: 4.157823086 | BG197: 4 | BH197: 2.130671551 | BI197: 2.130671551 | BJ197: 2.5
A198: 2018-06-30 | B198: 0.4053510129 | G198: 0.01826594211 | H198: 0.01400120743 | I198: 0.0142828403 | J198: 0.01297525689 | T198: 4.175727844 | U198: 4.157823086 | V198: 4.23657608 | W198: 4.921041012 | AF198: 1.684226336 | AG198: 2.070779208 | AH198: 1.460800171 | AI198: 0.7121612549 | AX198: 181 | AY198: 0 | BA198: 0 | BB198: 0.01826594211 | BC198: 0.01826594211 | BD198: 0.05 | BE198: 4.157823086 | BF198: 4.157823086 | BG198: 4 | BH198: 2.070779208 | BI198: 2.070779208 | BJ198: 2.5
A199: 2018-07-01 | B199: 0.4194327295 | G199: 0.01629450731 | H199: 0.0179239586 | I199: 0.02035807632 | J199: 0.01961375959 | T199: 4.183709621 | U199: 4.161462307 | V199: 4.350009918 | W199: 4.910502911 | AF199: 1.68234991 | AG199: 2.070779208 | AH199: 1.45907862 | AI199: 0.7121612549 | AX199: 182 | AY199: 0 | BA199: 0 | BB199: 0.02035807632 | BC199: 0.02035807632 | BD199: 0.05 | BE199: 4.161462307 | BF199: 4.161462307 | BG199: 4 | BH199: 2.070779208 | BI199: 2.070779208 | BJ199: 2.5
A200: 2018-07-02 | B200: 2.884731531 | G200: 0.0189700257 | H200: 0.0254274793 | I200: 0.03592838347 | J200: 0.02762019634 | T200: 4.171839237 | U200: 4.161462307 | V200: 4.350009918 | W200: 4.910502911 | AF200: 1.661153158 | AG200: 2.019207001 | AH200: 1.424142293 | AI200: 0.7046295166 | AX200: 183 | AY200: 0 | BA200: 0 | BB200: 0.03592838347 | BC200: 0.03592838347 | BD200: 0.05 | BE200: 4.161462307 | BF200: 4.161462307 | BG200: 4 | BH200: 2.019207001 | BI200: 2.019207001 | BJ200: 2.5
A201: 2018-07-03 | B201: 2.233957052 | G201: 0.01526855864 | H201: 0.02297324501 | I201: 0.01359887328 | J201: 0.02178636007 | T201: 4.171839237 | U201: 4.162077427 | V201: 4.362576962 | W201: 4.906157494 | AF201: 1.632550349 | AG201: 1.987524033 | AH201: 1.418092935 | AI201: 0.7046295166 | AX201: 184 | AY201: 0 | BA201: 0 | BB201: 0.02297324501 | BC201: 0.02297324501 | BD201: 0.05 | BE201: 4.162077427 | BF201: 4.162077427 | BG201: 4 | BH201: 1.987524033 | BI201: 1.987524033 | BJ201: 2.5
A202: 2018-07-04 | B202: 0.3761818707 | G202: 0.01603299193 | I202: 0.02951116487 | J202: 0.0254274793 | T202: 4.157247543 | U202: 4.170327663 | V202: 4.330434799 | W202: 4.893297672 | AF202: 1.617481709 | AG202: 1.987524033 | AH202: 1.265644108 | AI202: 0.7104873657 | AX202: 185 | AY202: 0 | BA202: 0 | BB202: 0.02951116487 | BC202: 0.02951116487 | BD202: 0.05 | BE202: 4.157247543 | BF202: 4.157247543 | BG202: 4 | BH202: 1.987524033 | BI202: 1.987524033 | BJ202: 2.5
A203: 2018-07-05 | B203: 2.817340612 | G203: 0.01567089185 | I203: 0.02289277874 | J203: 0.02832427993 | T203: 4.157247543 | U203: 4.170327663 | V203: 4.318874836 | W203: 4.893297672 | AF203: 1.463005724 | AG203: 1.987524033 | AH203: 1.265644108 | AI203: 0.6987716675 | AX203: 186 | AY203: 0 | BA203: 0 | BB203: 0.02832427993 | BC203: 0.02832427993 | BD203: 0.05 | BE203: 4.157247543 | BF203: 4.157247543 | BG203: 4 | BH203: 1.987524033 | BI203: 1.987524033 | BJ203: 2.5
... 180 more rows

Sheet MonthDist (hidden)
B1: Settled Turbidity | J1: Turbidity 95th P | AA1: LRV 5th P | AM1: PD 95th P
A2: MONTH | B2: Sed1 95% | C2: Sed2 95% | D2: Sed3 95% | E2: Sed4 95% | F2: All sed 95% | G2: Goal 3 | H2: Goal 2 | I2: Goal 1 | J2: T1 Turb | K2: T2 Turb | L2: T3 Turb | M2: T4 Turb | N2: T5 Turb | O2: T6 Turb | P2: T7 Turb | Q2: T8 Turb | R2: T9 Turb | S2: T10 Turb | T2: T11 Turb | U2: T12 Turb | V2: CFE | AA2: T1 LRV | AB2: T2 LRV | AC2: T3 LRV | AD2: T4 LRV | AE2: T5 LRV | AF2: T6 LRV | AG2: T7 LRV | AH2: T8 LRV | AI2: T9 LRV | AJ2: T10 LRV | AK2: T11 LRV | AL2: T12 LRV | AM2: T1 PD | AN2: T2 PD | AO2: T3 PD | AP2: T4 PD | AQ2: T5 PD | AR2: T6 PD | AS2: T7 PD | AT2: T8 PD | AU2: T9 PD | AV2: T10 PD | AW2: T11 PD | AX2: T12 PD
A3: =MonthStart -> 2018-12-01 | B3: =IF(SUM(_Sed1)=0,,PERCENTILE(_Sed1,0.95)) -> 0 | C3: =IF(SUM(_Sed2)=0,,PERCENTILE(_Sed2,0.95)) -> 0 | D3: =IF(SUM(_Sed3)=0,,PERCENTILE(_Sed3,0.95)) -> 0 | E3: =IF(SUM(_Sed4)=0,,PERCENTILE(_Sed4,0.95)) -> 0 | F3: =IF(SUM(SedGoalPercent)=0,,PERCENTILE(SedGoalPercent,0.95)) -> 0 | G3: =IF(SUM(SedGoalPercent)=0,,100*FREQUENCY(SedGoalPercent,3)/COUNT(SedGoalPercent)) -> 0 | H3: =IF(SUM(SedGoalPercent)=0,,100*FREQUENCY(SedGoalPercent,2)/COUNT(SedGoalPercent)) -> 0 | I3: =IF(SUM(SedGoalPercent)=0,,100*FREQUENCY(SedGoalPercent,1)/COUNT(SedGoalPercent)) -> 0 | J3: =IF(SUM(Filter1)=0,,PERCENTILE(Filter1,0.95)) -> 0 | K3: =IF(SUM(Filter2)=0,,PERCENTILE(Filter2,0.95)) -> 0 | L3: =IF(SUM(Filter3)=0,,PERCENTILE(Filter3,0.95)) -> 0 | M3: =IF(SUM(Filter4)=0,,PERCENTILE(Filter4,0.95)) -> 0 | N3: =IF(SUM(Filter5)=0,,PERCENTILE(Filter5,0.95)) -> 0 | O3: =IF(SUM(Filter6)=0,,PERCENTILE(Filter6,0.95)) -> 0 | P3: =IF(SUM(Filter7)=0,,PERCENTILE(Filter7,0.95)) -> 0 | Q3: =IF(SUM(Filter8)=0,,PERCENTILE(Filter8,0.95)) -> 0 | R3: =IF(SUM(Filter9)=0,,PERCENTILE(Filter9,0.95)) -> 0 | S3: =IF(SUM(Filter10)=0,,PERCENTILE(Filter10,0.95)) -> 0 | T3: =IF(SUM(Filter11)=0,,PERCENTILE(Filter11,0.95)) -> 0 | U3: =IF(SUM(Filter12)=0,,PERCENTILE(Filter12,0.95)) -> 0 | V3: =IF(SUM(Combined)=0,,PERCENTILE(Combined,0.95)) -> 0 | AA3: =IF(SUM(T1LRV)=0,,PERCENTILE(T1LRV,0.05)) -> 0 | AB3: =IF(SUM(T2LRV)=0,,PERCENTILE(T2LRV,0.05)) -> 0 | AC3: =IF(SUM(T3LRV)=0,,PERCENTILE(T3LRV,0.05)) -> 0 | AD3: =IF(SUM(T4LRV)=0,,PERCENTILE(T4LRV,0.05)) -> 0 | AE3: =IF(SUM(T5LRV)=0,,PERCENTILE(T5LRV,0.05)) -> 0 | AF3: =IF(SUM(T6LRV)=0,,PERCENTILE(T6LRV,0.05)) -> 0 | AG3: =IF(SUM(T7LRV)=0,,PERCENTILE(T7LRV,0.05)) -> 0 | AH3: =IF(SUM(T8LRV)=0,,PERCENTILE(T8LRV,0.05)) -> 0 | AI3: =IF(SUM(T9LRV)=0,,PERCENTILE(T9LRV,0.05)) -> 0 | AJ3: =IF(SUM(T10LRV)=0,,PERCENTILE(T10LRV,0.05)) -> 0 | AK3: =IF(SUM(T11LRV)=0,,PERCENTILE(T11LRV,0.05)) -> 0 | AL3: =IF(SUM(T12LRV)=0,,PERCENTILE(T12LRV,0.05)) -> 0 | AM3: =IF(SUM(T1PD)=0,,PERCENTILE(T1PD,0.95)) -> 0 | AN3: =IF(SUM(T2PD)=0,,PERCENTILE(T2PD,0.95)) -> 0 | AO3: =IF(SUM(T3PD)=0,,PERCENTILE(T3PD,0.95)) -> 0 | AP3: =IF(SUM(T4PD)=0,,PERCENTILE(T4PD,0.95)) -> 0 | AQ3: =IF(SUM(T5PD)=0,,PERCENTILE(T5PD,0.95)) -> 0 | AR3: =IF(SUM(T6PD)=0,,PERCENTILE(T6PD,0.95)) -> 0 | AS3: =IF(SUM(T7PD)=0,,PERCENTILE(T7PD,0.95)) -> 0 | AT3: =IF(SUM(T8PD)=0,,PERCENTILE(T8PD,0.95)) -> 0 | AU3: =IF(SUM(T9PD)=0,,PERCENTILE(T9PD,0.95)) -> 0 | AV3: =IF(SUM(T10PD)=0,,PERCENTILE(T10PD,0.95)) -> 0 | AW3: =IF(SUM(T11PD)=0,,PERCENTILE(T11PD,0.95)) -> 0 | AX3: =IF(SUM(T12PD)=0,,PERCENTILE(T12PD,0.95)) -> 0
W4: Leave this space blank to allow for four
W5: columns between report pages.
A6: Monthly Data | AZ6: Currently not used in summary table
B7: Raw | C7: Sed 1 | D7: Sed 2 | E7: Sed 3 | F7: Sed 4 | G7: T1 Turb | H7: T2 Turb | I7: T3 Turb | J7: T4 Turb | K7: T5 Turb | L7: T6 Turb | M7: T7 Turb | N7: T8 Turb | O7: T9 Turb | P7: T10 Turb | Q7: T11 Turb | R7: T12 Turb | S7: CFE | T7: T1 LRV | U7: T2 LRV | V7: T3 LRV | W7: T4 LRV | X7: T5 LRV | Y7: T6 LRV | Z7: T7 LRV | AA7: T8 LRV | AB7: T9 LRV | AC7: T10 LRV | AD7: T11 LRV | AE7: T12 LRV | AF7: T1 PD | AG7: T2 PD | AH7: T3 PD | AI7: T4 PD | AJ7: T5 PD | AK7: T6 PD | AL7: T7 PD | AM7: T8 PD | AN7: T9 PD | AO7: T10 PD | AP7: T11 PD | AQ7: T12 PD
AZ8: MaxSettle | BD8: CombinedFilter | BH8: MaxFilterValues
AW9: MaxSettle | AX9: MaxFilter | AZ9: MSC1 | BB9: MS% | BD9: CFC1 | BF9: CF%
A10: 2018-12-01 | AW10: =MAX(C10:F10) -> 0 | AX10: =MAX(G10:R10) -> 0 | BA10: 5 | BB10: =100*COUNT(AZ10:$AZ$10)/$AZ$43 ->  | BE10: 4 | BF10: =100*COUNT(BD10:$BD$10)/$BD$43 -> 
A11: 2018-12-02 | AW11: =MAX(C11:F11) -> 0 | AX11: 0 | BA11: 21 | BB11: =100*COUNT(AZ$10:$AZ11)/$AZ$43 ->  | BE11: 17 | BF11: =100*COUNT(BD$10:$BD11)/$BD$43 -> 
A12: 2018-12-03 | AW12: 0 | AX12: 0 | BA12: 27 | BB12: =100*COUNT(AZ$10:$AZ12)/$AZ$43 ->  | BE12: 12 | BF12: =100*COUNT(BD$10:$BD12)/$BD$43 -> 
A13: 2018-12-04 | AW13: 0 | AX13: 0 | BA13: 16 | BB13: =100*COUNT(AZ$10:$AZ13)/$AZ$43 ->  | BE13: 8 | BF13: =100*COUNT(BD$10:$BD13)/$BD$43 -> 
A14: 2018-12-05 | AW14: 0 | AX14: 0 | BA14: 24 | BB14: =100*COUNT(AZ$10:$AZ14)/$AZ$43 ->  | BE14: 23 | BF14: =100*COUNT(BD$10:$BD14)/$BD$43 -> 
A15: 2018-12-06 | AW15: 0 | AX15: 0 | BA15: 17 | BB15: =100*COUNT(AZ$10:$AZ15)/$AZ$43 ->  | BE15: 11 | BF15: =100*COUNT(BD$10:$BD15)/$BD$43 -> 
A16: 2018-12-07 | AW16: 0 | AX16: 0 | BA16: 28 | BB16: =100*COUNT(AZ$10:$AZ16)/$AZ$43 ->  | BE16: 24 | BF16: =100*COUNT(BD$10:$BD16)/$BD$43 -> 
A17: 2018-12-08 | AW17: 0 | AX17: 0 | BA17: 26 | BB17: =100*COUNT(AZ$10:$AZ17)/$AZ$43 ->  | BE17: 29 | BF17: =100*COUNT(BD$10:$BD17)/$BD$43 -> 
A18: 2018-12-09 | AW18: 0 | AX18: 0 | BA18: 7 | BB18: =100*COUNT(AZ$10:$AZ18)/$AZ$43 ->  | BE18: 10 | BF18: =100*COUNT(BD$10:$BD18)/$BD$43 -> 
A19: 2018-12-10 | AW19: 0 | AX19: 0 | BA19: 15 | BB19: =100*COUNT(AZ$10:$AZ19)/$AZ$43 ->  | BE19: 14 | BF19: =100*COUNT(BD$10:$BD19)/$BD$43 -> 
A20: 2018-12-11 | AW20: 0 | AX20: 0 | BA20: 6 | BB20: =100*COUNT(AZ$10:$AZ20)/$AZ$43 ->  | BE20: 16 | BF20: =100*COUNT(BD$10:$BD20)/$BD$43 -> 
A21: 2018-12-12 | AW21: 0 | AX21: 0 | BA21: 2 | BB21: =100*COUNT(AZ$10:$AZ21)/$AZ$43 ->  | BE21: 22 | BF21: =100*COUNT(BD$10:$BD21)/$BD$43 -> 
A22: 2018-12-13 | AW22: 0 | AX22: 0 | BA22: 23 | BB22: =100*COUNT(AZ$10:$AZ22)/$AZ$43 ->  | BE22: 3 | BF22: =100*COUNT(BD$10:$BD22)/$BD$43 -> 
A23: 2018-12-14 | AW23: 0 | AX23: 0 | BA23: 22 | BB23: =100*COUNT(AZ$10:$AZ23)/$AZ$43 ->  | BE23: 1 | BF23: =100*COUNT(BD$10:$BD23)/$BD$43 -> 
A24: 2018-12-15 | AW24: 0 | AX24: 0 | BA24: 11 | BB24: =100*COUNT(AZ$10:$AZ24)/$AZ$43 ->  | BE24: 31 | BF24: =100*COUNT(BD$10:$BD24)/$BD$43 -> 
A25: 2018-12-16 | AW25: 0 | AX25: 0 | BA25: 14 | BB25: =100*COUNT(AZ$10:$AZ25)/$AZ$43 ->  | BE25: 15 | BF25: =100*COUNT(BD$10:$BD25)/$BD$43 -> 
A26: 2018-12-17 | AW26: 0 | AX26: 0 | BA26: 19 | BB26: =100*COUNT(AZ$10:$AZ26)/$AZ$43 ->  | BE26: 9 | BF26: =100*COUNT(BD$10:$BD26)/$BD$43 -> 
A27: 2018-12-18 | AW27: 0 | AX27: 0 | BA27: 25 | BB27: =100*COUNT(AZ$10:$AZ27)/$AZ$43 ->  | BE27: 27 | BF27: =100*COUNT(BD$10:$BD27)/$BD$43 -> 
A28: 2018-12-19 | AW28: 0 | AX28: 0 | BA28: 18 | BB28: =100*COUNT(AZ$10:$AZ28)/$AZ$43 ->  | BE28: 30 | BF28: =100*COUNT(BD$10:$BD28)/$BD$43 -> 
A29: 2018-12-20 | AW29: 0 | AX29: 0 | BA29: 10 | BB29: =100*COUNT(AZ$10:$AZ29)/$AZ$43 ->  | BE29: 28 | BF29: =100*COUNT(BD$10:$BD29)/$BD$43 -> 
A30: 2018-12-21 | AW30: 0 | AX30: 0 | BA30: 12 | BB30: =100*COUNT(AZ$10:$AZ30)/$AZ$43 ->  | BE30: 5 | BF30: =100*COUNT(BD$10:$BD30)/$BD$43 -> 
A31: 2018-12-22 | AW31: 0 | AX31: 0 | BA31: 9 | BB31: =100*COUNT(AZ$10:$AZ31)/$AZ$43 ->  | BE31: 13 | BF31: =100*COUNT(BD$10:$BD31)/$BD$43 -> 
A32: 2018-12-23 | AW32: 0 | AX32: 0 | BA32: 1 | BB32: =100*COUNT(AZ$10:$AZ32)/$AZ$43 ->  | BE32: 6 | BF32: =100*COUNT(BD$10:$BD32)/$BD$43 -> 
A33: 2018-12-24 | AW33: 0 | AX33: 0 | BA33: 3 | BB33: =100*COUNT(AZ$10:$AZ33)/$AZ$43 ->  | BE33: 2 | BF33: =100*COUNT(BD$10:$BD33)/$BD$43 -> 
A34: 2018-12-25 | AW34: 0 | AX34: 0 | BA34: 20 | BB34: =100*COUNT(AZ$10:$AZ34)/$AZ$43 ->  | BE34: 20 | BF34: =100*COUNT(BD$10:$BD34)/$BD$43 -> 
A35: 2018-12-26 | AW35: 0 | AX35: 0 | BA35: 4 | BB35: =100*COUNT(AZ$10:$AZ35)/$AZ$43 ->  | BE35: 18 | BF35: =100*COUNT(BD$10:$BD35)/$BD$43 -> 
A36: 2018-12-27 | AW36: 0 | AX36: 0 | BA36: 29 | BB36: =100*COUNT(AZ$10:$AZ36)/$AZ$43 ->  | BE36: 26 | BF36: =100*COUNT(BD$10:$BD36)/$BD$43 -> 
A37: 2018-12-28 | AW37: 0 | AX37: 0 | BA37: 13 | BB37: =100*COUNT(AZ$10:$AZ37)/$AZ$43 ->  | BE37: 25 | BF37: =100*COUNT(BD$10:$BD37)/$BD$43 -> 
A38: 2018-12-29 | AW38: 0 | AX38: 0 | BA38: 8 | BB38: =100*COUNT(AZ$10:$AZ38)/$AZ$43 ->  | BE38: 19 | BF38: =100*COUNT(BD$10:$BD38)/$BD$43 -> 
A39: 2018-12-30 | AW39: 0 | AX39: 0 | BA39: 30 | BB39: =100*COUNT(AZ$10:$AZ39)/$AZ$43 ->  | BE39: 7 | BF39: =100*COUNT(BD$10:$BD39)/$BD$43 -> 
A40: 2018-12-31 | AW40: 0 | AX40: 0 | BA40: 31 | BB40: =100*COUNT(AZ$10:$AZ40)/$AZ$43 ->  | BE40: 21 | BF40: =100*COUNT(BD$10:$BD40)/$BD$43 -> 
AZ43: =COUNT(_MSC1) -> 0 | BD43: =COUNT(_CFC1) -> 0

Sheet Summary
C2: =DataEntryValues!G3&" "&DataEntryValues!G4 ->  | Q2: Treatment Barrier Performance Summary
C25: ANNUAL DATA | F25: Avg | G25: Min | H25: Max | I25: RSQ | J25: 0.95 | K25: Opt. Goal | L25: Reg.
F26: NTU | G26: NTU | H26: NTU | J26: NTU | K26: % Values | L26: % Values
C27: Raw Turbidity | F27: =IF(SUM(Raw)=0,,AVERAGE(Raw)) -> 5.337399163 | G27: =IF(SUM(Raw)=0,,MIN(Raw)) -> 0.1116475537 | H27: =IF(SUM(Raw)=0,,MAX(Raw)) -> 49.98994064 | I27: n/a | J27: =IF(SUM(Raw)=0,,PERCENTILE(Raw, 0.95)) -> 26.67692518 | K27: n/a | L27: n/a
C28: Max. Settled Turbidity | F28: =IF(SUM(MaxSedPlot)=0,,AVERAGE(MaxSedPlot)) -> 0 | G28: =IF(SUM(MaxSedPlot)=0,,MIN(MaxSedPlot)) -> 0 | H28: =IF(SUM(MaxSedPlot)=0,,MAX(MaxSedPlot)) -> 0 | I28: =IF(SUM(Raw)=0,,IF(SUM(MaxSedPlot)=0,,RSQ(Raw,MaxSedPlot))) -> 0 | J28: =IF(SUM(MaxSedPlot)=0,,PERCENTILE(MaxSedPlot,0.95)) -> 0 | K28: =IF(SUM(MaxSedPlot)=0,,(COUNTIFS(MaxSedPlot,"<="&DataEntryValues!G5)/COUNT(MaxSedPlot))*100) -> 0 | L28: n/a
C29: Max. Membrane Unit Turbidity | F29: =IF(SUM(MaxFilterPlot)=0,,AVERAGE(MaxFilterPlot)) -> 0.03686822038 | G29: =IF(SUM(MaxFilterPlot)=0,,MIN(MaxFilterPlot)) -> 0.01311607286 | H29: =(IF(SUM(MaxFilterPlot)=0,,MAX(MaxFilterPlot))) -> 0.1166566089 | I29: =IF(SUM(MaxSedPlot)=0,,IF(SUM(MaxFilterPlot)=0,,RSQ(MaxSedPlot,MaxFilterPlot))) -> 0 | J29: =IF(SUM(MaxFilterPlot)=0,,PERCENTILE(MaxFilterPlot,0.95)) -> 0.06139509026 | K29: =IF(SUM(MaxFilterPlot)=0,,(COUNTIFS(MaxFilterPlot,"<="&DataEntryValues!G6)/COUNT(MaxFilterPlot))*100) -> 79.61538462 | L29: n/a
C30: Min. Membrane Unit LRV | F30: =IF(SUM(MinLRVplot)=0,,AVERAGE(MinLRVplot)) -> 4.120263601 | G30: =IF(SUM(MinLRVplot)=0,,MIN(MinLRVplot)) -> 3.608199358 | H30: =IF(SUM(MinLRVplot)=0,,MAX(MinLRVplot)) -> 4.352005959 | I30: n/a | J30: =IF(SUM(MinLRVplot)=0,,PERCENTILE(MinLRVplot,0.05)) -> 4.010423422 | K30: =IF(SUM(MinLRVplot)=0,,(COUNTIFS(MinLRVplot,">="&DataEntryValues!G8)/COUNT(MinLRVplot))*100) -> 96.15384615 | L30: n/a
C31: Max. Membrane Unit PD | F31: =IF(SUM(MaxPDplot)=0,,AVERAGE(MaxPDplot)) -> 1.95345941 | G31: =IF(SUM(MaxPDplot)=0,,MIN(MaxPDplot)) -> 1.577725885 | H31: =IF(SUM(MaxPDplot)=0,,MAX(MaxPDplot)) -> 2.37361908 | I31: n/a | J31: =IF(SUM(MaxPDplot)=0,,PERCENTILE(MaxPDplot,0.95)) -> 2.272423184 | K31: =IF(SUM(MaxPDplot)=0,,(COUNTIFS(MaxPDplot,"<="&DataEntryValues!G9)/COUNT(MaxPDplot))*100) -> 100 | L31: n/a
C32: Combined Filtered Turbidity | F32: =IF(SUM(Comb)=0,,AVERAGE(Comb)) -> 0 | G32: =IF(SUM(Comb)=0,,MIN(Comb)) -> 0 | H32: =IF(SUM(Comb)=0,,MAX(Comb)) -> 0 | I32: =IF(SUM(MaxFilterPlot)=0,,IF(SUM(Comb)=0,,RSQ(MaxFilterPlot,Comb))) -> 0 | J32: =IF(SUM(Comb)=0,,PERCENTILE(Comb,0.95)) -> 0 | K32: =IF(SUM(Comb)=0,,(COUNTIFS(Comb,"<="&DataEntryValues!G6)/COUNT(Comb))*100) -> 0 | L32: =IF(SUM(Comb)=0,,(COUNTIFS(Comb,"<="&DataEntryValues!G7)/COUNT(Comb))*100) -> 0
C34: RSQ = Correlation Coefficient for two selected data sets (> ~ 0.25 suggests correlation)
C35: 95% = 95th Percentile value for data set
C36: Opt. Goal = % of values in data set that are less than or equal to the selected optimization turbidity goal
C37: Reg. = % of values in data set that are less than or equal to the regulated turbidity requirement
C43: =Instructions!B1 -> Membrane Optimization Assessment Software

Sheet OptimizationTrend
C2: =DataEntryValues!G3&" "&DataEntryValues!G4 ->  | U2: Optimization Trend Report | AB2: =DataEntryValues!G3&" "&DataEntryValues!G4 ->  | AW2: Optimization Trend Report
D5: Settled Water Turbidity | L5: Membrane Train Performance | AC5: Membrane Train Performance
D6: 95th Percentile Values (NTU) | I6: % Values Meeting Goal | L6: 95th Percentile Turbidity Values (NTU) | AC6: 95th Percentile LRV Values | AO6: 95th Percentile Pressure Decay Values (psi/min)
D7: Sed 1 | E7: Sed 2 | F7: Sed 3 | G7: Sed 4 | H7: All Sed 95 P | I7: 3 NTU | J7: 2 NTU | K7: 1 NTU | L7: T1 Turb | M7: T2 Turb | N7: T3 Turb | O7: T4 Turb | P7: T5 Turb | Q7: T6 Turb | R7: T7 Turb | S7: T8 Turb | T7: T9 Turb | U7: T10 Turb | V7: T11 Turb | W7: T12 Turb | X7: CFE Turb | AC7: T1 LRV | AD7: T2 LRV | AE7: T3 LRV | AF7: T4 LRV | AG7: T5 LRV | AH7: T6 LRV | AI7: T7 LRV | AJ7: T8 LRV | AK7: T9 LRV | AL7: T10 LRV | AM7: T11 LRV | AN7: T12 LRV | AO7: T1 PD | AP7: T2 PD | AQ7: T3 PD | AR7: T4 PD | AS7: T5 PD | AT7: T6 PD | AU7: T7 PD | AV7: T8 PD | AW7: T9 PD | AX7: T10 PD | AY7: T11 PD | AZ7: T12 PD
C8: 2018-01-01 | L8: 0.0367189711 | M8: 0.02153791981 | N8: 0.04192315415 | O8: 0.01431301483 | AB8: 2018-01-01 | AC8: 4.104479861 | AD8: 4.162584782 | AE8: 4.082748652 | AF8: 4.787871361 | AO8: 1.623745819 | AP8: 1.862313671 | AQ8: 1.69340627 | AR8: 0.7142555237
C9: 2018-02-01 | L9: 0.06089116782 | M9: 0.03640112579 | N9: 0.04452826455 | O9: 0.03989941608 | AB9: 2018-02-01 | AC9: 4.126123023 | AD9: 4.149665451 | AE9: 4.088827467 | AF9: 4.763965678 | AO9: 1.721336648 | AP9: 2.001218741 | AQ9: 1.786409578 | AR9: 0.742833252
C10: 2018-03-01 | L10: 0.05269663967 | M10: 0.03276000917 | N10: 0.05150774531 | O10: 0.0437135417 | AB10: 2018-03-01 | AC10: 4.101770163 | AD10: 4.114563465 | AE10: 4.089820385 | AF10: 4.746464014 | AO10: 1.788248474 | AP10: 2.17881163 | AQ10: 1.836563102 | AR10: 0.7837150574
C11: 2018-04-01 | L11: 0.05192516372 | M11: 0.03194125965 | N11: 0.04587608445 | O11: 0.04738282189 | AB11: 2018-04-01 | AC11: 4.063348532 | AD11: 4.05399425 | AE11: 4.018797135 | AF11: 4.721618533 | AO11: 1.839490829 | AP11: 2.281336577 | AQ11: 1.991944077 | AR11: 0.7820820618
C12: 2018-05-01 | L12: 0.0563568715 | M12: 0.02895493833 | N12: 0.03788975999 | O12: 0.03219975904 | AB12: 2018-05-01 | AC12: 4.062269688 | AD12: 4.052538872 | AE12: 4.034694195 | AF12: 4.770831347 | AO12: 1.843279119 | AP12: 2.304093131 | AQ12: 1.942142615 | AR12: 0.7468917847
C13: 2018-06-01 | L13: 0.02651780285 | M13: 0.03870851025 | N13: 0.05784550309 | O13: 0.03680949491 | AB13: 2018-06-01 | AC13: 4.018629694 | AD13: 3.998902357 | AE13: 4.01136694 | AF13: 4.778375268 | AO13: 1.674182633 | AP13: 2.33846726 | AQ13: 1.692553893 | AR13: 0.7569338226
C14: 2018-07-01 | L14: 0.09013478309 | M14: 0.05073124114 | N14: 0.03372661304 | O14: 0.04039428569 | AB14: 2018-07-01 | AC14: 3.984621429 | AD14: 4.161769867 | AE14: 4.181975126 | AF14: 4.776248217 | AO14: 1.657980109 | AP14: 2.003365517 | AQ14: 1.667417405 | AR14: 0.7330848694
C15: 2018-08-01 | L15: 0.06307382509 | M15: 0.04382116236 | N15: 0.05304767564 | O15: 0.05499195103 | AB15: 2018-08-01 | AC15: 4.222412586 | AD15: 4.145790577 | AE15: 4.056121826 | AF15: 4.704240322 | AO15: 1.340036308 | AP15: 2.01467686 | AQ15: 1.76277683 | AR15: 0.9614728845
C16: 2018-09-01 | L16: 0.04681552947 | M16: 0.04445584435 | N16: 0.01833433956 | O16: 0.02339167148 | AB16: 2018-09-01 | AC16: 4.326108932 | AD16: 3.608199358 | AE16: 4.113940239 | AF16: 4.870816231 | AO16: 1.341314423 | AP16: 1.845333293 | AQ16: 1.945613605 | AR16: 0.6524121094
C17: 2018-10-01 | AB17: 2018-10-01
C18: 2018-11-01 | AB18: 2018-11-01
C19: 2018-12-01 | AB19: 2018-12-01
C20: Yr. 95% | D20: =IF(SUM(DataEntryValues!C18:C383)=0,,PERCENTILE(DataEntryValues!C18:C383,0.95)) -> 0 | E20: =IF(SUM(DataEntryValues!D18:D383)=0,,PERCENTILE(DataEntryValues!D18:D383,0.95)) -> 0 | F20: =IF(SUM(DataEntryValues!E18:E383)=0,,PERCENTILE(DataEntryValues!E18:E383,0.95)) -> 0 | G20: =IF(SUM(DataEntryValues!F18:F383)=0,,PERCENTILE(DataEntryValues!F18:F383,0.95)) -> 0 | L20: =IF(SUM(DataEntryValues!G18:G383)=0,,PERCENTILE(DataEntryValues!G18:G383,0.95)) -> 0.05863206461 | M20: =IF(SUM(DataEntryValues!H18:H383)=0,,PERCENTILE(DataEntryValues!H18:H383,0.95)) -> 0.03857272249 | N20: =IF(SUM(DataEntryValues!I18:I383)=0,,PERCENTILE(DataEntryValues!I18:I383,0.95)) -> 0.04851941243 | O20: =IF(SUM(DataEntryValues!J18:J383)=0,,PERCENTILE(DataEntryValues!J18:J383,0.95)) -> 0.04436934665 | P20: =IF(SUM(DataEntryValues!K18:K383)=0,,PERCENTILE(DataEntryValues!K18:K383,0.95)) -> 0 | Q20: =IF(SUM(DataEntryValues!L18:L383)=0,,PERCENTILE(DataEntryValues!L18:L383,0.95)) -> 0 | R20: =IF(SUM(DataEntryValues!M18:M383)=0,,PERCENTILE(DataEntryValues!M18:M383,0.95)) -> 0 | S20: =IF(SUM(DataEntryValues!N18:N383)=0,,PERCENTILE(DataEntryValues!N18:N383,0.95)) -> 0 | T20: =IF(SUM(DataEntryValues!O18:O383)=0,,PERCENTILE(DataEntryValues!O18:O383,0.95)) -> 0 | U20: =IF(SUM(DataEntryValues!P18:P383)=0,,PERCENTILE(DataEntryValues!P18:P383,0.95)) -> 0 | V20: =IF(SUM(DataEntryValues!Q18:Q383)=0,,PERCENTILE(DataEntryValues!Q18:Q383,0.95)) -> 0 | W20: =IF(SUM(DataEntryValues!R18:R383)=0,,PERCENTILE(DataEntryValues!R18:R383,0.95)) -> 0 | X20: =IF(SUM(DataEntryValues!S18:S383)=0,,PERCENTILE(DataEntryValues!S18:S383,0.95)) -> 0 | AB20: Yr. 95% | AC20: =IF(SUM(DataEntryValues!T18:T383)=0,,PERCENTILE(DataEntryValues!T18:T383,0.05)) -> 4.063632727 | AD20: =IF(SUM(DataEntryValues!U18:U383)=0,,PERCENTILE(DataEntryValues!U18:U383,0.05)) -> 4.030388355 | AE20: =IF(SUM(DataEntryValues!V18:V383)=0,,PERCENTILE(DataEntryValues!V18:V383,0.05)) -> 4.044754505 | AF20: =IF(SUM(DataEntryValues!W18:W383)=0,,PERCENTILE(DataEntryValues!W18:W383,0.05)) -> 4.750577927 | AG20: =IF(SUM(DataEntryValues!X18:X383)=0,,PERCENTILE(DataEntryValues!X18:X383,0.05)) -> 0 | AH20: =IF(SUM(DataEntryValues!Y18:Y383)=0,,PERCENTILE(DataEntryValues!Y18:Y383,0.05)) -> 0 | AI20: =IF(SUM(DataEntryValues!Z18:Z383)=0,,PERCENTILE(DataEntryValues!Z18:Z383,0.05)) -> 0 | AJ20: =IF(SUM(DataEntryValues!AA18:AA383)=0,,PERCENTILE(DataEntryValues!AA18:AA383,0.05)) -> 0 | AK20: =IF(SUM(DataEntryValues!AB18:AB383)=0,,PERCENTILE(DataEntryValues!AB18:AB383,0.05)) -> 0 | AL20: =IF(SUM(DataEntryValues!AC18:AC383)=0,,PERCENTILE(DataEntryValues!AC18:AC383,0.05)) -> 0 | AM20: =IF(SUM(DataEntryValues!AD18:AD383)=0,,PERCENTILE(DataEntryValues!AD18:AD383,0.05)) -> 0 | AN20: =IF(SUM(DataEntryValues!AE18:AE383)=0,,PERCENTILE(DataEntryValues!AE18:AE383,0.05)) -> 0 | AO20: =IF(SUM(DataEntryValues!AF18:AF383)=0,,PERCENTILE(DataEntryValues!AF18:AF383,0.95)) -> 1.802167165 | AP20: =IF(SUM(DataEntryValues!AG18:AG383)=0,,PERCENTILE(DataEntryValues!AG18:AG383,0.95)) -> 2.272423184 | AQ20: =IF(SUM(DataEntryValues!AH18:AH383)=0,,PERCENTILE(DataEntryValues!AH18:AH383,0.95)) -> 1.939457512 | AR20: =IF(SUM(DataEntryValues!AI18:AI383)=0,,PERCENTILE(DataEntryValues!AI18:AI383,0.95)) -> 0.7775624084 | AS20: =IF(SUM(DataEntryValues!AJ18:AJ383)=0,,PERCENTILE(DataEntryValues!AJ18:AJ383,0.95)) -> 0 | AT20: =IF(SUM(DataEntryValues!AK18:AK383)=0,,PERCENTILE(DataEntryValues!AK18:AK383,0.95)) -> 0 | AU20: =IF(SUM(DataEntryValues!AL18:AL383)=0,,PERCENTILE(DataEntryValues!AL18:AL383,0.95)) -> 0 | AV20: =IF(SUM(DataEntryValues!AM18:AM383)=0,,PERCENTILE(DataEntryValues!AM18:AM383,0.95)) -> 0 | AW20: =IF(SUM(DataEntryValues!AN18:AN383)=0,,PERCENTILE(DataEntryValues!AN18:AN383,0.95)) -> 0 | AX20: =IF(SUM(DataEntryValues!AO18:AO383)=0,,PERCENTILE(DataEntryValues!AO18:AO383,0.95)) -> 0 | AY20: =IF(SUM(DataEntryValues!AP18:AP383)=0,,PERCENTILE(DataEntryValues!AP18:AP383,0.95)) -> 0 | AZ20: =IF(SUM(DataEntryValues!AQ18:AQ383)=0,,PERCENTILE(DataEntryValues!AQ18:AQ383,0.95)) -> 0
C21: Yr. Goal | D21: =IF(SUM(DataEntryValues!C18:C383)=0,,COUNTIFS(DataEntryValues!C18:C383,"<="&DataEntryValues!$G$5)/COUNT(DataEntryValues!C18:C383)) -> 0 | E21: =IF(SUM(DataEntryValues!D18:D383)=0,,COUNTIFS(DataEntryValues!D18:D383,"<="&DataEntryValues!$G$5)/COUNT(DataEntryValues!D18:D383)) -> 0 | F21: =IF(SUM(DataEntryValues!E18:E383)=0,,COUNTIFS(DataEntryValues!E18:E383,"<="&DataEntryValues!$G$5)/COUNT(DataEntryValues!E18:E383)) -> 0 | G21: =IF(SUM(DataEntryValues!F18:F383)=0,,COUNTIFS(DataEntryValues!F18:F383,"<="&DataEntryValues!$G$5)/COUNT(DataEntryValues!F18:F383)) -> 0 | L21: =IF(SUM(DataEntryValues!G18:G383)=0,,COUNTIFS(DataEntryValues!G18:G383,"<="&DataEntryValues!$G$6)/COUNT(DataEntryValues!G18:G383)) -> 0.8794642857 | M21: =IF(SUM(DataEntryValues!H18:H383)=0,,COUNTIFS(DataEntryValues!H18:H383,"<="&DataEntryValues!$G$6)/COUNT(DataEntryValues!H18:H383)) -> 0.9700854701 | N21: =IF(SUM(DataEntryValues!I18:I383)=0,,COUNTIFS(DataEntryValues!I18:I383,"<="&DataEntryValues!$G$6)/COUNT(DataEntryValues!I18:I383)) -> 0.9607843137 | O21: =IF(SUM(DataEntryValues!J18:J383)=0,,COUNTIFS(DataEntryValues!J18:J383,"<="&DataEntryValues!$G$6)/COUNT(DataEntryValues!J18:J383)) -> 0.9610894942 | P21: =IF(SUM(DataEntryValues!K18:K383)=0,,COUNTIFS(DataEntryValues!K18:K383,"<="&DataEntryValues!$G$6)/COUNT(DataEntryValues!K18:K383)) -> 0 | Q21: =IF(SUM(DataEntryValues!L18:L383)=0,,COUNTIFS(DataEntryValues!L18:L383,"<="&DataEntryValues!$G$6)/COUNT(DataEntryValues!L18:L383)) -> 0 | R21: =IF(SUM(DataEntryValues!M18:M383)=0,,COUNTIFS(DataEntryValues!M18:M383,"<="&DataEntryValues!$G$6)/COUNT(DataEntryValues!M18:M383)) -> 0 | S21: =IF(SUM(DataEntryValues!N18:N383)=0,,COUNTIFS(DataEntryValues!N18:N383,"<="&DataEntryValues!$G$6)/COUNT(DataEntryValues!N18:N383)) -> 0 | T21: =IF(SUM(DataEntryValues!O18:O383)=0,,COUNTIFS(DataEntryValues!O18:O383,"<="&DataEntryValues!$G$6)/COUNT(DataEntryValues!O18:O383)) -> 0 | U21: =IF(SUM(DataEntryValues!P18:P383)=0,,COUNTIFS(DataEntryValues!P18:P383,"<="&DataEntryValues!$G$6)/COUNT(DataEntryValues!P18:P383)) -> 0 | V21: =IF(SUM(DataEntryValues!Q18:Q383)=0,,COUNTIFS(DataEntryValues!Q18:Q383,"<="&DataEntryValues!$G$6)/COUNT(DataEntryValues!Q18:Q383)) -> 0 | W21: =IF(SUM(DataEntryValues!R18:R383)=0,,COUNTIFS(DataEntryValues!R18:R383,"<="&DataEntryValues!$G$6)/COUNT(DataEntryValues!R18:R383)) -> 0 | X21: =IF(SUM(DataEntryValues!S18:S383)=0,,COUNTIFS(DataEntryValues!S18:S383,"<="&DataEntryValues!$G$6)/COUNT(DataEntryValues!S18:S383)) -> 0 | AB21: Yr. Goal | AC21: =IF(SUM(DataEntryValues!T18:T383)=0,,COUNTIFS(DataEntryValues!T18:T383,">="&DataEntryValues!$G$8)/COUNT(DataEntryValues!T18:T383)) -> 0.992248062 | AD21: =IF(SUM(DataEntryValues!U18:U383)=0,,COUNTIFS(DataEntryValues!U18:U383,">="&DataEntryValues!$G$8)/COUNT(DataEntryValues!U18:U383)) -> 0.9692307692 | AE21: =IF(SUM(DataEntryValues!V18:V383)=0,,COUNTIFS(DataEntryValues!V18:V383,">="&DataEntryValues!$G$8)/COUNT(DataEntryValues!V18:V383)) -> 1 | AF21: =IF(SUM(DataEntryValues!W18:W383)=0,,COUNTIFS(DataEntryValues!W18:W383,">="&DataEntryValues!$G$8)/COUNT(DataEntryValues!W18:W383)) -> 1 | AG21: =IF(SUM(DataEntryValues!X18:X383)=0,,COUNTIFS(DataEntryValues!X18:X383,">="&DataEntryValues!$G$8)/COUNT(DataEntryValues!X18:X383)) -> 0 | AH21: =IF(SUM(DataEntryValues!Y18:Y383)=0,,COUNTIFS(DataEntryValues!Y18:Y383,">="&DataEntryValues!$G$8)/COUNT(DataEntryValues!Y18:Y383)) -> 0 | AI21: =IF(SUM(DataEntryValues!Z18:Z383)=0,,COUNTIFS(DataEntryValues!Z18:Z383,">="&DataEntryValues!$G$8)/COUNT(DataEntryValues!Z18:Z383)) -> 0 | AJ21: =IF(SUM(DataEntryValues!AA18:AA383)=0,,COUNTIFS(DataEntryValues!AA18:AA383,">="&DataEntryValues!$G$8)/COUNT(DataEntryValues!AA18:AA383)) -> 0 | AK21: =IF(SUM(DataEntryValues!AB18:AB383)=0,,COUNTIFS(DataEntryValues!AB18:AB383,">="&DataEntryValues!$G$8)/COUNT(DataEntryValues!AB18:AB383)) -> 0 | AL21: =IF(SUM(DataEntryValues!AC18:AC383)=0,,COUNTIFS(DataEntryValues!AC18:AC383,">="&DataEntryValues!$G$8)/COUNT(DataEntryValues!AC18:AC383)) -> 0 | AM21: =IF(SUM(DataEntryValues!AD18:AD383)=0,,COUNTIFS(DataEntryValues!AD18:AD383,">="&DataEntryValues!$G$8)/COUNT(DataEntryValues!AD18:AD383)) -> 0 | AN21: =IF(SUM(DataEntryValues!AE18:AE383)=0,,COUNTIFS(DataEntryValues!AE18:AE383,">="&DataEntryValues!$G$8)/COUNT(DataEntryValues!AE18:AE383)) -> 0 | AO21: =IF(SUM(DataEntryValues!AF18:AF383)=0,,COUNTIFS(DataEntryValues!AF18:AF383,"<="&DataEntryValues!$G$9)/COUNT(DataEntryValues!AF18:AF383)) -> 1 | AP21: =IF(SUM(DataEntryValues!AG18:AG383)=0,,COUNTIFS(DataEntryValues!AG18:AG383,"<="&DataEntryValues!$G$9)/COUNT(DataEntryValues!AG18:AG383)) -> 1 | AQ21: =IF(SUM(DataEntryValues!AH18:AH383)=0,,COUNTIFS(DataEntryValues!AH18:AH383,"<="&DataEntryValues!$G$9)/COUNT(DataEntryValues!AH18:AH383)) -> 1 | AR21: =IF(SUM(DataEntryValues!AI18:AI383)=0,,COUNTIFS(DataEntryValues!AI18:AI383,"<="&DataEntryValues!$G$9)/COUNT(DataEntryValues!AI18:AI383)) -> 1 | AS21: =IF(SUM(DataEntryValues!AJ18:AJ383)=0,,COUNTIFS(DataEntryValues!AJ18:AJ383,"<="&DataEntryValues!$G$9)/COUNT(DataEntryValues!AJ18:AJ383)) -> 0 | AT21: =IF(SUM(DataEntryValues!AK18:AK383)=0,,COUNTIFS(DataEntryValues!AK18:AK383,"<="&DataEntryValues!$G$9)/COUNT(DataEntryValues!AK18:AK383)) -> 0 | AU21: =IF(SUM(DataEntryValues!AL18:AL383)=0,,COUNTIFS(DataEntryValues!AL18:AL383,"<="&DataEntryValues!$G$9)/COUNT(DataEntryValues!AL18:AL383)) -> 0 | AV21: =IF(SUM(DataEntryValues!AM18:AM383)=0,,COUNTIFS(DataEntryValues!AM18:AM383,"<="&DataEntryValues!$G$9)/COUNT(DataEntryValues!AM18:AM383)) -> 0 | AW21: =IF(SUM(DataEntryValues!AN18:AN383)=0,,COUNTIFS(DataEntryValues!AN18:AN383,"<="&DataEntryValues!$G$9)/COUNT(DataEntryValues!AN18:AN383)) -> 0 | AX21: =IF(SUM(DataEntryValues!AO18:AO383)=0,,COUNTIFS(DataEntryValues!AO18:AO383,"<="&DataEntryValues!$G$9)/COUNT(DataEntryValues!AO18:AO383)) -> 0 | AY21: =IF(SUM(DataEntryValues!AP18:AP383)=0,,COUNTIFS(DataEntryValues!AP18:AP383,"<="&DataEntryValues!$G$9)/COUNT(DataEntryValues!AP18:AP383)) -> 0 | AZ21: =IF(SUM(DataEntryValues!AQ18:AQ383)=0,,COUNTIFS(DataEntryValues!AQ18:AQ383,"<="&DataEntryValues!$G$9)/COUNT(DataEntryValues!AQ18:AQ383)) -> 0
D40: =Instructions!B1 -> Membrane Optimization Assessment Software | AC40: =Instructions!AC1 -> 0

Sheet LRV PD Trend

Sheet SedSum(1-4)
A1: Sedimentation Performance Summary

Sheet TurbSum(1-12)
A1: Turbidity Summary (Trains 1 - 12)

Sheet LRVSum(1-12)
A1: Log Removal Value Summary (Trains 1 - 12)

Sheet PDSum(1-12)
A1: Pressure Decay Summary (Trains 1 - 12)

Sheet LT-Trend (hidden)
C3: Settled Water | G3: Combined Filtered Water
C4: 95th % | D4: % Values Meeting Goal | G4: 95th % | H4: % Values Meeting Goal
B5: Month/Yr | C5: All Sed | D5: 3 NTU | E5: 2 NTU | F5: 1 NTU | H5: 0.3 NTU | I5: 0.2 NTU | J5: 0.1 NTU
B7: 2013-01-01 | C7: 2.2 | D7: 100 | E7: 83.87096774 | F7: 32.25806452 | G7: 0.4 | H7: 0.3 | I7: 0.4 | J7: 0.4
B8: 2013-02-01 | C8: 2.33 | D8: 100 | E8: 85.71428571 | F8: 46.42857143 | G8: 0.4 | H8: 0.3 | I8: 0.4 | J8: 0.4
B9: 2013-03-01 | C9: 2.4 | D9: 100 | E9: 74.19354839 | F9: 29.03225806 | G9: 0.4 | H9: 0.3 | I9: 0.4 | J9: 0.4
B10: 2013-04-01 | C10: 2.255 | D10: 100 | E10: 83.33333333 | F10: 43.33333333 | G10: 0.4 | H10: 0.3 | I10: 0.4 | J10: 0.4
B11: 2013-05-01 | C11: 2.25 | D11: 100 | E11: 77.41935484 | F11: 41.93548387 | G11: 0.4 | H11: 0.3 | I11: 0.4 | J11: 0.4
B12: 2013-06-01 | C12: 2.155 | D12: 100 | E12: 86.66666667 | F12: 53.33333333 | G12: 0.4 | H12: 0.3 | I12: 0.4 | J12: 0.4
B13: 2013-07-01 | C13: 2.4 | D13: 100 | E13: 77.41935484 | F13: 32.25806452 | G13: 0.4 | H13: 0.3 | I13: 0.4 | J13: 0.4
B14: 2013-08-01 | C14: 2.5 | D14: 100 | E14: 80.64516129 | F14: 35.48387097 | G14: 0.4 | H14: 0.3 | I14: 0.4 | J14: 0.4
B15: 2013-09-01 | C15: 2.355 | D15: 100 | E15: 80 | F15: 40 | G15: 0.4 | H15: 0.3 | I15: 0.4 | J15: 0.4
B16: 2013-10-01 | C16: 2.45 | D16: 100 | E16: 64.51612903 | F16: 38.70967742 | G16: 0.4 | H16: 0.3 | I16: 0.4 | J16: 0.4
B17: 2013-11-01 | C17: 2.255 | D17: 100 | E17: 83.33333333 | F17: 40 | G17: 0.4 | H17: 0.3 | I17: 0.4 | J17: 0.4
B18: 2013-12-01 | C18: 2.5 | D18: 100 | E18: 80.64516129 | F18: 35.48387097 | G18: 0.4 | H18: 0.3 | I18: 0.4 | J18: 0.4
B21: The area in blue can be copied to the long-term trend spreadsheet (LT_trend.xls) to develop up to three years of performance trends.

Sheet AllDataSort (hidden)
F2: =DataEntryValues!G2 -> Ontario Membrane WTP | J2: 2018-02-01
F3: Cell to identify if year is a leap year or not. | J3: =IF(MOD(YEAR(J2)/4,1)=0,1,2) -> 2
E4: Data Entry Area
A5: FebValue | B5: FebFind | F5: Raw | G5: Sed 1 | H5: Sed 2 | I5: Sed 3 | J5: Sed 4 | K5: T1 Turb | L5: T2 Turb | M5: T3 Turb | N5: T4 Turb | O5: T5 Turb | P5: T6 Turb | Q5: T7 Turb | R5: T8 Turb | S5: T9 Turb | T5: T10 Turb | U5: T11 Turb | V5: T12 Turb | W5: CFE | X5: T1 LRV | Y5: T2 LRV | Z5: T3 LRV | AA5: T4 LRV | AB5: T5 LRV | AC5: T6 LRV | AD5: T7 LRV | AE5: T8 LRV | AF5: T9 LRV | AG5: T10 LRV | AH5: T11 LRV | AI5: T12 LRV | AJ5: T1 PD | AK5: T2 PD | AL5: T3 PD | AM5: T4 PD | AN5: T5 PD | AO5: T6 PD | AP5: T7 PD | AQ5: T8 PD | AR5: T9 PD | AS5: T10 PD | AT5: T11 PD | AU5: U12 PD
A6: 0 | B6: =IF(MONTH(E6)=2,"feb",) -> 0 | C6: =MONTH(E6) -> 1 | D6: 1 | E6: 2018-01-01 | F6: 3.213639259 | K6: 0.01701870933 | L6: 0.01486622449 | M6: 0.01452424005 | N6: 0.01241198927 | X6: 4.220895767 | Y6: 4.263266563 | Z6: 4.220815182 | AA6: 4.943678379 | AJ6: 1.623494466 | AK6: 1.810525561 | AL6: 1.618232509 | AM6: 0.6234573364
A7: 0 | B7: 0 | C7: =MONTH(E7) -> 1 | D7: 1 | E7: 2018-01-02 | F7: 0.3540534973 | K7: 0.01645544171 | L7: 0.01504727453 | M7: 0.02749949694 | N7: 0.01876886003 | X7: 4.232894897 | Y7: 4.259745598 | Z7: 4.229319572 | AA7: 4.943678379 | AJ7: 1.556546095 | AK7: 1.810525561 | AL7: 1.583583119 | AM7: 0.6209457397
A8: 0 | B8: 0 | C8: 1 | D8: 1 | E8: 2018-01-03 | F8: 2.700663805 | K8: 0.01848722622 | L8: 0.01985516027 | M8: 0.0168778915 | N8: 0.01249245647 | X8: 4.229111671 | Y8: 4.259745598 | Z8: 4.232217312 | AA8: 4.944013119 | AJ8: 1.535103321 | AK8: 1.779465728 | AL8: 1.552740883 | AM8: 0.610067749
A9: 0 | B9: 0 | C9: 1 | D9: 1 | E9: 2018-01-04 | F9: 1.981492758 | K9: 0.01836652495 | L9: 0.01488634106 | M9: 0.04204385355 | N9: 0.01243210584 | X9: 4.229111671 | Y9: 4.275004864 | Z9: 4.20003891 | AA9: 4.944013119 | AJ9: 1.399690409 | AK9: 1.752988581 | AL9: 1.552740883 | AM9: 0.5749191284
A10: 0 | B10: 0 | C10: 1 | D10: 1 | E10: 2018-01-05 | F10: 1.441359878 | K10: 0.01790384203 | L10: 0.01619392447 | M10: 0.01563065872 | N10: 0.01229128987 | X10: 4.258064747 | Y10: 4.270585537 | Z10: 4.20003891 | AA10: 4.978250027 | AJ10: 1.399690409 | AK10: 1.741943359 | AL10: 1.564272367 | AM10: 0.5749191284
A11: 0 | B11: 0 | C11: 1 | D11: 1 | E11: 2018-01-06 | F11: 1.241198897 | K11: 0.01557030808 | L11: 0.01390062366 | M11: 0.02359686047 | N11: 0.01243210584 | X11: 4.233080864 | Y11: 4.266732693 | Z11: 4.205323219 | AA11: 4.957644463 | AJ11: 1.518343386 | AK11: 1.741943359 | AL11: 1.564272367 | AM11: 0.5782653809
A12: 0 | B12: 0 | C12: 1 | D12: 1 | E12: 2018-01-07 | F12: 2.174612761 | K12: 0.02070005983 | L12: 0.02106215991 | M12: 0.01856769249 | N12: 0.01458458975 | X12: 4.227593422 | Y12: 4.263739586 | Z12: 4.185374737 | AA12: 4.957644463 | AJ12: 1.513979704 | AK12: 1.75231818 | AL12: 1.621990418 | AM12: 0.5824493408
A13: 0 | B13: 0 | C13: 1 | D13: 1 | E13: 2018-01-08 | F13: 4.666063309 | K13: 0.01613357477 | L13: 0.01436330751 | M13: 0.01959364302 | N13: 0.01281432435 | X13: 4.227593422 | Y13: 4.263739586 | Z13: 4.185374737 | AA13: 4.959019661 | AJ13: 1.513979704 | AK13: 1.697089251 | AL13: 1.61106393 | AM13: 0.5866348267
A14: 0 | B14: 0 | C14: 1 | D14: 1 | E14: 2018-01-09 | F14: 0.5139811039 | K14: 0.01484610699 | L14: 0.01343793981 | M14: 0.01524844207 | N14: 0.01237175614 | X14: 4.174921989 | Y14: 4.247758865 | Z14: 4.170285702 | AA14: 4.890296459 | AJ14: 1.51443543 | AK14: 1.697089251 | AL14: 1.61106393 | AM14: 0.5866348267
A15: 0 | B15: 0 | C15: 1 | D15: 1 | E15: 2018-01-10 | F15: 2.022731781 | K15: 0.01603299193 | L15: 0.01176825631 | M15: 0.01818547584 | N15: 0.01241198927 | X15: 4.147130489 | Y15: 4.237306118 | Z15: 4.148952007 | AA15: 4.890296459 | AJ15: 1.587631226 | AK15: 1.704138554 | AL15: 1.628109138 | AM15: 0.6217834473
A16: 0 | B16: 0 | C16: 1 | D16: 1 | E16: 2018-01-11 | F16: 0.1559042484 | K16: 0.01567089185 | L16: 0.01150673907 | M16: 0.01557030808 | N16: 0.0122309383 | X16: 4.147130489 | Y16: 4.237306118 | Z16: 4.145237446 | AA16: 4.879029274 | AJ16: 1.587135052 | AK16: 1.710563225 | AL16: 1.620451575 | AM16: 0.6201080322
A17: 0 | B17: 0 | C17: 1 | D17: 1 | E17: 2018-01-12 | F17: 1.839670181 | K17: 0.01683765836 | L17: 0.01152685564 | M17: 0.01717964187 | N17: 0.01251257304 | X17: 4.131509304 | Y17: 4.223748684 | Z17: 4.145237446 | AA17: 4.877820015 | AJ17: 1.587135052 | AK17: 1.709316335 | AL17: 1.55977759 | AM17: 0.6058822632
A18: 0 | B18: 0 | C18: 1 | D18: 1 | E18: 2018-01-13 | F18: 0.2735868096 | K18: 0.01657614112 | L18: 0.0132971229 | M18: 0.01462482288 | N18: 0.01221082173 | X18: 4.126056671 | Y18: 4.221381664 | Z18: 4.141126633 | AA18: 4.842348099 | AJ18: 1.626345037 | AK18: 1.678381208 | AL18: 1.55977759 | AM18: 0.6058822632
A19: 0 | B19: 0 | C19: 1 | D19: 1 | E19: 2018-01-14 | F19: 0.1850734204 | K19: 0.01561054122 | L19: 0.01209012233 | M19: 0.01492657419 | N19: 0.012331523 | X19: 4.126056671 | Y19: 4.182300091 | Z19: 4.088095188 | AA19: 4.841537476 | AJ19: 1.593861711 | AK19: 1.678381208 | AL19: 1.5970672 | AM19: 0.6544189453
A20: 0 | B20: 0 | C20: 1 | D20: 1 | E20: 2018-01-15 | F20: 0.4566485584 | K20: 0.02259102836 | L20: 0.01225105487 | M20: 0.01476564072 | N20: 0.01235163957 | X20: 4.075304985 | Y20: 4.176708221 | Z20: 4.077402115 | AA20: 4.831858158 | AJ20: 1.401646417 | AK20: 1.776103144 | AL20: 1.689204463 | AM20: 0.6586044312
A21: 0 | B21: 0 | C21: 1 | D21: 1 | E21: 2018-01-16 | F21: 0.9625829458 | K21: 0.0151277408 | L21: 0.01184872258 | M21: 0.04188292101 | N21: 0.01301549003 | X21: 4.176717281 | Y21: 4.176708221 | Z21: 4.077402115 | AA21: 4.83161068 | AJ21: 1.401646417 | AK21: 1.72687678 | AL21: 1.468060412 | AM21: 0.6334960938
A22: 0 | B22: 0 | C22: 1 | D22: 1 | E22: 2018-01-17 | F22: 0.8076845407 | K22: 0.02271172777 | L22: 0.01762220822 | M22: 0.01466505602 | N22: 0.01319654007 | Y22: 4.180571079 | Z22: 4.131238937 | AA22: 4.812019348 | AJ22: -0.2510452271 | AK22: 1.725534352 | AL22: 1.468060412 | AM22: 0.6334960938
A23: 0 | B23: 0 | C23: 1 | D23: 1 | E23: 2018-01-18 | F23: 1.619392395 | K23: 0.02476362884 | M23: 0.04196338728 | N23: 0.01257292274 | X23: 4.135110378 | Y23: 4.180571079 | Z23: 4.157987595 | AA23: 4.787871361 | AJ23: 1.392592761 | AK23: 1.725534352 | AL23: 1.681628707 | AM23: 0.6636245728
A24: 0 | B24: 0 | C24: 1 | D24: 1 | E24: 2018-01-19 | F24: 0.6306577921 | K24: 0.01516797394 | L24: 0.06326694787 | M24: 0.04135988653 | N24: 0.01277408935 | X24: 4.109349251 | Y24: 4.148461342 | Z24: 4.220360279 | AA24: 4.787871361 | AJ24: 1.392592761 | AK24: 1.725534352 | AL24: 1.68305147 | AM24: 0.6577682495
A25: 0 | B25: 0 | C25: 1 | D25: 1 | E25: 2018-01-20 | F25: 0.8579762578 | L25: 0.0159525238 | M25: 0.03091933206 | N25: 0.0132971229 | X25: 4.100495815 | Y25: 4.148461342 | Z25: 4.220360279 | AA25: 4.791145325 | AJ25: 1.544693841 | AK25: 1.712789003 | AL25: 1.510665499 | AM25: 0.6334960938
A26: 0 | B26: 0 | C26: 1 | D26: 1 | E26: 2018-01-21 | F26: 0.2313417792 | K26: 0.03822168708 | L26: 0.01613357477 | M26: 0.02796217985 | X26: 4.115366936 | Y26: 4.259312153 | Z26: 4.228242397 | AA26: 4.791145325 | AJ26: 1.512203038 | AK26: 1.853031431 | AL26: 1.510665499 | AM26: 0.6334960938
A27: 0 | B27: 0 | C27: 1 | D27: 1 | E27: 2018-01-22 | F27: 0.1247233972 | K27: 0.02470327914 | L27: 0.01567089185 | M27: 0.03520418331 | N27: 0.01398108993 | X27: 4.261633873 | Y27: 4.245145798 | Z27: 4.170509338 | AA27: 4.726293564 | AJ27: 1.512203038 | AK27: 1.879203842 | AL27: 1.512399204 | AM27: 0.6334960938
A28: 0 | B28: 0 | C28: 1 | D28: 1 | E28: 2018-01-23 | F28: 18.26594162 | K28: 0.02737879753 | L28: 0.01569100842 | M28: 0.03071816452 | N28: 0.01299537346 | X28: 4.261633873 | Y28: 4.245145798 | Z28: 4.170509338 | AA28: 4.893808842 | AJ28: 1.604246521 | AK28: 1.8628652 | AL28: 1.67531527 | AM28: 0.7138366699
A29: 0 | B29: 0 | C29: 1 | D29: 1 | E29: 2018-01-24 | F29: 0.8338363171 | K29: 0.03285053372 | L29: 0.02080064453 | M29: 0.02456246316 | N29: 0.01382015739 | X29: 4.228914738 | Y29: 4.221303463 | Z29: 4.130369663 | AA29: 4.881415844 | AJ29: 1.597854539 | AK29: 1.857475075 | AL29: 1.67531527 | AM29: 0.6887313843
A30: 0 | B30: 0 | C30: 1 | D30: 1 | E30: 2018-01-25 | F30: 23.60390282 | K30: 0.02428082936 | L30: 0.01480587386 | M30: 0.01691812463 | N30: 0.01281432435 | X30: 4.211508274 | Y30: 4.221303463 | Z30: 4.130369663 | AA30: 4.85362339 | AJ30: 1.588020507 | AK30: 1.852160321 | AL30: 1.687655979 | AM30: 0.6887313843
A31: 0 | B31: 0 | C31: 1 | D31: 1 | E31: 2018-01-26 | F31: 1.734057426 | K31: 0.03017501533 | L31: 0.01424260717 | M31: 0.02969221398 | N31: 0.01327700634 | X31: 4.191564083 | Y31: 4.234616756 | Z31: 4.133621693 | AA31: 4.852926731 | AJ31: 1.588020507 | AK31: 1.832292673 | AL31: 1.687655979 | AM31: 0.7063034058
A32: 0 | B32: 0 | C32: 1 | D32: 1 | E32: 2018-01-27 | F32: 0.3409776688 | K32: 0.02802253328 | L32: 0.02192717791 | M32: 0.03623013571 | N32: 0.01241198927 | X32: 4.191564083 | Y32: 4.213904858 | Z32: 4.133621693 | AA32: 4.837139606 | AJ32: 1.562493977 | AK32: 1.832292673 | AL32: 1.694625219 | AM32: 0.7146743774
A33: 0 | B33: 0 | C33: 1 | D33: 1 | E33: 2018-01-28 | F33: 0.3067792952 | K33: 0.03914705291 | L33: 0.01557030808 | M33: 0.0272379797 | N33: 0.01307583973 | X33: 4.210425854 | Y33: 4.213098526 | Z33: 4.141569138 | AA33: 4.822828293 | AJ33: 1.562493977 | AK33: 1.861762143 | AL33: 1.694627489 | AM33: 0.7146743774
A34: 0 | B34: 0 | C34: 1 | D34: 1 | E34: 2018-01-29 | F34: 0.3993160427 | K34: 0.03140213341 | L34: 0.01923154294 | M34: 0.02393884584 | N34: 0.01259303931 | X34: 4.210425854 | Y34: 4.213098526 | Z34: 4.141569138 | AA34: 4.822828293 | AJ34: 1.623745819 | AK34: 1.844358257 | AL34: 1.651683607 | AM34: 0.6803619385
A35: 0 | B35: 0 | C35: 1 | D35: 1 | E35: 2018-01-30 | F35: 0.9947696924 | K35: 0.02902836539 | L35: 0.0142828403 | M35: 0.02605109662 | N35: 0.01299537346 | X35: 4.204202652 | Y35: 4.22047472 | Z35: 4.156153202 | AA35: 4.851426125 | AJ35: 1.623745819 | AK35: 1.83629412 | AL35: 1.651683607 | AM35: 0.6803619385
A36: 0 | B36: 0 | C36: 1 | D36: 1 | E36: 2018-01-31 | F36: 11.07724857 | K36: 0.03488231823 | L36: 0.01719975844 | M36: 0.04003218561 | N36: 0.01261315588 | X36: 4.203474998 | Y36: 4.237874985 | Z36: 4.145841122 | AA36: 4.848370075 | AJ36: 1.594802856 | AK36: 1.827960453 | AL36: 1.692187322 | AM36: 0.6920791626
A37: feb | B37: feb | C37: 2 | D37: 2 | E37: 2018-02-01 | F37: 1.024944663 | K37: 0.03138201684 | L37: 0.02426071092 | M37: 0.03011466563 | N37: 0.01333735697 | X37: 4.175868988 | Y37: 4.237874985 | Z37: 4.141324997 | AA37: 4.826839924 | AJ37: 1.594802856 | AK37: 1.801778045 | AL37: 1.678356595 | AM37: 0.7054672241
A38: feb | B38: feb | C38: 2 | D38: 2 | E38: 2018-02-02 | F38: 3.608932018 | K38: 0.05980687961 | L38: 0.01321665663 | M38: 0.03466103226 | N38: 0.01261315588 | X38: 4.175868988 | Y38: 4.241111279 | Z38: 4.141324997 | AA38: 4.821438313 | AJ38: 1.550640262 | AK38: 1.738740758 | AL38: 1.678356595 | AM38: 0.7054672241
A39: feb | B39: feb | C39: 2 | D39: 2 | E39: 2018-02-03 | F39: 6.012874603 | K39: 0.03065781668 | L39: 0.019734459 | M39: 0.03093944862 | N39: 0.01283444092 | X39: 4.202121735 | Y39: 4.216166019 | Z39: 4.128398895 | AA39: 4.817886829 | AJ39: 1.550640262 | AK39: 1.738740758 | AL39: 1.68566334 | AM39: 0.7088150024
A40: feb | B40: feb | C40: 2 | D40: 2 | E40: 2018-02-04 | F40: 3.040635824 | K40: 0.03558640182 | L40: 0.01649567485 | M40: 0.02623214573 | N40: 0.01247233991 | X40: 4.182637215 | Y40: 4.216166019 | Z40: 4.128398895 | AA40: 4.817886829 | AJ40: 1.601213411 | AK40: 1.797668539 | AL40: 1.669300816 | AM40: 0.6962600708
A41: feb | B41: feb | C41: 2 | D41: 2 | E41: 2018-02-05 | F41: 15.14584541 | K41: 0.03176423162 | L41: 0.03942868486 | M41: 0.03359485045 | N41: 0.02080064453 | X41: 4.173316479 | Y41: 4.214503765 | Z41: 4.13077879 | AA41: 4.862013817 | AJ41: 1.601213411 | AK41: 1.797668539 | AL41: 1.669300816 | AM41: 0.6920776367
A42: feb | B42: feb | C42: 2 | D42: 2 | E42: 2018-02-06 | F42: 0.5180044174 | K42: 0.03480185196 | L42: 0.01567089185 | M42: 0.02438141033 | N42: 0.01243210584 | X42: 4.173316479 | Y42: 4.206785679 | Z42: 4.13077879 | AA42: 4.848521709 | AJ42: 1.604336186 | AK42: 1.82094912 | AL42: 1.674785983 | AM42: 0.6920776367
A43: feb | B43: feb | C43: 2 | D43: 2 | E43: 2018-02-07 | F43: 0.3087909818 | K43: 0.01800442487 | L43: 0.01315630693 | M43: 0.01516797394 | N43: 0.01247233991 | X43: 4.188477993 | Y43: 4.195625305 | Z43: 4.104055405 | AA43: 4.848521709 | AJ43: 1.600920921 | AK43: 1.855847228 | AL43: 1.674785983 | AM43: 0.6979370117
A44: feb | B44: feb | C44: 2 | D44: 2 | E44: 2018-02-08 | F44: 0.59545362 | K44: 0.05127741024 | L44: 0.01448400691 | M44: 0.02589016221 | N44: 0.01231140643 | X44: 4.175098419 | Y44: 4.195625305 | Z44: 4.104055405 | AA44: 4.810881138 | AJ44: 1.547232926 | AK44: 1.784533526 | AL44: 1.716846916 | AM44: 0.6979370117
A45: feb | B45: feb | C45: 2 | D45: 2 | E45: 2018-02-09 | F45: 0.2886742949 | K45: 0.03964997083 | L45: 0.01388050709 | M45: 0.03106014803 | N45: 0.01269362308 | X45: 4.170211792 | Y45: 4.216639042 | Z45: 4.114022255 | AA45: 4.810881138 | AJ45: 1.547232926 | AK45: 1.784533526 | AL45: 1.691900218 | AM45: 0.6920791626
A46: feb | B46: feb | C46: 2 | D46: 2 | E46: 2018-02-10 | F46: 0.9122912884 | K46: 0.04138000309 | L46: 0.02108227648 | M46: 0.04302956909 | N46: 0.01263327338 | X46: 4.156596661 | Y46: 4.235271931 | Z46: 4.124002934 | AA46: 4.824384212 | AJ46: 1.626576474 | AK46: 1.733227898 | AL46: 1.590440369 | AM46: 0.6920791626
A47: feb | B47: feb | C47: 2 | D47: 2 | E47: 2018-02-11 | F47: 0.3319251537 | K47: 0.03960973769 | L47: 0.01349829044 | M47: 0.03846308589 | N47: 0.01241198927 | X47: 4.156596661 | Y47: 4.203513145 | Z47: 4.116291046 | AA47: 4.824384212 | AJ47: 1.545135498 | AK47: 1.733227898 | AL47: 1.590440369 | AM47: 0.6795257568
A48: feb | B48: feb | C48: 2 | D48: 2 | E48: 2018-02-12 | F48: 0.283645153 | K48: 0.05246429145 | L48: 0.01392074022 | M48: 0.02639308013 | N48: 0.01267350651 | X48: 4.162581921 | Y48: 4.17328167 | Z48: 4.105234146 | AA48: 4.816524506 | AJ48: 1.545135498 | AK48: 1.839469029 | AL48: 1.722395463 | AM48: 0.6795257568
A49: feb | B49: feb | C49: 2 | D49: 2 | E49: 2018-02-13 | F49: 0.362100184 | K49: 0.03930798545 | L49: 0.01555019151 | M49: 0.02317441069 | N49: 0.01241198927 | X49: 4.162581921 | Y49: 4.16493082 | Z49: 4.105234146 | AA49: 4.813409805 | AJ49: 1.612554278 | AK49: 1.895731712 | AL49: 1.636110389 | AM49: 0.7355941772
A50: feb | B50: feb | C50: 2 | D50: 2 | E50: 2018-02-14 | F50: 6.155703068 | K50: 0.04242607206 | L50: 0.01730034128 | M50: 0.0408770889 | N50: 0.02023737691 | X50: 4.141784191 | Y50: 4.16493082 | Z50: 4.093190193 | AA50: 4.808172226 | AJ50: 1.612554278 | AK50: 1.85781606 | AL50: 1.636110389 | AM50: 0.7163467407
A51: feb | B51: feb | C51: 2 | D51: 2 | E51: 2018-02-15 | F51: 2.144437551 | K51: 0.06135586277 | L51: 0.02468316257 | M51: 0.04413599148 | N51: 0.05328907818 | X51: 4.117690086 | Y51: 4.184902668 | Z51: 4.087491989 | AA51: 4.808172226 | AJ51: 1.647278635 | AK51: 1.856448115 | AL51: 1.712902407 | AM51: 0.713835144
A52: feb | B52: feb | C52: 2 | D52: 2 | E52: 2018-02-16 | F52: 0.7352645397 | K52: 0.02870649844 | L52: 0.02090122737 | M52: 0.01345805638 | N52: 0.02623214573 | X52: 4.117690086 | Y52: 4.18098402 | Z52: 4.087491989 | AA52: 4.798455238 | AJ52: 1.613595452 | AK52: 1.851121521 | AL52: 1.712902407 | AM52: 0.713835144
A53: feb | B53: feb | C53: 2 | D53: 2 | E53: 2018-02-17 | F53: 0.3701468408 | K53: 0.02329511195 | L53: 0.01919130981 | M53: 0.04473948851 | N53: 0.02440152876 | X53: 4.142326355 | Y53: 4.18098402 | Z53: 4.09130764 | AA53: 4.777754784 | AJ53: 1.473688032 | AK53: 1.617917148 | AL53: 1.630582226 | AM53: 0.723878479
A54: feb | B54: feb | C54: 2 | D54: 2 | E54: 2018-02-18 | F54: 3.757795334 | L54: 0.02389861271 | M54: 0.02651377954 | N54: 0.02595051378 | X54: 4.142443657 | Y54: 4.227643013 | Z54: 4.126528263 | AA54: 4.777754784 | AJ54: 1.473688032 | AK54: 1.617917148 | AL54: 1.630582226 | AM54: 0.7305740356
A55: feb | B55: feb | C55: 2 | D55: 2 | E55: 2018-02-19 | F55: 1.100382209 | K55: 0.02102192678 | M55: 0.02442164347 | N55: 0.02403942868 | X55: 4.142443657 | Y55: 4.212432384 | Z55: 4.222298622 | AA55: 4.780779362 | AJ55: 1.559880695 | AK55: 1.668267059 | AL55: 1.630583393 | AM55: 0.728062439
A56: feb | B56: feb | C56: 2 | D56: 2 | E56: 2018-02-20 | F56: 2.743914604 | K56: 0.01436330751 | L56: 0.03932810202 | M56: 0.06867833436 | N56: 0.02212834358 | X56: 4.246275425 | Y56: 4.141445637 | Z56: 4.20046711 | AA56: 4.778559208 | AJ56: 1.72908783 | AK56: 1.668267059 | AL56: 1.756065005 | AM56: 0.728062439
A57: feb | B57: feb | C57: 2 | D57: 2 | E57: 2018-02-21 | F57: 0.6718969941 | K57: 0.01665660925 | L57: 0.01655602455 | M57: 0.02482397854 | N57: 0.02313417755 | X57: 4.235069752 | Y57: 4.141445637 | Z57: 4.183822155 | AA57: 4.756540775 | AJ57: 1.72908783 | AK57: 1.935659104 | AL57: 1.784350504 | AM57: 0.7330841064
A58: feb | B58: feb | C58: 2 | D58: 2 | E58: 2018-02-22 | F58: 1.53087914 | K58: 0.04828002304 | L58: 0.01726010814 | M58: 0.02414001152 | N58: 0.02432106249 | X58: 4.235069752 | Y58: 4.264304161 | Z58: 4.183822155 | AA58: 4.756540775 | AJ58: 1.518177536 | AK58: 2.008448315 | AL58: 1.750176528 | AM58: 0.7531692505
A59: feb | B59: feb | C59: 2 | D59: 2 | E59: 2018-02-23 | F59: 6.603299141 | K59: 0.06958358735 | L59: 0.02198752947 | M59: 0.02333534509 | N59: 0.02375779301 | X59: 4.254627228 | Y59: 4.237333298 | Z59: 4.182214737 | AA59: 4.887674332 | AJ59: 1.518177536 | AK59: 2.008448315 | AL59: 1.750176528 | AM59: 0.7431259155
A60: feb | B60: feb | C60: 2 | D60: 2 | E60: 2018-02-24 | F60: 26.45946503 | K60: 0.05238382518 | L60: 0.01812512614 | M60: 0.01832629181 | N60: 0.02949104831 | X60: 4.218069077 | Y60: 4.237333298 | Z60: 4.182214737 | AA60: 4.863246918 | AJ60: 1.695594201 | AK60: 1.987792389 | AL60: 1.760228044 | AM60: 0.7422897339
A61: feb | B61: feb | C61: 2 | D61: 2 | E61: 2018-02-25 | F61: 3.748742819 | K61: 0.02526654676 | L61: 0.01679742523 | M61: 0.01719975844 | N61: 0.02420036122 | X61: 4.188864231 | Y61: 4.227154732 | Z61: 4.130994797 | AA61: 4.843405724 | AJ61: 1.660333614 | AK61: 1.893902779 | AL61: 1.760228044 | AM61: 0.7280609131
A62: feb | B62: feb | C62: 2 | D62: 2 | E62: 2018-02-26 | F62: 24.9919529 | K62: 0.02092134394 | L62: 0.01802454144 | M62: 0.03824180365 | N62: 0.02301347815 | X62: 4.186152935 | Y62: 4.193254471 | Z62: 4.130994797 | AA62: 4.843405724 | AJ62: 1.660333614 | AK62: 1.893902779 | AL62: 1.801327229 | AM62: 0.7280609131
A63: feb | B63: feb | C63: 2 | D63: 2 | E63: 2018-02-27 | F63: 4.231543064 | K63: 0.04200362042 | L63: 0.02281231247 | M63: 0.02096157707 | N63: 0.02305371128 | X63: 4.171202183 | Y63: 4.193254471 | Z63: 4.141392708 | AA63: 4.841041088 | AJ63: 1.677568876 | AK63: 1.960991185 | AL63: 1.787518311 | AM63: 0.7314102173
A64: feb | B64: feb | C64: 2 | D64: 2 | E64: 2018-02-28 | F64: 1.446389079 | K64: 0.02794206329 | L64: 0.02957151458 | M64: 0.01925165951 | N64: 0.04550392181 | X64: 4.168628216 | Y64: 4.219668865 | Z64: 4.141392708 | AA64: 4.832591057 | AJ64: 1.706941595 | AK64: 1.686940874 | AL64: 1.721946716 | AM64: 0.7364318848
A65: 0 | B65: 0 | C65: 3 | D65: 3 | E65: 2018-03-01 | F65: 1.05713141 | K65: 0.02786159702 | L65: 0.01721987501 | N65: 0.02228927799 | X65: 4.168628216 | Y65: 4.202861786 | Z65: 4.162801266 | AA65: 4.832591057 | AJ65: 1.701464511 | AK65: 1.686940874 | AL65: 1.721946716 | AM65: 0.7289001465
A66: 0 | B66: 0 | C66: 3 | D66: 3 | E66: 2018-03-02 | F66: 5.735264778 | K66: 0.03820157051 | L66: 0.01583182439 | M66: 0.05204184353 | N66: 0.0219070632 | X66: 4.176243305 | Y66: 4.199394226 | Z66: 4.162801266 | AA66: 4.837174416 | AJ66: 1.68950295 | AK66: 1.997394202 | AL66: 1.534501983 | AM66: 0.7272262573
A67: 0 | B67: 0 | C67: 3 | D67: 3 | E67: 2018-03-03 | F67: 3.228726625 | K67: 0.01999597624 | L67: 0.01750150882 | M67: 0.03385636583 | N67: 0.02158519439 | X67: 4.168929577 | Y67: 4.197826862 | Z67: 4.171826363 | AA67: 4.820398331 | AJ67: 1.68950295 | AK67: 1.997394202 | AL67: 1.534501983 | AM67: 0.7272262573
A68: 0 | B68: 0 | C68: 3 | D68: 3 | E68: 2018-03-04 | F68: 3.229732513 | K68: 0.03184469789 | L68: 0.0189700257 | M68: 0.02409977838 | N68: 0.02506537922 | X68: 4.153485298 | Y68: 4.192115784 | Z68: 4.152815342 | AA68: 4.820398331 | AJ68: 1.711624861 | AK68: 2.000243243 | AL68: 1.766925763 | AM68: 0.7389419556
A69: 0 | B69: 0 | C69: 3 | D69: 3 | E69: 2018-03-05 | F69: 5.698048592 | K69: 0.04870247468 | L69: 0.0188493263 | M69: 0.02192717791 | N69: 0.0219070632 | X69: 4.139919758 | Y69: 4.153226376 | Z69: 4.133487225 | AA69: 4.812330246 | AJ69: 1.737779379 | AK69: 2.011547795 | AL69: 1.754291676 | AM69: 0.7355926514
A70: 0 | B70: 0 | C70: 3 | D70: 3 | E70: 2018-03-06 | F70: 3.927781105 | K70: 0.06214041263 | L70: 0.02035807632 | M70: 0.01997585967 | N70: 0.02906859852 | X70: 4.139919758 | Y70: 4.153226376 | Z70: 4.133487225 | AA70: 4.812330246 | AJ70: 1.712561627 | AK70: 1.990189986 | AL70: 1.714430212 | AM70: 0.7046310425
A71: 0 | B71: =IF(MONTH(E71)=2,"feb",) -> 0 | C71: =MONTH(E71) -> 3 | D71: 3 | E71: 2018-03-07 | F71: 49.98893356 | K71: 0.02584992908 | L71: 0.02979279682 | M71: 0.03001408093 | N71: 0.03049688414 | X71: 4.141759872 | Y71: 4.163272381 | Z71: 4.107046127 | AA71: 4.797123909 | AJ71: 1.52873187 | AK71: 1.975415882 | AL71: 1.714430212 | AM71: 0.7046310425
A72: 0 | B72: 0 | C72: 3 | D72: 3 | E72: 2018-03-08 | F72: 42.73788071 | K72: 0.03057735041 | L72: 0.02001609281 | M72: 0.02973244898 | N72: 0.02669482864 | X72: 4.148090839 | Y72: 4.130256176 | Z72: 4.107046127 | AA72: 4.797123909 | AJ72: 1.52873187 | AK72: 1.975415882 | AL72: 1.751934549 | AM72: 0.7422897339
A73: 0 | B73: 0 | C73: 3 | D73: 3 | E73: 2018-03-09 | F73: 49.98893356 | K73: 0.01927177608 | L73: 0.02063971013 | M73: 0.04604707286 | N73: 0.02339569479 | X73: 4.148090839 | Y73: 4.130256176 | Z73: 4.123795509 | AJ73: 1.682335765 | AK73: 1.994673101 | AL73: 1.549169893 | AM73: 0.7222045898
A74: 0 | B74: 0 | C74: 3 | D74: 3 | E74: 2018-03-10 | F74: 49.98994064 | K74: 0.02595051378 | L74: 0.02279219404 | M74: 0.0368135199 | N74: 0.02341581136 | X74: 4.156814575 | Y74: 4.154611111 | Z74: 4.125874519 | AA74: 4.819833279 | AJ74: 1.638537421 | AK74: 1.994673101 | AL74: 1.549169893 | AM74: 0.7222045898
A75: 0 | B75: 0 | C75: 3 | D75: 3 | E75: 2018-03-11 | F75: 10.61959362 | K75: 0.02701669745 | L75: 0.01810500957 | M75: 0.04508147389 | N75: 0.02228927799 | X75: 4.138574123 | Y75: 4.154611111 | Z75: 4.109109879 | AA75: 4.816011906 | AJ75: 1.638537421 | AK75: 2.037357677 | AL75: 1.760453015 | AM75: 0.7188568115
A76: 0 | B76: 0 | C76: 3 | D76: 3 | E76: 2018-03-12 | F76: 0.2363709509 | K76: 0.02669482864 | L76: 0.01732045785 | M76: 0.03411788493 | N76: 0.02355662733 | X76: 4.138574123 | Y76: 4.166797638 | Z76: 4.109109879 | AA76: 4.794428825 | AJ76: 1.671316964 | AK76: 2.008446433 | AL76: 1.769346899 | AM76: 0.7188568115
A77: 0 | B77: 0 | C77: 3 | D77: 3 | E77: 2018-03-13 | F77: 0.2283242792 | K77: 0.02317441069 | L77: 0.0198350437 | M77: 0.03055723198 | N77: 0.02114262804 | X77: 4.13982296 | Y77: 4.156242847 | Z77: 4.0996418 | AA77: 4.794428825 | AJ77: 1.671316964 | AK77: 2.008446433 | AL77: 1.788555277 | AM77: 0.7447998047
A78: 0 | B78: 0 | C78: 3 | D78: 3 | E78: 2018-03-14 | F78: 0.4395493865 | K78: 0.03136190027 | L78: 0.01965399273 | M78: 0.03886542097 | N78: 0.02456246316 | X78: 4.136995792 | Y78: 4.156242847 | Z78: 4.0996418 | AA78: 4.798981667 | AJ78: 1.708800777 | AK78: 2.015517329 | AL78: 1.759224216 | AM78: 0.7473098755
A79: 0 | B79: 0 | C79: 3 | D79: 3 | E79: 2018-03-15 | F79: 1.776302576 | K79: 0.04296922311 | L79: 0.01643532515 | M79: 0.0461476557 | N79: 0.02218869515 | X79: 4.136995792 | Y79: 4.146546841 | Z79: 4.10512352 | AA79: 4.79907608 | AJ79: 1.662520659 | AK79: 2.015517329 | AL79: 1.759224216 | AM79: 0.7397781372
A80: 0 | B80: 0 | C80: 3 | D80: 3 | E80: 2018-03-16 | F80: 0.1116475537 | K80: 0.04001206905 | L80: 0.02186682634 | M80: 0.03560651839 | N80: 0.02383825928 | X80: 4.122560501 | Y80: 4.146546841 | Z80: 4.100237846 | AA80: 4.805435181 | AJ80: 1.662520659 | AK80: 1.985780398 | AL80: 1.765877492 | AM80: 0.7397781372
A81: 0 | B81: 0 | C81: 3 | D81: 3 | E81: 2018-03-17 | F81: 0.1136592254 | K81: 0.02480386198 | L81: 0.02339569479 | M81: 0.0330516994 | N81: 0.02255079523 | X81: 4.110806942 | Y81: 4.128148079 | Z81: 4.088667393 | AA81: 4.803799629 | AJ81: 1.740345425 | AK81: 1.985780398 | AL81: 1.765877492 | AM81: 0.7506561279
A82: 0 | B82: 0 | C82: 3 | D82: 3 | E82: 2018-03-18 | F82: 0.1448400617 | K82: 0.05596459284 | L82: 0.01730034128 | M82: 0.03568698466 | N82: 0.02041842788 | X82: 4.098154068 | Y82: 4.128148079 | Z82: 4.088667393 | AA82: 4.796323776 | AJ82: 1.74831804 | AK82: 1.971571324 | AL82: 1.779705471 | AM82: 0.7556793213
A83: 0 | B83: 0 | C83: 3 | D83: 3 | E83: 2018-03-19 | F83: 0.1770267487 | K83: 0.02737879753 | L83: 0.05151880905 | M83: 0.03325286508 | N83: 0.02504526451 | X83: 4.098154068 | Y83: 4.146364212 | Z83: 4.091549397 | AA83: 4.796323776 | AJ83: 1.716611446 | AK83: 1.971571324 | AL83: 1.7668301 | AM83: 0.7540054321
A84: 0 | B84: 0 | C84: 3 | D84: 3 | E84: 2018-03-20 | F84: 0.1740092486 | K84: 0.03375578299 | L84: 0.02226916142 | M84: 0.0151880905 | N84: 0.02414001152 | X84: 4.118319511 | Y84: 4.146364212 | Z84: 4.090973377 | AA84: 4.77864933 | AJ84: 1.716611446 | AK84: 2.001473745 | AL84: 1.7668301 | AM84: 0.7540054321
A85: 0 | B85: 0 | C85: 3 | D85: 3 | E85: 2018-03-21 | F85: 2.389861345 | K85: 0.02204787731 | L85: 0.02023737691 | M85: 0.04819955677 | N85: 0.05469724536 | X85: 4.118319511 | Y85: 4.166764736 | Z85: 4.090973377 | AA85: 4.77864933 | AJ85: 1.575554108 | AK85: 1.766500522 | AL85: 1.703782082 | AM85: 0.7364303589
A86: 0 | B86: 0 | C86: 3 | D86: 3 | E86: 2018-03-22 | F86: 0.920337975 | L86: 0.03285053372 | M86: 0.0208811108 | N86: 0.03608931974 | X86: 4.119989395 | Y86: 4.177841187 | Z86: 4.116221905 | AA86: 4.779650688 | AJ86: 1.575554108 | AK86: 1.766500522 | AL86: 1.703782082 | AM86: 0.7305725098
A87: 0 | B87: 0 | C87: 3 | D87: 3 | E87: 2018-03-23 | F87: 1.226111412 | K87: 0.03168376535 | M87: 0.03341380134 | N87: 0.02611144632 | X87: 4.105386257 | Y87: 4.177841187 | Z87: 4.181026459 | AA87: 4.760715961 | AJ87: 1.630081249 | AK87: 1.777826354 | AL87: 1.834384155 | AM87: 0.7255508423
A88: 0 | B88: 0 | C88: 3 | D88: 3 | E88: 2018-03-24 | F88: 0.9927580357 | K88: 0.02570911497 | L88: 0.02570911497 | M88: 0.05085495859 | N88: 0.02677529491 | X88: 4.105386257 | Y88: 4.100978851 | Z88: 4.143600464 | AA88: 4.758703709 | AJ88: 1.686338749 | AK88: 1.777826354 | AL88: 1.834384155 | AM88: 0.7255508423
A89: 0 | B89: 0 | C89: 3 | D89: 3 | E89: 2018-03-25 | F89: 4.258700371 | K89: 0.02228927799 | L89: 0.01681754179 | M89: 0.03319251537 | N89: 0.05133776367 | X89: 4.207865238 | Y89: 4.100978851 | Z89: 4.143600464 | AA89: 4.736449718 | AJ89: 1.646087722 | AK89: 2.156585788 | AL89: 1.838742048 | AM89: 0.7263885498
A90: 0 | B90: 0 | C90: 3 | D90: 3 | E90: 2018-03-26 | F90: 5.563266754 | K90: 0.03377589956 | L90: 0.03264936805 | M90: 0.0368738696 | N90: 0.02414001152 | X90: 4.178585529 | Y90: 4.176175117 | Z90: 4.157512188 | AA90: 4.736449718 | AJ90: 1.646087722 | AK90: 2.014252767 | AL90: 1.678043029 | AM90: 0.7548416138
A91: 0 | B91: 0 | C91: 3 | D91: 3 | E91: 2018-03-27 | F91: 0.5270569324 | K91: 0.02502514608 | L91: 0.02472339571 | M91: 0.0338764824 | N91: 0.02560853027 | X91: 4.178585529 | Y91: 4.159926891 | Z91: 4.12040472 | AA91: 4.796508789 | AJ91: 1.801293795 | AK91: 2.014252767 | AL91: 1.678043029 | AM91: 0.8017044067
A92: 0 | B92: 0 | C92: 3 | D92: 3 | E92: 2018-03-28 | F92: 9.168175697 | K92: 0.0292898789 | L92: 0.02804264799 | M92: 0.0369342193 | N92: 0.02212834358 | X92: 4.182068348 | Y92: 4.159729481 | Z92: 4.12040472 | AA92: 4.796508789 | AJ92: 1.792894999 | AK92: 2.221931925 | AL92: 1.896494788 | AM92: 0.7858062744
A93: 0 | B93: 0 | C93: 3 | D93: 3 | E93: 2018-03-29 | F93: 0.3540534973 | K93: 0.03323274851 | L93: 0.030456651 | M93: 0.05274592713 | N93: 0.02122309431 | X93: 4.182068348 | Y93: 4.158326626 | Z93: 4.143532276 | AA93: 4.803458214 | AJ93: 1.78276549 | AK93: 2.201037472 | AL93: 1.812220606 | AM93: 0.7715789795
A94: 0 | B94: 0 | C94: 3 | D94: 3 | E94: 2018-03-30 | F94: 0.3993160427 | K94: 0.02804264799 | L94: 0.0206598267 | M94: 0.0416415222 | N94: 0.02456246316 | X94: 4.177362442 | Y94: 4.158326626 | Z94: 4.162865639 | AA94: 4.803458214 | AJ94: 1.78276549 | AK94: 2.083940306 | AL94: 1.766632174 | AM94: 0.7715789795
A95: 0 | B95: 0 | C95: 3 | D95: 3 | E95: 2018-03-31 | F95: 0.7795212269 | K95: 0.02182659693 | L95: 0.02063971013 | M95: 0.04399517179 | N95: 0.0264735464 | X95: 4.177362442 | Y95: 4.17036438 | Z95: 4.121547699 | AA95: 4.795065403 | AJ95: 1.78360195 | AK95: 2.083940306 | AL95: 1.766632174 | AM95: 0.7816238403
A96: 0 | B96: 0 | C96: 4 | D96: 4 | E96: 2018-04-01 | F96: 0.2102192789 | K96: 0.02639308013 | L96: 0.02623214573 | M96: 0.03828203678 | N96: 0.02240997739 | X96: 4.180649281 | Y96: 4.160358429 | Z96: 4.121547699 | AA96: 4.79385519 | AJ96: 1.757395786 | AK96: 2.138246809 | AL96: 1.836250012 | AM96: 0.7816238403
A97: 0 | B97: 0 | C97: 4 | D97: 4 | E97: 2018-04-02 | F97: 8.000402451 | K97: 0.02337557822 | L97: 0.02540736273 | M97: 0.03441963345 | N97: 0.02490444668 | X97: 4.180649281 | Y97: 4.157186031 | Z97: 4.121014118 | AA97: 4.79385519 | AJ97: 1.745686506 | AK97: 2.138246809 | AL97: 1.836250012 | AM97: 0.7565155029
A98: 0 | B98: 0 | C98: 4 | D98: 4 | E98: 2018-04-03 | F98: 1.98048687 | K98: 0.05338965729 | L98: 0.02017702907 | M98: 0.04443774372 | N98: 0.02538724616 | X98: 4.165534019 | Y98: 4.157186031 | Z98: 4.121014118 | AA98: 4.807550907 | AJ98: 1.745686506 | AK98: 2.136608737 | AL98: 1.846098328 | AM98: 0.7565155029
A99: 0 | B99: 0 | C99: 4 | D99: 4 | E99: 2018-04-04 | F99: 0.5039227605 | K99: 0.06425266713 | L99: 0.02234962769 | M99: 0.03560651839 | N99: 0.02840474807 | X99: 4.165534019 | Y99: 4.152342796 | Z99: 4.109205723 | AA99: 4.807550907 | AJ99: 1.575009812 | AK99: 2.08977659 | AL99: 1.866007054 | AM99: 0.7607025146
A100: 0 | B100: 0 | C100: 4 | D100: 4 | E100: 2018-04-05 | F100: 7.39991951 | K100: 0.02037819475 | L100: 0.02053912729 | M100: 0.02591028064 | N100: 0.02021726221 | X100: 4.137121201 | Y100: 4.141894341 | Z100: 4.104467392 | AA100: 4.806553841 | AJ100: 1.575009812 | AK100: 2.071629202 | AL100: 1.87604251 | AM100: 0.7506561279
A101: 0 | B101: 0 | C101: 4 | D101: 4 | E101: 2018-04-06 | F101: 0.5582377911 | K101: 0.04972842336 | L101: 0.02154496126 | M101: 0.03417823464 | N101: 0.02731844969 | X101: 4.137121201 | Y101: 4.129329205 | Z101: 4.104467392 | AA101: 4.790320396 | AJ101: 1.62813621 | AK101: 2.071629202 | AL101: 1.850499033 | AM101: 0.7506561279
A102: 0 | B102: 0 | C102: 4 | D102: 4 | E102: 2018-04-07 | F102: 0.2725809813 | K102: 0.02025749534 | L102: 0.02717762999 | M102: 0.0217058938 | N102: 0.02230939455 | X102: 4.117212772 | Y102: 4.114604473 | Z102: 4.10800457 | AA102: 4.781391144 | AJ102: 1.62813621 | AK102: 2.174467887 | AL102: 1.850499033 | AM102: 0.7548416138
A103: 0 | B103: 0 | C103: 4 | D103: 4 | E103: 2018-04-08 | F103: 0.3007443249 | K103: 0.01991550997 | L103: 0.02293301187 | M103: 0.0405552201 | N103: 0.02202775888 | X103: 4.117212772 | Y103: 4.114604473 | Z103: 4.090545654 | AA103: 4.781391144 | AJ103: 1.797241938 | AK103: 2.174467887 | AL103: 1.874674219 | AM103: 0.7749267578
A104: 0 | B104: 0 | C104: 4 | D104: 4 | E104: 2018-04-09 | F104: 0.6849728823 | K104: 0.01997585967 | L104: 0.02039830945 | M104: 0.03206598386 | N104: 0.0216455441 | X104: 4.136338234 | Y104: 4.098945618 | Z104: 4.090545654 | AA104: 4.774543285 | AJ104: 1.740740951 | AK104: 2.193533347 | AL104: 1.847591743 | AM104: 0.7799484253
A105: 0 | B105: 0 | C105: 4 | D105: 4 | E105: 2018-04-10 | F105: 1.28143239 | K105: 0.02220881172 | L105: 0.01856769249 | M105: 0.0368738696 | N105: 0.02126332745 | X105: 4.131735325 | Y105: 4.098945618 | Z105: 4.091882706 | AA105: 4.774543285 | AJ105: 1.740740951 | AK105: 2.198701501 | AL105: 1.847591743 | AM105: 0.7824569702
A106: 0 | B106: 0 | C106: 4 | D106: 4 | E106: 2018-04-11 | F106: 0.8921746016 | K106: 0.02957151458 | L106: 0.02430094406 | M106: 0.05369140953 | N106: 0.02458257973 | X106: 4.131735325 | Y106: 4.118500233 | Z106: 4.090150356 | AA106: 4.789842606 | AJ106: 1.768248275 | AK106: 2.125070387 | AL106: 1.868971282 | AM106: 0.7615356445
A107: 0 | B107: 0 | C107: 4 | D107: 4 | E107: 2018-04-12 | F107: 0.2222892791 | K107: 0.01957352646 | L107: 0.02222892828 | M107: 0.02538724616 | N107: 0.02347616106 | X107: 4.141414642 | Y107: 4.134615421 | Z107: 4.090150356 | AA107: 4.792593956 | AJ107: 1.601098005 | AK107: 2.125070387 | AL107: 1.656708717 | AM107: 0.7565155029
A108: 0 | B108: 0 | C108: 4 | D108: 4 | E108: 2018-04-13 | F108: 1.309595585 | K108: 0.02051901072 | L108: 0.02832427993 | M108: 0.03152283281 | N108: 0.02462281287 | X108: 4.1381464 | Y108: 4.124976635 | Z108: 4.099785328 | AA108: 4.792424679 | AJ108: 1.601098005 | AK108: 2.108866882 | AL108: 1.656708717 | AM108: 0.7565155029
A109: 0 | B109: 0 | C109: 4 | D109: 4 | E109: 2018-04-14 | F109: 0.5542144775 | K109: 0.02798229642 | L109: 0.01776302606 | M109: 0.02971233055 | N109: 0.02405954525 | X109: 4.1381464 | Y109: 4.121398449 | Z109: 4.097052097 | AA109: 4.792424679 | AJ109: 1.754721378 | AK109: 2.081020474 | AL109: 1.879531242 | AM109: 0.7230407715
A110: 0 | B110: 0 | C110: 4 | D110: 4 | E110: 2018-04-15 | F110: 1.320659876 | K110: 0.02440152876 | L110: 0.02080064453 | M110: 0.04349225387 | N110: 0.0208811108 | X110: 4.106883049 | Y110: 4.105361462 | Z110: 4.077009201 | AA110: 4.781054497 | AJ110: 1.754721378 | AK110: 2.081020474 | AL110: 1.894829186 | AM110: 0.7230407715
A111: 0 | B111: 0 | C111: 4 | D111: 4 | E111: 2018-04-16 | F111: 21.65459633 | K111: 0.02500503138 | L111: 0.03421846777 | M111: 0.04705290869 | N111: 0.04441762343 | X111: 4.104905605 | Y111: 4.105361462 | Z111: 4.056233883 | AA111: 4.781054497 | AJ111: 1.78558676 | AK111: 2.08977659 | AL111: 1.894829186 | AM111: 0.7632110596
A112: 0 | B112: 0 | C112: 4 | D112: 4 | E112: 2018-04-17 | F112: 26.60631561 | K112: 0.02957151458 | L112: 0.03572721779 | M112: 0.03321263194 | N112: 0.02482397854 | X112: 4.086622238 | Y112: 4.118524075 | Z112: 4.056233883 | AA112: 4.775446415 | AJ112: 1.750680444 | AK112: 2.011775844 | AL112: 1.830555071 | AM112: 0.7632110596
A113: 0 | B113: 0 | C113: 4 | D113: 4 | E113: 2018-04-18 | F113: 49.98491287 | K113: 0.02633273043 | L113: 0.02852544747 | M113: 0.04129953682 | N113: 0.02659424581 | X113: 4.065310478 | Y113: 4.071608543 | Z113: 4.010192394 | AA113: 4.731215954 | AJ113: 1.750680444 | AK113: 2.011775844 | AL113: 1.830555071 | AM113: 0.7774368286
A114: 0 | B114: 0 | C114: 4 | D114: 4 | E114: 2018-04-19 | F114: 7.697646141 | K114: 0.03011466563 | L114: 0.01764232479 | M114: 0.02367732674 | N114: 0.02422047779 | X114: 4.065310478 | Y114: 4.071608543 | Z114: 4.010192394 | AA114: 4.731215954 | AJ114: 1.790318724 | AK114: 2.101371567 | AL114: 1.943132354 | AM114: 0.7757629395
A115: 0 | B115: 0 | C115: 4 | D115: 4 | E115: 2018-04-20 | F115: 9.892375946 | K115: 0.02790183015 | L115: 0.01762220822 | M115: 0.03643130139 | N115: 0.02568899654 | X115: 4.0637393 | Y115: 4.082007885 | Z115: 4.029314041 | AA115: 4.748279095 | AJ115: 1.790318724 | AK115: 1.95630411 | AL115: 1.758604188 | AM115: 0.7339202881
A116: 0 | B116: 0 | C116: 4 | D116: 4 | E116: 2018-04-21 | F116: 10.60852909 | L116: 0.02172601037 | M116: 0.0256286487 | N116: 0.05107624084 | X116: 4.0637393 | Y116: 4.055884361 | Z116: 4.143032074 | AA116: 4.763620853 | AJ116: 1.80015564 | AK116: 1.95630411 | AL116: 1.995895386 | AM116: 0.7339202881
A117: 0 | B117: 0 | C117: 4 | D117: 4 | E117: 2018-04-22 | F117: 24.30396271 | K117: 0.03564675152 | M117: 0.01997585967 | N117: 0.04980889335 | X117: 4.063028812 | Y117: 4.055884361 | Z117: 4.183622837 | AA117: 4.763620853 | AJ117: 1.780715692 | AK117: 2.208060593 | AL117: 1.798296296 | AM117: 0.728062439
A118: 0 | B118: 0 | C118: 4 | D118: 4 | E118: 2018-04-23 | F118: 11.00985718 | K118: 0.03952927142 | L118: 0.02580969594 | M118: 0.0198350437 | N118: 0.04331120476 | X118: 4.063028812 | Y118: 4.052447796 | Z118: 4.12611866 | AA118: 4.754304886 | AJ118: 1.716581072 | AK118: 2.208060593 | AL118: 1.798296296 | AM118: 0.728062439
A119: 0 | B119: 0 | C119: 4 | D119: 4 | E119: 2018-04-24 | F119: 20.12472343 | K119: 0.03606920317 | L119: 0.02158519439 | M119: 0.03675317019 | N119: 0.04383423924 | X119: 4.260687351 | Y119: 4.052447796 | Z119: 4.122896194 | AA119: 4.713766098 | AJ119: 1.683628829 | AK119: 2.249969289 | AL119: 2.022179961 | AM119: 0.743963623
A120: 0 | B120: 0 | C120: 4 | D120: 4 | E120: 2018-04-25 | F120: 49.98390579 | K120: 0.0237376783 | L120: 0.02178636007 | M120: 0.03639106825 | N120: 0.03051699884 | X120: 4.16642046 | Y120: 4.156654358 | Z120: 4.122896194 | AA120: 4.713766098 | AJ120: 1.683628829 | AK120: 2.37361908 | AL120: 1.970314798 | AM120: 0.7832946777
A121: 0 | B121: 0 | C121: 4 | D121: 4 | E121: 2018-04-26 | F121: 9.986924171 | K121: 0.04194326699 | L121: 0.02496479824 | M121: 0.02778113075 | N121: 0.02309394442 | X121: 4.16642046 | Y121: 4.156654358 | Z121: 4.113044262 | AA121: 4.828410149 | AJ121: 1.843508787 | AK121: 2.281336577 | AL121: 1.950389385 | AM121: 0.7707427979
A122: 0 | B122: 0 | C122: 4 | D122: 4 | E122: 2018-04-27 | F122: 8.94186306 | K122: 0.04091732204 | L122: 0.01971434243 | M122: 0.03749748692 | N122: 0.02798229642 | X122: 4.184915066 | Y122: 4.161496639 | Z122: 4.113044262 | AA122: 4.83130312 | AJ122: 1.834745252 | AK122: 2.281336577 | AL122: 1.941710363 | AM122: 0.7707427979
A123: 0 | B123: 0 | C123: 4 | D123: 4 | E123: 2018-04-28 | F123: 9.177227974 | K123: 0.03230738267 | L123: 0.02357674576 | M123: 0.04180245474 | N123: 0.02595051378 | X123: 4.194634914 | Y123: 4.161496639 | Z123: 4.123745918 | AA123: 4.842740059 | AJ123: 1.834745252 | AK123: 2.272383861 | AL123: 1.941710363 | AM123: 0.7740905762
A124: 0 | B124: 0 | C124: 4 | D124: 4 | E124: 2018-04-29 | F124: 3.947897673 | K124: 0.04073626921 | L124: 0.02078052796 | M124: 0.02331522852 | N124: 0.02597063035 | X124: 4.192989826 | Y124: 4.171113968 | Z124: 4.123745918 | AA124: 4.842740059 | AJ124: 1.842406742 | AK124: 2.227368164 | AL124: 1.973417415 | AM124: 0.7740905762
A125: 0 | B125: 0 | C125: 4 | D125: 4 | E125: 2018-04-30 | F125: 48.4580574 | K125: 0.03429893404 | L125: 0.01854757592 | M125: 0.02631261386 | N125: 0.03055723198 | X125: 4.192989826 | Y125: 4.171113968 | Z125: 4.118602276 | AA125: 4.845939636 | AJ125: 1.835926936 | AK125: 2.227368164 | AL125: 1.987114701 | AM125: 0.7648849487
A126: 0 | B126: 0 | C126: 5 | D126: 5 | E126: 2018-05-01 | F126: 1.969422579 | K126: 0.0266344808 | L126: 0.02104204334 | M126: 0.02691611275 | N126: 0.02381814457 | X126: 4.177686214 | Y126: 4.163876057 | Z126: 4.118602276 | AA126: 4.845939636 | AJ126: 1.830777682 | AK126: 2.237353605 | AL126: 1.939338941 | AM126: 0.7180206299
A127: 0 | B127: 0 | C127: 5 | D127: 5 | E127: 2018-05-02 | F127: 4.880305767 | K127: 0.02305371128 | L127: 0.019774694 | M127: 0.02969221398 | N127: 0.02534701303 | X127: 4.155094147 | Y127: 4.158117294 | Z127: 4.111190319 | AA127: 4.839913368 | AJ127: 1.830777682 | AK127: 2.237353605 | AL127: 1.939338941 | AM127: 0.7180206299
A128: 0 | B128: 0 | C128: 5 | D128: 5 | E128: 2018-05-03 | F128: 1.777308464 | K128: 0.0264131967 | L128: 0.0169985909 | M128: 0.03488231823 | N128: 0.02106215991 | X128: 4.136945724 | Y128: 4.136793137 | Z128: 4.089593887 | AA128: 4.838265896 | AJ128: 1.858081104 | AK128: 2.243249468 | AL128: 1.944946289 | AM128: 0.7473114014
A129: 0 | B129: 0 | C129: 5 | D129: 5 | E129: 2018-05-04 | F129: 3.071816444 | K129: 0.02882719785 | L129: 0.01782337576 | M129: 0.02152484469 | N129: 0.02518607862 | X129: 4.136945724 | Y129: 4.136793137 | Z129: 4.079628468 | AA129: 4.838265896 | AJ129: 1.727208622 | AK129: 2.252898969 | AL129: 1.984343262 | AM129: 0.7155105591
A130: 0 | B130: 0 | C130: 5 | D130: 5 | E130: 2018-05-05 | F130: 1.002816319 | K130: 0.02269161306 | L130: 0.01689800806 | M130: 0.02166566066 | N130: 0.02331522852 | X130: 4.143127918 | Y130: 4.140302658 | Z130: 4.079628468 | AA130: 4.829725742 | AJ130: 1.727208622 | AK130: 2.208589674 | AL130: 1.935921563 | AM130: 0.7155105591
A131: 0 | B131: 0 | C131: 5 | D131: 5 | E131: 2018-05-06 | F131: 1.951317668 | K131: 0.01860792562 | L131: 0.01633474231 | M131: 0.0340776518 | N131: 0.02494467981 | X131: 4.142013073 | Y131: 4.141974926 | Z131: 4.064099312 | AA131: 4.825222969 | AJ131: 1.81876119 | AK131: 2.159086374 | AL131: 1.935921563 | AM131: 0.7489852905
A132: 0 | B132: 0 | C132: 5 | D132: 5 | E132: 2018-05-07 | F132: 44.75759125 | K132: 0.02138402686 | L132: 0.01625427417 | M132: 0.03614966944 | N132: 0.02224904485 | X132: 4.142013073 | Y132: 4.135743618 | Z132: 4.064099312 | AA132: 4.81060648 | AJ132: 1.717606842 | AK132: 2.159086374 | AL132: 1.852671612 | AM132: 0.7155105591
A133: 0 | B133: 0 | C133: 5 | D133: 5 | E133: 2018-05-08 | F133: 4.011265278 | K133: 0.02003620937 | L133: 0.02255079523 | M133: 0.02341581136 | N133: 0.02228927799 | X133: 4.076899529 | Y133: 4.105688572 | Z133: 4.014727116 | AA133: 4.793867111 | AJ133: 1.841077303 | AK133: 2.181838331 | AL133: 1.639983903 | AM133: 0.746472168
A134: 0 | B134: 0 | C134: 5 | D134: 5 | E134: 2018-05-09 | F134: 1.363910675 | K134: 0.02063971013 | L134: 0.01744115911 | M134: 0.0219070632 | N134: 0.02220881172 | X134: 4.057962894 | Y134: 4.068719864 | Z134: 4.042844772 | AA134: 4.785226822 | AJ134: 1.845480936 | AK134: 2.181838331 | AL134: 1.627262375 | AM134: 0.7121627808
A135: 0 | B135: =IF(MONTH(E135)=2,"feb",) -> 0 | C135: =MONTH(E135) -> 5 | D135: 5 | E135: 2018-05-10 | F135: 18.30617714 | K135: 0.02041842788 | L135: 0.02005632594 | M135: 0.02508549765 | N135: 0.02041842788 | X135: 4.057962894 | Y135: 4.068719864 | Z135: 4.034694195 | AA135: 4.785226822 | AJ135: 1.65828745 | AK135: 1.94490786 | AL135: 1.627262375 | AM135: 0.7096511841
A136: 0 | B136: 0 | C136: 5 | D136: 5 | E136: 2018-05-11 | F136: 1.665660977 | K136: 0.04091732204 | L136: 0.02063971013 | M136: 0.02906859852 | N136: 0.02208811045 | X136: 4.066576481 | Y136: 4.140197277 | Z136: 4.034694195 | AA136: 4.777637482 | AJ136: 1.65828745 | AK136: 1.94490786 | AL136: 1.604341721 | AM136: 0.7096511841
A137: 0 | B137: 0 | C137: 5 | D137: 5 | E137: 2018-05-12 | F137: 1.024944663 | K137: 0.04244618863 | L137: 0.01730034128 | M137: 0.02617179602 | N137: 0.02240997739 | X137: 4.066576481 | Y137: 4.120877266 | Z137: 4.050929546 | AA137: 4.768186092 | AJ137: 1.825737 | AK137: 1.949964003 | AL137: 1.604341721 | AM137: 0.7414535522
A138: 0 | B138: 0 | C138: 5 | D138: 5 | E138: 2018-05-13 | F138: 3.808086634 | K138: 0.03297123313 | L138: 0.02502514608 | M138: 0.01804465987 | N138: 0.01872862689 | X138: 4.068572521 | Y138: 4.103539944 | Z138: 4.048376083 | AA138: 4.768186092 | AJ138: 1.839727586 | AK138: 2.170992631 | AL138: 1.873955318 | AM138: 0.738104248
A139: 0 | B139: 0 | C139: 5 | D139: 5 | E139: 2018-05-14 | F139: 8.970026016 | K139: 0.03612955287 | L139: 0.0227519609 | M139: 0.02683564648 | N139: 0.03051699884 | X139: 4.068572521 | Y139: 4.103539944 | Z139: 4.048376083 | AA139: 4.786298752 | AJ139: 1.308654425 | AK139: 2.170992631 | AL139: 1.316235389 | AM139: 0.7314102173
A140: 0 | B140: 0 | C140: 5 | D140: 5 | E140: 2018-05-15 | F140: 7.64735508 | K140: 0.05731241405 | L140: 0.01637497544 | M140: 0.0357875675 | N140: 0.02224904485 | X140: 4.187620163 | Y140: 4.097213268 | Z140: 4.146477699 | AA140: 4.786298752 | AJ140: 1.308654425 | AK140: 2.194947379 | AL140: 1.316235389 | AM140: 0.7171844482
A141: 0 | B141: 0 | C141: 5 | D141: 5 | E141: 2018-05-16 | F141: 3.871454239 | K141: 0.01931200922 | L141: 0.02031784318 | M141: 0.01553007402 | N141: 0.01836652495 | X141: 4.15464735 | Y141: 4.097213268 | Z141: 4.101022243 | AA141: 4.798113823 | AJ141: 1.184496775 | AK141: 2.153290382 | AL141: 1.534938088 | AM141: 0.7171844482
A142: 0 | B142: 0 | C142: 5 | D142: 5 | E142: 2018-05-17 | F142: 3.608932018 | K142: 0.04632870853 | L142: 0.03073828295 | M142: 0.03721585125 | N142: 0.02430094406 | X142: 4.154646873 | Y142: 4.101267815 | Z142: 4.101021767 | AA142: 4.798113823 | AJ142: 1.430674514 | AK142: 2.153290382 | AL142: 1.541574043 | AM142: 0.7046295166
A143: 0 | B143: 0 | C143: 5 | D143: 5 | E143: 2018-05-18 | F143: 4.961778164 | K143: 0.02200764418 | L143: 0.01913096011 | M143: 0.01619392447 | N143: 0.02136390842 | X143: 4.141335011 | Y143: 4.08620739 | Z143: 4.076582432 | AA143: 4.787786484 | AJ143: 1.430674514 | AK143: 2.184371391 | AL143: 1.541574043 | AM143: 0.7046295166
A144: 0 | B144: 0 | C144: 5 | D144: 5 | E144: 2018-05-19 | F144: 0.4707302451 | K144: 0.04970831051 | M144: 0.02900824696 | N144: 0.03011466563 | X144: 4.141335011 | Y144: 4.082203388 | Z144: 4.076582432 | AA144: 4.787786484 | AJ144: 1.308083307 | AK144: 2.123367417 | AL144: 1.371063859 | AM144: 0.6602783203
A145: 0 | B145: 0 | C145: 5 | D145: 5 | E145: 2018-05-20 | F145: 0.8438946009 | K145: 0.03707503527 | L145: 0.02677529491 | M145: 0.02192717791 | N145: 0.02526654676 | X145: 4.145661354 | Y145: 4.03635788 | Z145: 4.123931885 | AA145: 4.799049377 | AJ145: 1.308083307 | AK145: 2.123367417 | AL145: 1.367999641 | AM145: 0.6602783203
A146: 0 | B146: 0 | C146: 5 | D146: 5 | E146: 2018-05-21 | F146: 2.847515583 | K146: 0.03711526841 | L146: 0.02086099423 | M146: 0.03856366873 | N146: 0.02122309431 | X146: 4.139893055 | Y146: 4.03635788 | Z146: 4.10554266 | AA146: 4.773476601 | AJ146: 1.328135771 | AK146: 2.178806305 | AL146: 1.367999641 | AM146: 0.6786895752
A147: 0 | B147: 0 | C147: 5 | D147: 5 | E147: 2018-05-22 | F147: 0.7956145406 | K147: 0.05540132895 | L147: 0.0256487634 | M147: 0.01766244136 | N147: 0.0321665667 | X147: 4.139893055 | Y147: 4.152966976 | Z147: 4.10554266 | AA147: 4.773476601 | AJ147: 1.345998299 | AK147: 2.178806305 | AL147: 1.340023958 | AM147: 0.6929153442
A148: 0 | B148: 0 | C148: 5 | D148: 5 | E148: 2018-05-23 | F148: 2.352645397 | K148: 0.05153892562 | L148: 0.02245021053 | M148: 0.01619392447 | X148: 4.143029213 | Y148: 4.152966976 | Z148: 4.353226185 | AA148: 4.789657116 | AJ148: 1.364305352 | AK148: 2.135589306 | AL148: 1.297780735 | AM148: 0.6745040894
A149: 0 | B149: 0 | C149: 5 | D149: 5 | E149: 2018-05-24 | F149: 7.48038578 | K149: 0.02951116487 | L149: 0.02448199503 | M149: 0.03055723198 | N149: 0.02852544747 | X149: 4.243527412 | Y149: 4.118644714 | Z149: 4.227790833 | AA149: 4.79605484 | AJ149: 1.384749477 | AK149: 2.135589306 | AL149: 1.297780735 | AM149: 0.6745040894
A150: 0 | B150: 0 | C150: 5 | D150: 5 | E150: 2018-05-25 | F150: 2.383826017 | K150: 0.02059947699 | L150: 0.01941259392 | M150: 0.02118286118 | N150: 0.02802253328 | X150: 4.210792065 | Y150: 4.112532616 | Z150: 4.205284595 | AA150: 4.886723042 | AJ150: 1.534108862 | AK150: 2.359216568 | AL150: 1.490562399 | AM150: 0.7155090332
A151: 0 | B151: 0 | C151: 5 | D151: 5 | E151: 2018-05-26 | F151: 0.3419834971 | K151: 0.05835847929 | L151: 0.01822570898 | M151: 0.02792194672 | N151: 0.02617179602 | X151: 4.210792065 | Y151: 4.112532616 | Z151: 4.180202007 | AA151: 4.875022888 | AJ151: 1.50524637 | AK151: 2.297830363 | AL151: 1.506335546 | AM151: 0.7155090332
A152: 0 | B152: 0 | C152: 5 | D152: 5 | E152: 2018-05-27 | F152: 2.446187735 | K152: 0.05143834278 | L152: 0.01828605868 | M152: 0.03361496702 | N152: 0.02508549765 | X152: 4.213512897 | Y152: 4.131763935 | Z152: 4.180202007 | AA152: 4.875022888 | AJ152: 1.50524637 | AK152: 2.297830363 | AL152: 1.548683442 | AM152: 0.70965271
A153: 0 | B153: 0 | C153: 5 | D153: 5 | E153: 2018-05-28 | F153: 5.477771282 | K153: 0.01734057441 | L153: 0.02021726221 | M153: 0.03061758354 | N153: 0.02961174771 | X153: 4.213512897 | Y153: 4.131763935 | Z153: 4.187680244 | AA153: 4.884484768 | AJ153: 1.511163712 | AK153: 2.304265222 | AL153: 1.548683442 | AM153: 0.70965271
A154: 0 | B154: 0 | C154: 5 | D154: 5 | E154: 2018-05-29 | F154: 2.106215954 | K154: 0.01629450731 | L154: 0.03427881747 | M154: 0.0492657423 | N154: 0.03170388192 | X154: 4.225838184 | Y154: 4.138775349 | Z154: 4.187680244 | AA154: 4.884484768 | AJ154: 1.370172016 | AK154: 2.01175238 | AL154: 1.470113726 | AM154: 0.6929153442
A155: 0 | B155: 0 | C155: 5 | D155: 5 | E155: 2018-05-30 | F155: 4.815932274 | K155: 0.01915107667 | L155: 0.0226312615 | M155: 0.02941058204 | N155: 0.0322269164 | X155: 4.184515476 | Y155: 4.114236355 | Z155: 4.175115585 | AA155: 4.88631773 | AJ155: 1.370172016 | AK155: 2.01175238 | AL155: 1.470113726 | AM155: 0.6895675659
A156: 0 | B156: 0 | C156: 5 | D156: 5 | E156: 2018-05-31 | F156: 0.6558036208 | K156: 0.04463890567 | L156: 0.02393884584 | M156: 0.03337356821 | N156: 0.03767853603 | X156: 4.184515476 | Y156: 4.114236355 | Z156: 4.154913902 | AA156: 4.87011528 | AJ156: 1.508569336 | AK156: 2.303921039 | AL156: 1.47170795 | AM156: 0.6895675659
A157: 0 | B157: 0 | C157: 6 | D157: 6 | E157: 2018-06-01 | F157: 1.03299129 | K157: 0.01776302606 | L157: 0.03958962113 | M157: 0.03172399849 | N157: 0.03731643409 | X157: 4.171161175 | Y157: 4.088954926 | Z157: 4.149515629 | AA157: 4.87011528 | AJ157: 1.506334388 | AK157: 2.341195969 | AL157: 1.527258158 | AM157: 0.6845458984
A158: 0 | B158: 0 | C158: 6 | D158: 6 | E158: 2018-06-02 | F158: 0.5793602467 | K158: 0.01689800806 | L158: 0.02784148045 | M158: 0.02037819475 | N158: 0.02757996321 | X158: 4.1383605 | Y158: 4.068991184 | Z158: 4.120662689 | AA158: 4.851833344 | AJ158: 1.506334388 | AK158: 2.33846726 | AL158: 1.51907945 | AM158: 0.6845458984
A159: 0 | B159: 0 | C159: 6 | D159: 6 | E159: 2018-06-03 | F159: 0.6165761352 | K159: 0.0170388259 | L159: 0.03242808208 | M159: 0.02387849614 | N159: 0.03379601613 | X159: 4.086304188 | Y159: 4.015987396 | Z159: 4.062373161 | AA159: 4.840516567 | AJ159: 1.517747706 | AK159: 2.33846726 | AL159: 1.51907945 | AM159: 0.6761779785
A160: 0 | B160: 0 | C160: 6 | D160: 6 | E160: 2018-06-04 | F160: 0.5552203059 | K160: 0.0206598267 | L160: 0.03838261962 | M160: 0.0208207611 | N160: 0.02625226229 | X160: 4.066903114 | Y160: 3.997416735 | Z160: 4.062373161 | AA160: 4.840516567 | AJ160: 1.53819515 | AK160: 2.207817751 | AL160: 1.550711429 | AM160: 0.6694824219
A161: 0 | B161: 0 | C161: 6 | D161: 6 | E161: 2018-06-05 | F161: 0.423456043 | K161: 0.01299537346 | L161: 0.02609132975 | M161: 0.02120297588 | N161: 0.02589016221 | X161: 4.066903114 | Y161: 4.020733356 | Z161: 4.051692963 | AA161: 4.846796989 | AJ161: 1.50633729 | AK161: 2.207817751 | AL161: 1.550711429 | AM161: 0.6694824219
A162: 0 | B162: 0 | C162: 6 | D162: 6 | E162: 2018-06-06 | F162: 8.468114853 | K162: 0.01221082173 | L162: 0.0169382412 | M162: 0.02126332745 | N162: 0.02200764418 | X162: 4.08684063 | Y162: 4.020733356 | Z162: 4.051692963 | AA162: 4.834989071 | AJ162: 1.50633729 | AK162: 2.265041576 | AL162: 1.556873569 | AM162: 0.6753387451
A163: 0 | B163: 0 | C163: 6 | D163: 6 | E163: 2018-06-07 | F163: 1.600281715 | K163: 0.01466505602 | L163: 0.01629450731 | M163: 0.01603299193 | N163: 0.02118286118 | X163: 4.091965675 | Y163: 4.040112972 | Z163: 4.07404232 | AA163: 4.834989071 | AJ163: 1.379284569 | AK163: 2.265041576 | AL163: 1.556873569 | AM163: 0.6912414551
A164: 0 | B164: 0 | C164: 6 | D164: 6 | E164: 2018-06-08 | F164: 1.191913009 | K164: 0.01778314263 | L164: 0.01571112499 | M164: 0.01150673907 | N164: 0.01814524271 | X164: 4.079918861 | Y164: 4.040112972 | Z164: 4.055268288 | AA164: 4.847455978 | AJ164: 1.379284569 | AK164: 2.205842579 | AL164: 1.567884876 | AM164: 0.6912414551
A165: 0 | B165: 0 | C165: 6 | D165: 6 | E165: 2018-06-09 | F165: 2.206799507 | K165: 0.01178837288 | L165: 0.01514785737 | M165: 0.02240997739 | N165: 0.01685777493 | X165: 4.079918861 | Y165: 4.04885006 | Z165: 4.046392918 | AA165: 4.825351715 | AJ165: 1.507531302 | AK165: 2.205842579 | AL165: 1.57855883 | AM165: 0.7021209717
A166: 0 | B166: 0 | C166: 6 | D166: 6 | E166: 2018-06-10 | F166: 1.328706503 | K166: 0.01345805638 | L166: 0.0151277408 | M166: 0.01561054122 | N166: 0.01567089185 | X166: 4.075782776 | Y166: 4.03711462 | Z166: 4.046392918 | AA166: 4.825351715 | AJ166: 1.505231815 | AK166: 2.270339856 | AL166: 1.529967364 | AM166: 0.7146728516
A167: 0 | B167: 0 | C167: 6 | D167: 6 | E167: 2018-06-11 | F167: 23.65117645 | K167: 0.01307583973 | L167: 0.01377992425 | M167: 0.01736069284 | N167: 0.02504526451 | X167: 4.051635742 | Y167: 4.000718117 | Z167: 4.027757645 | AA167: 4.839447975 | AJ167: 1.505231815 | AK167: 2.273170315 | AL167: 1.529967364 | AM167: 0.68956604
A168: 0 | B168: 0 | C168: 6 | D168: 6 | E168: 2018-06-12 | F168: 1.024944663 | K168: 0.01325688977 | L168: 0.01341782324 | M168: 0.01194930635 | N168: 0.01563065872 | X168: 4.051635742 | Y168: 3.978609085 | Z168: 4.027757645 | AA168: 4.839634418 | AJ168: 1.578066972 | AK168: 2.225187562 | AL168: 1.592683731 | AM168: 0.6870559692
A169: 0 | B169: 0 | C169: 6 | D169: 6 | E169: 2018-06-13 | F169: 2.640313864 | K169: 0.0149869239 | M169: 0.01850734279 | N169: 0.03904647008 | X169: 4.014326572 | Y169: 4.039326668 | Z169: 4.012763977 | AA169: 4.856266022 | AJ169: 1.578229731 | AK169: 2.225187562 | AL169: 1.592683731 | AM169: 0.6745040894
A170: 0 | B170: 0 | C170: 6 | D170: 6 | E170: 2018-06-14 | F170: 13.26795387 | K170: 0.01289479062 | L170: 0.03763830289 | M170: 0.02790183015 | N170: 0.02063971013 | X170: 4.014326572 | Y170: 4.030388355 | Z170: 4.010435581 | AA170: 4.811305046 | AJ170: 1.544960678 | AK170: 2.225187562 | AL170: 1.598494807 | AM170: 0.6745040894
A171: 0 | B171: 0 | C171: 6 | D171: 6 | E171: 2018-06-15 | F171: 49.97787094 | K171: 0.01894990914 | L171: 0.02607121319 | M171: 0.0149869239 | N171: 0.02796217985 | X171: 4.023889065 | Y171: 4.030388355 | Z171: 4.010435581 | AA171: 4.808358669 | AJ171: 1.544960678 | AK171: 2.287609043 | AL171: 1.402890947 | AM171: 0.691242981
A172: 0 | B172: 0 | C172: 6 | D172: 6 | E172: 2018-06-16 | F172: 35.98873138 | K172: 0.0264735464 | L172: 0.03892577067 | M172: 0.01530879177 | N172: 0.01764232479 | X172: 4.023889065 | Y172: 4.216074467 | Z172: 4.031401634 | AA172: 4.788473606 | AJ172: 1.454716264 | AK172: 2.257601998 | AL172: 1.402890947 | AM172: 0.695425415
A173: 0 | B173: 0 | C173: 6 | D173: 6 | E173: 2018-06-17 | F173: 13.60993862 | K173: 0.02212834358 | L173: 0.01657614112 | M173: 0.01822570898 | N173: 0.01993562654 | X173: 4.325525761 | Y173: 4.215715408 | Z173: 4.072285652 | AA173: 4.788473606 | AJ173: 1.444388055 | AK173: 2.257601998 | AL173: 1.628471065 | AM173: 0.6837097168
A174: 0 | B174: 0 | C174: 6 | D174: 6 | E174: 2018-06-18 | F174: 35.30275345 | K174: 0.02655401267 | L174: 0.02023737691 | M174: 0.01734057441 | N174: 0.02045866102 | X174: 4.328840733 | Y174: 4.166966438 | Z174: 4.072285652 | AA174: 4.81513834 | AJ174: 1.444388055 | AK174: 2.268802219 | AL174: 1.424517632 | AM174: 0.6837097168
A175: 0 | B175: 0 | C175: 6 | D175: 6 | E175: 2018-06-19 | F175: 1.988533497 | K175: 0.02335546166 | L175: 0.02116274275 | M175: 0.03140213341 | N175: 0.01679742523 | X175: 4.257612228 | Y175: 4.166966438 | Z175: 4.127352238 | AA175: 4.794797421 | AJ175: 1.457291714 | AK175: 2.216413128 | AL175: 1.424517632 | AM175: 0.7330825806
A176: 0 | B176: 0 | C176: 6 | D176: 6 | E176: 2018-06-20 | F176: 1.55501914 | K176: 0.01416213997 | L176: 0.02367732674 | M176: 0.01452424005 | N176: 0.02826393209 | X176: 4.257612228 | Y176: 4.210375786 | Z176: 4.127352238 | AA176: 4.770112991 | AJ176: 1.447124841 | AK176: 2.159447048 | AL176: 1.550640167 | AM176: 0.7431259155
A177: 0 | B177: 0 | C177: 6 | D177: 6 | E177: 2018-06-21 | F177: 6.951317787 | K177: 0.0188493263 | L177: 0.0236169789 | M177: 0.05986722931 | N177: 0.03618990257 | X177: 4.260137558 | Y177: 4.144098759 | Z177: 4.127352238 | AA177: 4.770112991 | AJ177: 1.447124841 | AK177: 2.159447048 | AL177: 1.512613678 | AM177: 0.7807830811
A178: 0 | B178: 0 | C178: 6 | D178: 6 | E178: 2018-06-22 | F178: 0.5632669926 | K178: 0.02967209741 | L178: 0.01377992425 | M178: 0.05312814191 | N178: 0.02558841556 | X178: 4.253493786 | Y178: 4.144098759 | Z178: 4.246975899 | AA178: 4.891098499 | AJ178: 1.601607103 | AK178: 2.067422035 | AL178: 1.512613678 | AM178: 0.7682312012
A179: 0 | B179: 0 | C179: 6 | D179: 6 | E179: 2018-06-23 | F179: 0.5471736193 | K179: 0.01480587386 | L179: 0.01377992425 | M179: 0.02440152876 | N179: 0.01635485888 | X179: 4.239419937 | Y179: 4.193504333 | Z179: 4.213691235 | AA179: 4.891098499 | AJ179: 1.603906279 | AK179: 2.067422035 | AL179: 1.693293389 | AM179: 0.7322471619
A180: 0 | B180: 0 | C180: 6 | D180: 6 | E180: 2018-06-24 | F180: 0.4053510129 | K180: 0.01665660925 | L180: 0.01790384203 | M180: 0.02126332745 | N180: 0.01371957269 | X180: 4.210985184 | Y180: 4.179637909 | Z180: 4.213691235 | AA180: 4.892023087 | AJ180: 1.623934696 | AK180: 2.090962016 | AL180: 1.672290867 | AM180: 0.7263885498
A181: 0 | B181: 0 | C181: 6 | D181: 6 | E181: 2018-06-25 | F181: 0.5471736193 | K181: 0.01862804219 | L181: 0.01424260717 | M181: 0.01345805638 | N181: 0.01593240723 | X181: 4.202268124 | Y181: 4.179637909 | Z181: 4.215806484 | AA181: 4.918176174 | AJ181: 1.667539095 | AK181: 2.134881328 | AL181: 1.672290867 | AM181: 0.6945892334
A182: 0 | B182: 0 | C182: 6 | D182: 6 | E182: 2018-06-26 | F182: 0.3671293557 | K182: 0.01524844207 | L182: 0.01478575729 | N182: 0.01490645763 | X182: 4.202268124 | Y182: 4.188075542 | Z182: 4.215806484 | AA182: 4.921707153 | AJ182: 1.481583286 | AK182: 1.843466622 | AL182: 1.692553893 | AM182: 0.6945892334
A183: 0 | B183: 0 | C183: 6 | D183: 6 | E183: 2018-06-27 | F183: 0.5753369331 | K183: 0.01504727453 | L183: 0.01404144056 | N183: 0.01448400691 | X183: 4.247759342 | Y183: 4.245569706 | Z183: 4.215806484 | AA183: 4.952241421 | AJ183: 1.467807883 | AK183: 1.804850509 | AL183: 1.692553893 | AM183: 0.6535842896
A184: 0 | B184: 0 | C184: 6 | D184: 6 | E184: 2018-06-28 | F184: 0.4516194165 | K184: 0.01559042465 | L184: 0.0133172404 | N184: 0.0132971229 | X184: 4.200049877 | Y184: 4.176908016 | Z184: 4.215806484 | AA184: 4.922774315 | AJ184: 1.467807883 | AK184: 1.804850509 | AL184: 1.692553893 | AM184: 0.6535842896
A185: 0 | B185: 0 | C185: 6 | D185: 6 | E185: 2018-06-29 | F185: 0.3741701841 | K185: 0.01530879177 | L185: 0.0151880905 | M185: 0.0766646564 | N185: 0.01299537346 | X185: 4.175727844 | Y185: 4.157823086 | AA185: 4.922774315 | AJ185: 1.679618255 | AK185: 2.130671551 | AL185: 1.474150438 | AM185: 0.6987731934
A186: 0 | B186: 0 | C186: 6 | D186: 6 | E186: 2018-06-30 | F186: 0.4053510129 | K186: 0.01826594211 | L186: 0.01400120743 | M186: 0.0142828403 | N186: 0.01297525689 | X186: 4.175727844 | Y186: 4.157823086 | Z186: 4.23657608 | AA186: 4.921041012 | AJ186: 1.684226336 | AK186: 2.070779208 | AL186: 1.460800171 | AM186: 0.7121612549
A187: 0 | B187: 0 | C187: 7 | D187: 7 | E187: 2018-07-01 | F187: 0.4194327295 | K187: 0.01629450731 | L187: 0.0179239586 | M187: 0.02035807632 | N187: 0.01961375959 | X187: 4.183709621 | Y187: 4.161462307 | Z187: 4.350009918 | AA187: 4.910502911 | AJ187: 1.68234991 | AK187: 2.070779208 | AL187: 1.45907862 | AM187: 0.7121612549
A188: 0 | B188: 0 | C188: 7 | D188: 7 | E188: 2018-07-02 | F188: 2.884731531 | K188: 0.0189700257 | L188: 0.0254274793 | M188: 0.03592838347 | N188: 0.02762019634 | X188: 4.171839237 | Y188: 4.161462307 | Z188: 4.350009918 | AA188: 4.910502911 | AJ188: 1.661153158 | AK188: 2.019207001 | AL188: 1.424142293 | AM188: 0.7046295166
A189: 0 | B189: 0 | C189: 7 | D189: 7 | E189: 2018-07-03 | F189: 2.233957052 | K189: 0.01526855864 | L189: 0.02297324501 | M189: 0.01359887328 | N189: 0.02178636007 | X189: 4.171839237 | Y189: 4.162077427 | Z189: 4.362576962 | AA189: 4.906157494 | AJ189: 1.632550349 | AK189: 1.987524033 | AL189: 1.418092935 | AM189: 0.7046295166
A190: 0 | B190: 0 | C190: 7 | D190: 7 | E190: 2018-07-04 | F190: 0.3761818707 | K190: 0.01603299193 | M190: 0.02951116487 | N190: 0.0254274793 | X190: 4.157247543 | Y190: 4.170327663 | Z190: 4.330434799 | AA190: 4.893297672 | AJ190: 1.617481709 | AK190: 1.987524033 | AL190: 1.265644108 | AM190: 0.7104873657
A191: 0 | B191: 0 | C191: 7 | D191: 7 | E191: 2018-07-05 | F191: 2.817340612 | K191: 0.01567089185 | M191: 0.02289277874 | N191: 0.02832427993 | X191: 4.157247543 | Y191: 4.170327663 | Z191: 4.318874836 | AA191: 4.893297672 | AJ191: 1.463005724 | AK191: 1.987524033 | AL191: 1.265644108 | AM191: 0.6987716675
A192: 0 | B192: 0 | C192: 7 | D192: 7 | E192: 2018-07-06 | F192: 0.394286871 | K192: 0.01567089185 | M192: 0.01548984088 | N192: 0.01772279292 | X192: 4.158410072 | Y192: 4.170327663 | Z192: 4.303236008 | AA192: 4.864058018 | AJ192: 1.463005724 | AK192: 1.987524033 | AL192: 1.424283656 | AM192: 0.6987716675
A193: 0 | B193: 0 | C193: 7 | D193: 7 | E193: 2018-07-07 | F193: 0.3771876991 | K193: 0.01426272374 | M193: 0.01553007402 | N193: 0.02287266217 | X193: 4.158410072 | Y193: 4.170327663 | Z193: 4.303236008 | AA193: 4.863580704 | AJ193: 1.629890322 | AK193: 1.987524033 | AL193: 1.353191757 | AM193: 0.7222045898
A194: 0 | B194: 0 | C194: 7 | D194: 7 | E194: 2018-07-08 | F194: 0.3872460127 | K194: 0.0152283255 | M194: 0.0161134582 | N194: 0.02951116487 | X194: 4.13869524 | Y194: 4.170327663 | Z194: 4.295537472 | AA194: 4.863580704 | AJ194: 1.64723805 | AK194: 1.987524033 | AL194: 1.353191757 | AM194: 0.6979354858
A195: 0 | B195: 0 | C195: 7 | D195: 7 | E195: 2018-07-09 | F195: 1.88292098 | K195: 0.01685777493 | M195: 0.02116274275 | N195: 0.03283041716 | X195: 4.125534058 | Y195: 4.170327663 | Z195: 4.290576458 | AA195: 4.859591007 | AJ195: 1.65480706 | AK195: 1.987524033 | AL195: 1.426855116 | AM195: 0.6979354858
A196: 0 | B196: 0 | C196: 7 | D196: 7 | E196: 2018-07-10 | F196: 0.4948702753 | K196: 0.01577147469 | M196: 0.01514785737 | N196: 0.02504526451 | X196: 4.090199471 | Y196: 4.170327663 | Z196: 4.290576458 | AA196: 4.838567257 | AJ196: 1.65480706 | AK196: 1.987524033 | AL196: 1.426855116 | AM196: 0.7289001465
A197: 0 | B197: 0 | C197: 7 | D197: 7 | E197: 2018-07-11 | F197: 0.3882518411 | K197: 0.0160531085 | L197: 0.06125527993 | M197: 0.01462482288 | N197: 0.02792194672 | X197: 4.090199471 | Y197: 4.170327663 | Z197: 4.288851261 | AA197: 4.838567257 | AJ197: 1.630514822 | AK197: 1.414735124 | AL197: 1.446972927 | AM197: 0.7414520264
A198: 0 | B198: 0 | C198: 7 | D198: 7 | E198: 2018-07-12 | F198: 0.4828002453 | L198: 0.0500301756 | M198: 0.01639509201 | N198: 0.0257493481 | X198: 4.127724648 | Y198: 4.322587967 | Z198: 4.276490211 | AA198: 4.87055397 | AJ198: 1.630514822 | AK198: 1.414735124 | AL198: 1.444907899 | AM198: 0.7305755615
A199: 0 | B199: =IF(MONTH(E199)=2,"feb",) -> 0 | C199: =MONTH(E199) -> 7 | D199: 7 | E199: 2018-07-13 | F199: 1.268356442 | L199: 0.05085495859 | M199: 0.01639509201 | N199: 0.03152283281 | X199: 4.373500824 | Y199: 4.322587967 | Z199: 4.26058197 | AA199: 4.852116108 | AJ199: 1.630514822 | AK199: 1.571717262 | AL199: 1.440652803 | AM199: 0.7263900757
A200: 0 | B200: 0 | C200: 7 | D200: 7 | E200: 2018-07-14 | F200: 0.2504526079 | L200: 0.0256487634 | M200: 0.01697847433 | N200: 0.0350834839 | X200: 4.373500824 | Y200: 4.323419094 | Z200: 4.26058197 | AA200: 4.834703922 | AJ200: 1.630514822 | AK200: 1.554035568 | AL200: 1.283659894 | AM200: 0.7263900757
A201: 0 | B201: 0 | C201: 7 | D201: 7 | E201: 2018-07-15 | F201: 0.2152484357 | L201: 0.01732045785 | M201: 0.02049889416 | N201: 0.02510561235 | X201: 4.373500824 | Y201: 4.323419094 | Z201: 4.258937359 | AA201: 4.827469826 | AJ201: 1.630514822 | AK201: 1.399503343 | AL201: 1.283659894 | AM201: 0.7355941772
... 170 more rows
